Workbook

Sheet Český pohár - absolutní
A1: 7P | B1: 2017 | C1: Pouze členi | D1: A | I1: Věk min: | M1: Rok: | W1: created by: Zdeněk Vykydal
A2: 7 | B2: koeficient pro logaritmické body | I2: Věk max:
A4: Bic Techno 293 - Český pohár 2017 Všichni CZE | E4: 172120 | F4: 171803 | G4: 172002 | H4: 172005 | I4: 171615 | J4: 171620 | O4: Věstonická Venuše | P4: Pohár Rozkoše | Q4: Pohár Vysočiny | R4: Závod mladých nadějí | S4: Nechranická buchta | T4: Cena YCN
D5: Poč. záv./CTL | E5: 28 | F5: 21 | G5: 27 | H5: 44 | I5: 30 | J5: 15 | O5: 172120 | P5: 171803 | Q5: 172002 | R5: 172005 | S5: 171615 | T5: 171620 | X5: =IF(N4,N4,"") -> 
A6: Poř. celk. | B6: Kat. | C6: Reg. číslo | D6: Jméno | E6: Poř. | F6: Poř. | G6: Poř. | H6: Poř. | I6: Poř. | J6: Poř. | K6: Poř. | L6: Poř. | M6: Poř. | N6: Poř. | O6: Body | P6: Body | Q6: Body | R6: Body | S6: Body | T6: Body | U6: Body | V6: Body | W6: Body | X6: Body | Y6: Celkem
A7: 1 | B7: 1.M | C7: 2110-172 | D7: Mikulec Martin | E7: 3 | F7: 1 | G7: 1 | H7: 11 | I7: 1 | J7: 1 | O7: =IF((E7>0),ROUND((101+1000*(LOG10($E$5)-LOG10(E7)))*$A$2,0),0) -> 7497 | P7: =IF((F7>0),ROUND((101+1000*(LOG10($F$5)-LOG10(F7)))*$A$2,0),0) -> 9963 | Q7: =IF((G7>0),ROUND((101+1000*(LOG10($G$5)-LOG10(G7)))*$A$2,0),0) -> 10727 | R7: =IF((H7>0),ROUND((101+1000*(LOG10($H$5)-LOG10(H7)))*$A$2,0),0) -> 4921 | S7: =IF((I7>0),ROUND((101+1000*(LOG10($I$5)-LOG10(I7)))*$A$2,0),0) -> 11047 | T7: =IF((J7>0),ROUND((101+1000*(LOG10($J$5)-LOG10(J7)))*$A$2,0),0) -> 8940 | U7: =IF((K7>0),ROUND((101+1000*(LOG10($K$5)-LOG10(K7)))*$A$2,0),0) -> 0 | V7: =IF((L7>0),ROUND((101+1000*(LOG10($L$5)-LOG10(L7)))*$A$2,0),0) -> 0 | W7: =IF((M7>0),ROUND((101+1000*(LOG10($M$5)-LOG10(M7)))*$A$2,0),0) -> 0 | X7: =IF((N7>0),ROUND((101+1000*(LOG10($N$5)-LOG10(N7)))*$A$2,0),0) -> 0 | Y7: =SUM(LARGE(O7:X7,1),LARGE(O7:X7,2),LARGE(O7:X7,3),LARGE(O7:X7,4)) -> 40677
A8: 2 | B8: 2.M | C8: 1705-145 | D8: Horáček Jonáš | E8: 1 | F8: 3 | G8: 4 | H8: 6 | I8: 2 | O8: 10837 | P8: 6623 | Q8: 6512 | R8: 6764 | S8: 8940 | T8: 0 | U8: 0 | V8: 0 | W8: 0 | X8: 0 | Y8: 33164
A9: 3 | B9: 3.M | C9: 1801-167 | D9: Štěpánský Adam | E9: 11 | F9: 5 | G9: 3 | H9: 3 | O9: 3547 | P9: 5070 | Q9: 7387 | R9: 8871 | S9: 0 | T9: 0 | U9: 0 | V9: 0 | W9: 0 | X9: 0 | Y9: 24875
A10: 4 | B10: 1.F | C10: 2110-182 | D10: Chalupníková Kristýna | E10: 13 | F10: 6 | G10: 5 | H10: 5 | I10: 4 | O10: 3040 | P10: 4515 | Q10: 5834 | R10: 7318 | S10: 6832 | T10: 0 | U10: 0 | V10: 0 | W10: 0 | X10: 0 | Y10: 24499
A11: 5 | B11: 2.F | C11: 1607-166 | D11: Himmelová Klára | E11: 17 | G11: 7 | H11: 4 | I11: 6 | J11: 4 | O11: 2224 | P11: 0 | Q11: 4811 | R11: 7997 | S11: 5600 | T11: 4725 | U11: 0 | V11: 0 | W11: 0 | X11: 0 | Y11: 23133
A12: 6 | B12: 4.M | C12: 1609-212 | D12: Müller Ondřej | E12: 28 | F12: 2 | G12: 27 | H12: 19 | I12: 5 | J12: 3 | O12: 707 | P12: 7855 | Q12: 707 | R12: 3260 | S12: 6154 | T12: 5600 | U12: 0 | V12: 0 | W12: 0 | X12: 0 | Y12: 22869
A13: 7 | B13: 5.M | C13: 1609-255 | D13: Nevelöš Adam | E13: 5 | G13: 2 | I13: 3 | O13: 5944 | P13: 0 | Q13: 8619 | R13: 0 | S13: 7707 | T13: 0 | U13: 0 | V13: 0 | W13: 0 | X13: 0 | Y13: 22270
A14: 8 | B14: 6.M | C14: 1705-085 | D14: Sadílek Adam | E14: 4 | F14: 9 | G14: 6 | H14: 13 | I14: 12 | J14: 11 | O14: 6623 | P14: 3283 | Q14: 5279 | R14: 4414 | S14: 3493 | T14: 1650 | U14: 0 | V14: 0 | W14: 0 | X14: 0 | Y14: 19809
A15: 9 | B15: 3.F | C15: 1130-276 | D15: Švíková Kateřina | E15: 20 | H15: 7 | I15: 8 | J15: 2 | O15: 1730 | P15: 0 | Q15: 0 | R15: 6295 | S15: 4725 | T15: 6832 | U15: 0 | V15: 0 | W15: 0 | X15: 0 | Y15: 19582
A16: 10 | B16: 4.F | C16: 7019-377 | D16: Rašková Adéla | E16: 9 | F16: 4 | H16: 9 | I16: 10 | O16: 4157 | P16: 5748 | Q16: 0 | R16: 5531 | S16: 4047 | T16: 0 | U16: 0 | V16: 0 | W16: 0 | X16: 0 | Y16: 19483
A17: 11 | B17: 5.F | C17: 1705-086 | D17: Sadílková Nela | E17: 15 | F17: 13 | G17: 10 | H17: 8 | I17: 7 | J17: 9 | O17: 2604 | P17: 2165 | Q17: 3727 | R17: 5890 | S17: 5131 | T17: 2260 | U17: 0 | V17: 0 | W17: 0 | X17: 0 | Y17: 17352
A18: 12 | B18: 6.F | C18: 1609-278 | D18: Říčanová Nicol | E18: 12 | F18: 12 | G18: 12 | H18: 10 | I18: 9 | J18: 5 | O18: 3283 | P18: 2408 | Q18: 3172 | R18: 5211 | S18: 4367 | T18: 4047 | U18: 0 | V18: 0 | W18: 0 | X18: 0 | Y18: 16908
A19: 13 | B19: 7.M | C19: 1705-090 | D19: Drda David | E19: 14 | F19: 8 | G19: 9 | H19: 17 | I19: 16 | J19: 8 | O19: 2814 | P19: 3641 | Q19: 4047 | R19: 3598 | S19: 2618 | T19: 2618 | U19: 0 | V19: 0 | W19: 0 | X19: 0 | Y19: 14100
A20: 14 | B20: 8.M | C20: 1607-165 | D20: Himmel Jiří | E20: 16 | G20: 11 | H20: 14 | I20: 14 | J20: 12 | O20: 2408 | P20: 0 | Q20: 3437 | R20: 4188 | S20: 3024 | T20: 1385 | U20: 0 | V20: 0 | W20: 0 | X20: 0 | Y20: 13057
A21: 15 | B21: 9.M | C21: 1402-384 | D21: Šplíchal Filip | E21: 7 | F21: 10 | H21: 12 | O21: 4921 | P21: 2963 | Q21: 0 | R21: 4657 | S21: 0 | T21: 0 | U21: 0 | V21: 0 | W21: 0 | X21: 0 | Y21: 12541
A22: 16 | B22: 10.M | C22: 2101-375 | D22: Pospíšil Martin | H22: 1 | O22: 0 | P22: 0 | Q22: 0 | R22: 12211 | S22: 0 | T22: 0 | U22: 0 | V22: 0 | W22: 0 | X22: 0 | Y22: 12211
A23: 17 | B23: 7.F | C23: 1130-352 | D23: Švíková Bára | E23: 19 | G23: 16 | H23: 20 | I23: 13 | J23: 6 | O23: 1886 | P23: 0 | Q23: 2298 | R23: 3104 | S23: 3249 | T23: 3493 | U23: 0 | V23: 0 | W23: 0 | X23: 0 | Y23: 12144
A24: 18 | B24: 11.M | C24: 1609-256 | D24: Nevelöš Tibor | E24: 10 | G24: 8 | I24: 11 | O24: 3837 | P24: 0 | Q24: 4405 | R24: 0 | S24: 3757 | T24: 0 | U24: 0 | V24: 0 | W24: 0 | X24: 0 | Y24: 11999
A25: 19 | B25: 8.F | C25: 1401-459 | D25: Altmannová Kateřina | E25: 18 | G25: 15 | H25: 15 | I25: 17 | J25: 13 | O25: 2050 | P25: 0 | Q25: 2494 | R25: 3979 | S25: 2434 | T25: 1142 | U25: 0 | V25: 0 | W25: 0 | X25: 0 | Y25: 10957
A26: 20 | B26: 12.M | C26: 1705-003 | D26: Štěpánek Jan | F26: 21 | H26: 2 | O26: 0 | P26: 707 | Q26: 0 | R26: 10104 | S26: 0 | T26: 0 | U26: 0 | V26: 0 | W26: 0 | X26: 0 | Y26: 10811
A27: 21 | B27: 13.M | C27: 1609-279 | D27: Říčan Jaroslav | E27: 2 | F27: 14 | O27: 8730 | P27: 1940 | Q27: 0 | R27: 0 | S27: 0 | T27: 0 | U27: 0 | V27: 0 | W27: 0 | X27: 0 | Y27: 10670
A28: 22 | B28: 14.M | C28: 2001-225 | D28: Netík Pavel | E28: 21 | F28: 11 | G28: 14 | H28: 18 | O28: 1582 | P28: 2673 | Q28: 2704 | R28: 3424 | S28: 0 | T28: 0 | U28: 0 | V28: 0 | W28: 0 | X28: 0 | Y28: 10383
A29: 23 | B29: 9.F | C29: 1705-074 | D29: Štěpánková Markéta | E29: 24 | F29: 18 | G29: 17 | H29: 30 | I29: 18 | J29: 7 | O29: 1176 | P29: 1176 | Q29: 2113 | R29: 1871 | S29: 2260 | T29: 3024 | U29: 0 | V29: 0 | W29: 0 | X29: 0 | Y29: 9268
A30: 24 | B30: 15.M | C30: 1607-169 | D30: Parchomenko Ondřej | F30: 17 | H30: 29 | I30: 15 | J30: 10 | O30: 0 | P30: 1349 | Q30: 0 | R30: 1974 | S30: 2814 | T30: 1940 | U30: 0 | V30: 0 | W30: 0 | X30: 0 | Y30: 8077
A31: 25 | B31: 16.M | C31: 2110-185 | D31: Diviš Lukáš | E31: 23 | G31: 13 | H31: 24 | O31: 1305 | P31: 0 | Q31: 2929 | R31: 2550 | S31: 0 | T31: 0 | U31: 0 | V31: 0 | W31: 0 | X31: 0 | Y31: 6784
A32: 26 | B32: 10.F | C32: 2201-036 | D32: Piňosová Kristýna | G32: 20 | H32: 26 | I32: 19 | O32: 0 | P32: 0 | Q32: 1619 | R32: 2306 | S32: 2096 | T32: 0 | U32: 0 | V32: 0 | W32: 0 | X32: 0 | Y32: 6021
A33: 27 | B33: 17.M | C33: 2110-178 | D33: Skřepek Šimon | E33: 22 | F33: 16 | H33: 21 | O33: 1440 | P33: 1534 | Q33: 0 | R33: 2956 | S33: 0 | T33: 0 | U33: 0 | V33: 0 | W33: 0 | X33: 0 | Y33: 5930
A34: 28 | B34: 11.F | C34: 1705-169 | D34: Lojínová Alexandra | E34: 25 | F34: 19 | G34: 19 | H34: 36 | I34: 23 | J34: 14 | O34: 1052 | P34: 1011 | Q34: 1775 | R34: 1317 | S34: 1515 | T34: 917 | U34: 0 | V34: 0 | W34: 0 | X34: 0 | Y34: 5659
A35: 29 | B35: 18.M | C35: 1609-301 | D35: Tlapák Vojtěch | G35: 21 | H35: 25 | I35: 22 | O35: 0 | P35: 0 | Q35: 1471 | R35: 2426 | S35: 1650 | T35: 0 | U35: 0 | V35: 0 | W35: 0 | X35: 0 | Y35: 5547
A36: 30 | B36: 19.M | C36: 2110-173 | D36: Šeliga Teodor | E36: 28 | F36: 20 | G36: 23 | H36: 32 | I36: 21 | O36: 707 | P36: 855 | Q36: 1194 | R36: 1675 | S36: 1791 | T36: 0 | U36: 0 | V36: 0 | W36: 0 | X36: 0 | Y36: 5515
A37: 31 | B37: 20.M | C37: 1401-461 | D37: Altmann Tomáš | E37: 6 | O37: 5390 | P37: 0 | Q37: 0 | R37: 0 | S37: 0 | T37: 0 | U37: 0 | V37: 0 | W37: 0 | X37: 0 | Y37: 5390
A38: 32 | B38: 21.M | C38: 1705-100 | D38: Sadílek Pavel | F38: 15 | G38: 22 | I38: 20 | O38: 0 | P38: 1730 | Q38: 1330 | R38: 0 | S38: 1940 | T38: 0 | U38: 0 | V38: 0 | W38: 0 | X38: 0 | Y38: 5000
A39: 33 | B39: 22.M | C39: 2110-175 | D39: Wagner David | G39: 18 | H39: 22 | O39: =IF((E39>0),ROUND((101+1000*(LOG10($E$5)-LOG10(E39)))*$A$2,0),0) -> 0 | P39: =IF((F39>0),ROUND((101+1000*(LOG10($F$5)-LOG10(F39)))*$A$2,0),0) -> 0 | Q39: =IF((G39>0),ROUND((101+1000*(LOG10($G$5)-LOG10(G39)))*$A$2,0),0) -> 1940 | R39: =IF((H39>0),ROUND((101+1000*(LOG10($H$5)-LOG10(H39)))*$A$2,0),0) -> 2814 | S39: =IF((I39>0),ROUND((101+1000*(LOG10($I$5)-LOG10(I39)))*$A$2,0),0) -> 0 | T39: =IF((J39>0),ROUND((101+1000*(LOG10($J$5)-LOG10(J39)))*$A$2,0),0) -> 0 | U39: =IF((K39>0),ROUND((101+1000*(LOG10($K$5)-LOG10(K39)))*$A$2,0),0) -> 0 | V39: =IF((L39>0),ROUND((101+1000*(LOG10($L$5)-LOG10(L39)))*$A$2,0),0) -> 0 | W39: =IF((M39>0),ROUND((101+1000*(LOG10($M$5)-LOG10(M39)))*$A$2,0),0) -> 0 | X39: =IF((N39>0),ROUND((101+1000*(LOG10($N$5)-LOG10(N39)))*$A$2,0),0) -> 0 | Y39: =SUM(LARGE(O39:X39,1),LARGE(O39:X39,2),LARGE(O39:X39,3),LARGE(O39:X39,4)) -> 4754
A40: 34 | B40: 23.M | C40: 1609-145 | D40: Nevelöš Jan | E40: 8 | O40: 4515 | P40: 0 | Q40: 0 | R40: 0 | S40: 0 | T40: 0 | U40: 0 | V40: 0 | W40: 0 | X40: 0 | Y40: 4515
A41: 35 | B41: 24.M | C41: 1609-248 | D41: Vaszi Mikuláš | F41: 7 | O41: 0 | P41: 4047 | Q41: 0 | R41: 0 | S41: 0 | T41: 0 | U41: 0 | V41: 0 | W41: 0 | X41: 0 | Y41: 4047
A42: 36 | B42: 25.M | C42: 7019-076 | D42: Raška Marek | H42: 16 | O42: 0 | P42: 0 | Q42: 0 | R42: 3782 | S42: 0 | T42: 0 | U42: 0 | V42: 0 | W42: 0 | X42: 0 | Y42: 3782
A43: 37 | B43: 12.F | C43: 2110-191 | D43: Neckařová Martina | H43: 27 | I43: 24 | O43: 0 | P43: 0 | Q43: 0 | R43: 2192 | S43: 1385 | T43: 0 | U43: 0 | V43: 0 | W43: 0 | X43: 0 | Y43: 3577
A44: 38 | B44: 13.F | C44: 2110-189 | D44: Samcová Klára | G44: 25 | H44: 33 | I44: 27 | O44: 0 | P44: 0 | Q44: 941 | R44: 1582 | S44: 1027 | T44: 0 | U44: 0 | V44: 0 | W44: 0 | X44: 0 | Y44: 3550
A45: 39 | B45: 26.M | C45: 2001-220 | D45: Provazník Samuel | E45: 26 | G45: 24 | H45: 34 | O45: 932 | P45: 0 | Q45: 1065 | R45: 1491 | S45: 0 | T45: 0 | U45: 0 | V45: 0 | W45: 0 | X45: 0 | Y45: 3488
A46: 40 | B46: 27.M | C46: 1609-298 | D46: Rais Michal | H46: 31 | I46: 26 | O46: 0 | P46: 0 | Q46: 0 | R46: 1772 | S46: 1142 | T46: 0 | U46: 0 | V46: 0 | W46: 0 | X46: 0 | Y46: 2914
A47: 41 | B47: 14.F | C47: 1609-308 | D47: Tlapáková Zuzana | G47: 26 | H47: 38 | I47: 28 | O47: 0 | P47: 0 | Q47: 822 | R47: 1153 | S47: 917 | T47: 0 | U47: 0 | V47: 0 | W47: 0 | X47: 0 | Y47: 2892
A48: 42 | B48: 15.F | C48: 2110-183 | D48: Komendová Kateřina | H48: 23 | O48: 0 | P48: 0 | Q48: 0 | R48: 2679 | S48: 0 | T48: 0 | U48: 0 | V48: 0 | W48: 0 | X48: 0 | Y48: 2679
A49: 43 | B49: 28.M | C49: 1213-199 | D49: Hasman Radim | H49: 37 | I49: 25 | O49: 0 | P49: 0 | Q49: 0 | R49: 1234 | S49: 1261 | T49: 0 | U49: 0 | V49: 0 | W49: 0 | X49: 0 | Y49: 2495
A50: 44 | B50: 29.M | C50: 1130-235 | D50: Dvořák Rudolf | H50: 28 | O50: 0 | P50: 0 | Q50: 0 | R50: 2081 | S50: 0 | T50: 0 | U50: 0 | V50: 0 | W50: 0 | X50: 0 | Y50: 2081
A51: 45 | B51: 30.M | C51: 7019-390 | D51: Slíva Matěj | H51: 41 | J51: 15 | O51: 0 | P51: 0 | Q51: 0 | R51: 922 | S51: 0 | T51: 707 | U51: 0 | V51: 0 | W51: 0 | X51: 0 | Y51: 1629
A52: 46 | B52: 31.M | C52: 1609-303 | D52: Kříž Jan | H52: 44 | I52: 29 | O52: 0 | P52: 0 | Q52: 0 | R52: 707 | S52: 810 | T52: 0 | U52: 0 | V52: 0 | W52: 0 | X52: 0 | Y52: 1517
A53: 47 | B53: 16.F | C53: 2110-184 | D53: Richterová Ludmila | H53: 35 | O53: 0 | P53: 0 | Q53: 0 | R53: 1403 | S53: 0 | T53: 0 | U53: 0 | V53: 0 | W53: 0 | X53: 0 | Y53: 1403
A54: 48 | B54: 32.M | C54: 2110-186 | D54: Marek Filip | H54: 39 | O54: 0 | P54: 0 | Q54: 0 | R54: 1074 | S54: 0 | T54: 0 | U54: 0 | V54: 0 | W54: 0 | X54: 0 | Y54: 1074
A55: 49 | B55: 17.F | C55: 2110-190 | D55: Hykrdová Markéta | H55: 40 | O55: 0 | P55: 0 | Q55: 0 | R55: 997 | S55: 0 | T55: 0 | U55: 0 | V55: 0 | W55: 0 | X55: 0 | Y55: 997
A56: 50 | B56: 33.M | C56: 1705-174 | D56: Voříšek Filip | H56: 44 | O56: 0 | P56: 0 | Q56: 0 | R56: 707 | S56: 0 | T56: 0 | U56: 0 | V56: 0 | W56: 0 | X56: 0 | Y56: 707
A57: 50 | B57: 33.M | C57: 1402-460 | D57: Loužek Štěpán | H57: 44 | O57: =IF((E57>0),ROUND((101+1000*(LOG10($E$5)-LOG10(E57)))*$A$2,0),0) -> 0 | P57: =IF((F57>0),ROUND((101+1000*(LOG10($F$5)-LOG10(F57)))*$A$2,0),0) -> 0 | Q57: =IF((G57>0),ROUND((101+1000*(LOG10($G$5)-LOG10(G57)))*$A$2,0),0) -> 0 | R57: =IF((H57>0),ROUND((101+1000*(LOG10($H$5)-LOG10(H57)))*$A$2,0),0) -> 707 | S57: =IF((I57>0),ROUND((101+1000*(LOG10($I$5)-LOG10(I57)))*$A$2,0),0) -> 0 | T57: =IF((J57>0),ROUND((101+1000*(LOG10($J$5)-LOG10(J57)))*$A$2,0),0) -> 0 | U57: =IF((K57>0),ROUND((101+1000*(LOG10($K$5)-LOG10(K57)))*$A$2,0),0) -> 0 | V57: =IF((L57>0),ROUND((101+1000*(LOG10($L$5)-LOG10(L57)))*$A$2,0),0) -> 0 | W57: =IF((M57>0),ROUND((101+1000*(LOG10($M$5)-LOG10(M57)))*$A$2,0),0) -> 0 | X57: =IF((N57>0),ROUND((101+1000*(LOG10($N$5)-LOG10(N57)))*$A$2,0),0) -> 0 | Y57: =SUM(LARGE(O57:X57,1),LARGE(O57:X57,2),LARGE(O57:X57,3),LARGE(O57:X57,4)) -> 707
A58: 50 | B58: 18.F | C58: 9999-001 | D58: Rašková Kateřina | I58: 30 | O58: 0 | P58: 0 | Q58: 0 | R58: 0 | S58: 707 | T58: 0 | U58: 0 | V58: 0 | W58: 0 | X58: 0 | Y58: 707

Sheet Český pohár - kategorie
A1: 7P | B1: 2017 | C1: Pouze členi | D1: A | I1: Věk min: | M1: Rok: | W1: created by: Zdeněk Vykydal
A2: 7 | B2: koeficient pro logaritmické body | I2: Věk max:
A4: Bic Techno 293 - Český pohár 2017 Všichni CZE | E4: 172120 | F4: 171803 | G4: 172002 | H4: 172005 | I4: 171615 | J4: 171620 | O4: Věstonická Venuše | P4: Pohár Rozkoše | Q4: Pohár Vysočiny | R4: Závod mladých nadějí | S4: Nechranická buchta | T4: Cena YCN
D5: Poč. záv./CTL | E5: 28 | F5: 21 | G5: 27 | H5: 44 | I5: 30 | J5: 15 | O5: 172120 | P5: 171803 | Q5: 172002 | R5: 172005 | S5: 171615 | T5: 171620 | X5: =IF(N4,N4,"") -> 
A6: Poř. celk. | B6: Kat. | C6: Reg. číslo | D6: Jméno | E6: Poř. | F6: Poř. | G6: Poř. | H6: Poř. | I6: Poř. | J6: Poř. | K6: Poř. | L6: Poř. | M6: Poř. | N6: Poř. | O6: Body | P6: Body | Q6: Body | R6: Body | S6: Body | T6: Body | U6: Body | V6: Body | W6: Body | X6: Body | Y6: Celkem
A7: 1 | B7: 1.U17M | C7: 2110-172 | D7: Mikulec Martin | E7: 3 | F7: 1 | G7: 1 | H7: 11 | I7: 1 | J7: 1 | O7: =IF((E7>0),ROUND((101+1000*(LOG10($E$5)-LOG10(E7)))*$A$2,0),0) -> 7497 | P7: =IF((F7>0),ROUND((101+1000*(LOG10($F$5)-LOG10(F7)))*$A$2,0),0) -> 9963 | Q7: =IF((G7>0),ROUND((101+1000*(LOG10($G$5)-LOG10(G7)))*$A$2,0),0) -> 10727 | R7: =IF((H7>0),ROUND((101+1000*(LOG10($H$5)-LOG10(H7)))*$A$2,0),0) -> 4921 | S7: =IF((I7>0),ROUND((101+1000*(LOG10($I$5)-LOG10(I7)))*$A$2,0),0) -> 11047 | T7: =IF((J7>0),ROUND((101+1000*(LOG10($J$5)-LOG10(J7)))*$A$2,0),0) -> 8940 | U7: =IF((K7>0),ROUND((101+1000*(LOG10($K$5)-LOG10(K7)))*$A$2,0),0) -> 0 | V7: =IF((L7>0),ROUND((101+1000*(LOG10($L$5)-LOG10(L7)))*$A$2,0),0) -> 0 | W7: =IF((M7>0),ROUND((101+1000*(LOG10($M$5)-LOG10(M7)))*$A$2,0),0) -> 0 | X7: =IF((N7>0),ROUND((101+1000*(LOG10($N$5)-LOG10(N7)))*$A$2,0),0) -> 0 | Y7: =SUM(LARGE(O7:X7,1),LARGE(O7:X7,2),LARGE(O7:X7,3),LARGE(O7:X7,4)) -> 40677
A8: 2 | B8: 2.U17M | C8: 1705-145 | D8: Horáček Jonáš | E8: 1 | F8: 3 | G8: 4 | H8: 6 | I8: 2 | O8: =IF((E8>0),ROUND((101+1000*(LOG10($E$5)-LOG10(E8)))*$A$2,0),0) -> 10837 | P8: =IF((F8>0),ROUND((101+1000*(LOG10($F$5)-LOG10(F8)))*$A$2,0),0) -> 6623 | Q8: =IF((G8>0),ROUND((101+1000*(LOG10($G$5)-LOG10(G8)))*$A$2,0),0) -> 6512 | R8: =IF((H8>0),ROUND((101+1000*(LOG10($H$5)-LOG10(H8)))*$A$2,0),0) -> 6764 | S8: =IF((I8>0),ROUND((101+1000*(LOG10($I$5)-LOG10(I8)))*$A$2,0),0) -> 8940 | T8: =IF((J8>0),ROUND((101+1000*(LOG10($J$5)-LOG10(J8)))*$A$2,0),0) -> 0 | U8: =IF((K8>0),ROUND((101+1000*(LOG10($K$5)-LOG10(K8)))*$A$2,0),0) -> 0 | V8: =IF((L8>0),ROUND((101+1000*(LOG10($L$5)-LOG10(L8)))*$A$2,0),0) -> 0 | W8: =IF((M8>0),ROUND((101+1000*(LOG10($M$5)-LOG10(M8)))*$A$2,0),0) -> 0 | X8: =IF((N8>0),ROUND((101+1000*(LOG10($N$5)-LOG10(N8)))*$A$2,0),0) -> 0 | Y8: =SUM(LARGE(O8:X8,1),LARGE(O8:X8,2),LARGE(O8:X8,3),LARGE(O8:X8,4)) -> 33164
A9: 3 | B9: 1.U15M | C9: 1801-167 | D9: Štěpánský Adam | E9: 11 | F9: 5 | G9: 3 | H9: 3 | O9: =IF((E9>0),ROUND((101+1000*(LOG10($E$5)-LOG10(E9)))*$A$2,0),0) -> 3547 | P9: =IF((F9>0),ROUND((101+1000*(LOG10($F$5)-LOG10(F9)))*$A$2,0),0) -> 5070 | Q9: =IF((G9>0),ROUND((101+1000*(LOG10($G$5)-LOG10(G9)))*$A$2,0),0) -> 7387 | R9: =IF((H9>0),ROUND((101+1000*(LOG10($H$5)-LOG10(H9)))*$A$2,0),0) -> 8871 | S9: =IF((I9>0),ROUND((101+1000*(LOG10($I$5)-LOG10(I9)))*$A$2,0),0) -> 0 | T9: =IF((J9>0),ROUND((101+1000*(LOG10($J$5)-LOG10(J9)))*$A$2,0),0) -> 0 | U9: =IF((K9>0),ROUND((101+1000*(LOG10($K$5)-LOG10(K9)))*$A$2,0),0) -> 0 | V9: =IF((L9>0),ROUND((101+1000*(LOG10($L$5)-LOG10(L9)))*$A$2,0),0) -> 0 | W9: =IF((M9>0),ROUND((101+1000*(LOG10($M$5)-LOG10(M9)))*$A$2,0),0) -> 0 | X9: =IF((N9>0),ROUND((101+1000*(LOG10($N$5)-LOG10(N9)))*$A$2,0),0) -> 0 | Y9: =SUM(LARGE(O9:X9,1),LARGE(O9:X9,2),LARGE(O9:X9,3),LARGE(O9:X9,4)) -> 24875
A10: 4 | B10: 1.U17F | C10: 1607-166 | D10: Himmelová Klára | E10: 17 | G10: 7 | H10: 4 | I10: 6 | J10: 4 | O10: =IF((E10>0),ROUND((101+1000*(LOG10($E$5)-LOG10(E10)))*$A$2,0),0) -> 2224 | P10: =IF((F10>0),ROUND((101+1000*(LOG10($F$5)-LOG10(F10)))*$A$2,0),0) -> 0 | Q10: =IF((G10>0),ROUND((101+1000*(LOG10($G$5)-LOG10(G10)))*$A$2,0),0) -> 4811 | R10: =IF((H10>0),ROUND((101+1000*(LOG10($H$5)-LOG10(H10)))*$A$2,0),0) -> 7997 | S10: =IF((I10>0),ROUND((101+1000*(LOG10($I$5)-LOG10(I10)))*$A$2,0),0) -> 5600 | T10: =IF((J10>0),ROUND((101+1000*(LOG10($J$5)-LOG10(J10)))*$A$2,0),0) -> 4725 | U10: =IF((K10>0),ROUND((101+1000*(LOG10($K$5)-LOG10(K10)))*$A$2,0),0) -> 0 | V10: =IF((L10>0),ROUND((101+1000*(LOG10($L$5)-LOG10(L10)))*$A$2,0),0) -> 0 | W10: =IF((M10>0),ROUND((101+1000*(LOG10($M$5)-LOG10(M10)))*$A$2,0),0) -> 0 | X10: =IF((N10>0),ROUND((101+1000*(LOG10($N$5)-LOG10(N10)))*$A$2,0),0) -> 0 | Y10: =SUM(LARGE(O10:X10,1),LARGE(O10:X10,2),LARGE(O10:X10,3),LARGE(O10:X10,4)) -> 23133
A11: 5 | B11: 3.U17M | C11: 1609-212 | D11: Müller Ondřej | E11: 28 | F11: 2 | G11: 27 | H11: 19 | I11: 5 | J11: 3 | O11: =IF((E11>0),ROUND((101+1000*(LOG10($E$5)-LOG10(E11)))*$A$2,0),0) -> 707 | P11: =IF((F11>0),ROUND((101+1000*(LOG10($F$5)-LOG10(F11)))*$A$2,0),0) -> 7855 | Q11: =IF((G11>0),ROUND((101+1000*(LOG10($G$5)-LOG10(G11)))*$A$2,0),0) -> 707 | R11: =IF((H11>0),ROUND((101+1000*(LOG10($H$5)-LOG10(H11)))*$A$2,0),0) -> 3260 | S11: =IF((I11>0),ROUND((101+1000*(LOG10($I$5)-LOG10(I11)))*$A$2,0),0) -> 6154 | T11: =IF((J11>0),ROUND((101+1000*(LOG10($J$5)-LOG10(J11)))*$A$2,0),0) -> 5600 | U11: =IF((K11>0),ROUND((101+1000*(LOG10($K$5)-LOG10(K11)))*$A$2,0),0) -> 0 | V11: =IF((L11>0),ROUND((101+1000*(LOG10($L$5)-LOG10(L11)))*$A$2,0),0) -> 0 | W11: =IF((M11>0),ROUND((101+1000*(LOG10($M$5)-LOG10(M11)))*$A$2,0),0) -> 0 | X11: =IF((N11>0),ROUND((101+1000*(LOG10($N$5)-LOG10(N11)))*$A$2,0),0) -> 0 | Y11: =SUM(LARGE(O11:X11,1),LARGE(O11:X11,2),LARGE(O11:X11,3),LARGE(O11:X11,4)) -> 22869
A12: 6 | B12: 2.U15M | C12: 1609-255 | D12: Nevelöš Adam | E12: 5 | G12: 2 | I12: 3 | O12: =IF((E12>0),ROUND((101+1000*(LOG10($E$5)-LOG10(E12)))*$A$2,0),0) -> 5944 | P12: =IF((F12>0),ROUND((101+1000*(LOG10($F$5)-LOG10(F12)))*$A$2,0),0) -> 0 | Q12: =IF((G12>0),ROUND((101+1000*(LOG10($G$5)-LOG10(G12)))*$A$2,0),0) -> 8619 | R12: =IF((H12>0),ROUND((101+1000*(LOG10($H$5)-LOG10(H12)))*$A$2,0),0) -> 0 | S12: =IF((I12>0),ROUND((101+1000*(LOG10($I$5)-LOG10(I12)))*$A$2,0),0) -> 7707 | T12: =IF((J12>0),ROUND((101+1000*(LOG10($J$5)-LOG10(J12)))*$A$2,0),0) -> 0 | U12: =IF((K12>0),ROUND((101+1000*(LOG10($K$5)-LOG10(K12)))*$A$2,0),0) -> 0 | V12: =IF((L12>0),ROUND((101+1000*(LOG10($L$5)-LOG10(L12)))*$A$2,0),0) -> 0 | W12: =IF((M12>0),ROUND((101+1000*(LOG10($M$5)-LOG10(M12)))*$A$2,0),0) -> 0 | X12: =IF((N12>0),ROUND((101+1000*(LOG10($N$5)-LOG10(N12)))*$A$2,0),0) -> 0 | Y12: =SUM(LARGE(O12:X12,1),LARGE(O12:X12,2),LARGE(O12:X12,3),LARGE(O12:X12,4)) -> 22270
A13: 7 | B13: 1.U13F | C13: 2110-182 | D13: Chalupníková Kristýna | E13: 13 | F13: 6 | G13: 5 | H13: 5 | O13: =IF((E13>0),ROUND((101+1000*(LOG10($E$5)-LOG10(E13)))*$A$2,0),0) -> 3040 | P13: =IF((F13>0),ROUND((101+1000*(LOG10($F$5)-LOG10(F13)))*$A$2,0),0) -> 4515 | Q13: =IF((G13>0),ROUND((101+1000*(LOG10($G$5)-LOG10(G13)))*$A$2,0),0) -> 5834 | R13: =IF((H13>0),ROUND((101+1000*(LOG10($H$5)-LOG10(H13)))*$A$2,0),0) -> 7318 | S13: =IF((I13>0),ROUND((101+1000*(LOG10($I$5)-LOG10(I13)))*$A$2,0),0) -> 0 | T13: =IF((J13>0),ROUND((101+1000*(LOG10($J$5)-LOG10(J13)))*$A$2,0),0) -> 0 | U13: =IF((K13>0),ROUND((101+1000*(LOG10($K$5)-LOG10(K13)))*$A$2,0),0) -> 0 | V13: =IF((L13>0),ROUND((101+1000*(LOG10($L$5)-LOG10(L13)))*$A$2,0),0) -> 0 | W13: =IF((M13>0),ROUND((101+1000*(LOG10($M$5)-LOG10(M13)))*$A$2,0),0) -> 0 | X13: =IF((N13>0),ROUND((101+1000*(LOG10($N$5)-LOG10(N13)))*$A$2,0),0) -> 0 | Y13: =SUM(LARGE(O13:X13,1),LARGE(O13:X13,2),LARGE(O13:X13,3),LARGE(O13:X13,4)) -> 20707
A14: 8 | B14: 4.U17M | C14: 1705-085 | D14: Sadílek Adam | E14: 4 | F14: 9 | G14: 6 | H14: 13 | I14: 12 | J14: 11 | O14: =IF((E14>0),ROUND((101+1000*(LOG10($E$5)-LOG10(E14)))*$A$2,0),0) -> 6623 | P14: =IF((F14>0),ROUND((101+1000*(LOG10($F$5)-LOG10(F14)))*$A$2,0),0) -> 3283 | Q14: =IF((G14>0),ROUND((101+1000*(LOG10($G$5)-LOG10(G14)))*$A$2,0),0) -> 5279 | R14: =IF((H14>0),ROUND((101+1000*(LOG10($H$5)-LOG10(H14)))*$A$2,0),0) -> 4414 | S14: =IF((I14>0),ROUND((101+1000*(LOG10($I$5)-LOG10(I14)))*$A$2,0),0) -> 3493 | T14: =IF((J14>0),ROUND((101+1000*(LOG10($J$5)-LOG10(J14)))*$A$2,0),0) -> 1650 | U14: =IF((K14>0),ROUND((101+1000*(LOG10($K$5)-LOG10(K14)))*$A$2,0),0) -> 0 | V14: =IF((L14>0),ROUND((101+1000*(LOG10($L$5)-LOG10(L14)))*$A$2,0),0) -> 0 | W14: =IF((M14>0),ROUND((101+1000*(LOG10($M$5)-LOG10(M14)))*$A$2,0),0) -> 0 | X14: =IF((N14>0),ROUND((101+1000*(LOG10($N$5)-LOG10(N14)))*$A$2,0),0) -> 0 | Y14: =SUM(LARGE(O14:X14,1),LARGE(O14:X14,2),LARGE(O14:X14,3),LARGE(O14:X14,4)) -> 19809
A15: 9 | B15: 2.U17F | C15: 1130-276 | D15: Švíková Kateřina | E15: 20 | H15: 7 | I15: 8 | J15: 2 | O15: =IF((E15>0),ROUND((101+1000*(LOG10($E$5)-LOG10(E15)))*$A$2,0),0) -> 1730 | P15: =IF((F15>0),ROUND((101+1000*(LOG10($F$5)-LOG10(F15)))*$A$2,0),0) -> 0 | Q15: =IF((G15>0),ROUND((101+1000*(LOG10($G$5)-LOG10(G15)))*$A$2,0),0) -> 0 | R15: =IF((H15>0),ROUND((101+1000*(LOG10($H$5)-LOG10(H15)))*$A$2,0),0) -> 6295 | S15: =IF((I15>0),ROUND((101+1000*(LOG10($I$5)-LOG10(I15)))*$A$2,0),0) -> 4725 | T15: =IF((J15>0),ROUND((101+1000*(LOG10($J$5)-LOG10(J15)))*$A$2,0),0) -> 6832 | U15: =IF((K15>0),ROUND((101+1000*(LOG10($K$5)-LOG10(K15)))*$A$2,0),0) -> 0 | V15: =IF((L15>0),ROUND((101+1000*(LOG10($L$5)-LOG10(L15)))*$A$2,0),0) -> 0 | W15: =IF((M15>0),ROUND((101+1000*(LOG10($M$5)-LOG10(M15)))*$A$2,0),0) -> 0 | X15: =IF((N15>0),ROUND((101+1000*(LOG10($N$5)-LOG10(N15)))*$A$2,0),0) -> 0 | Y15: =SUM(LARGE(O15:X15,1),LARGE(O15:X15,2),LARGE(O15:X15,3),LARGE(O15:X15,4)) -> 19582
A16: 10 | B16: 1.O17F | C16: 7019-377 | D16: Rašková Adéla | E16: 9 | F16: 4 | H16: 9 | I16: 10 | O16: =IF((E16>0),ROUND((101+1000*(LOG10($E$5)-LOG10(E16)))*$A$2,0),0) -> 4157 | P16: =IF((F16>0),ROUND((101+1000*(LOG10($F$5)-LOG10(F16)))*$A$2,0),0) -> 5748 | Q16: =IF((G16>0),ROUND((101+1000*(LOG10($G$5)-LOG10(G16)))*$A$2,0),0) -> 0 | R16: =IF((H16>0),ROUND((101+1000*(LOG10($H$5)-LOG10(H16)))*$A$2,0),0) -> 5531 | S16: =IF((I16>0),ROUND((101+1000*(LOG10($I$5)-LOG10(I16)))*$A$2,0),0) -> 4047 | T16: =IF((J16>0),ROUND((101+1000*(LOG10($J$5)-LOG10(J16)))*$A$2,0),0) -> 0 | U16: =IF((K16>0),ROUND((101+1000*(LOG10($K$5)-LOG10(K16)))*$A$2,0),0) -> 0 | V16: =IF((L16>0),ROUND((101+1000*(LOG10($L$5)-LOG10(L16)))*$A$2,0),0) -> 0 | W16: =IF((M16>0),ROUND((101+1000*(LOG10($M$5)-LOG10(M16)))*$A$2,0),0) -> 0 | X16: =IF((N16>0),ROUND((101+1000*(LOG10($N$5)-LOG10(N16)))*$A$2,0),0) -> 0 | Y16: =SUM(LARGE(O16:X16,1),LARGE(O16:X16,2),LARGE(O16:X16,3),LARGE(O16:X16,4)) -> 19483
A17: 11 | B17: 2.U13F | C17: 1705-086 | D17: Sadílková Nela | E17: 15 | F17: 13 | G17: 10 | H17: 8 | I17: 7 | J17: 9 | O17: =IF((E17>0),ROUND((101+1000*(LOG10($E$5)-LOG10(E17)))*$A$2,0),0) -> 2604 | P17: =IF((F17>0),ROUND((101+1000*(LOG10($F$5)-LOG10(F17)))*$A$2,0),0) -> 2165 | Q17: =IF((G17>0),ROUND((101+1000*(LOG10($G$5)-LOG10(G17)))*$A$2,0),0) -> 3727 | R17: =IF((H17>0),ROUND((101+1000*(LOG10($H$5)-LOG10(H17)))*$A$2,0),0) -> 5890 | S17: =IF((I17>0),ROUND((101+1000*(LOG10($I$5)-LOG10(I17)))*$A$2,0),0) -> 5131 | T17: =IF((J17>0),ROUND((101+1000*(LOG10($J$5)-LOG10(J17)))*$A$2,0),0) -> 2260 | U17: =IF((K17>0),ROUND((101+1000*(LOG10($K$5)-LOG10(K17)))*$A$2,0),0) -> 0 | V17: =IF((L17>0),ROUND((101+1000*(LOG10($L$5)-LOG10(L17)))*$A$2,0),0) -> 0 | W17: =IF((M17>0),ROUND((101+1000*(LOG10($M$5)-LOG10(M17)))*$A$2,0),0) -> 0 | X17: =IF((N17>0),ROUND((101+1000*(LOG10($N$5)-LOG10(N17)))*$A$2,0),0) -> 0 | Y17: =SUM(LARGE(O17:X17,1),LARGE(O17:X17,2),LARGE(O17:X17,3),LARGE(O17:X17,4)) -> 17352
A18: 12 | B18: 3.U13F | C18: 1609-278 | D18: Říčanová Nicol | E18: 12 | F18: 12 | G18: 12 | H18: 10 | I18: 9 | J18: 5 | O18: =IF((E18>0),ROUND((101+1000*(LOG10($E$5)-LOG10(E18)))*$A$2,0),0) -> 3283 | P18: =IF((F18>0),ROUND((101+1000*(LOG10($F$5)-LOG10(F18)))*$A$2,0),0) -> 2408 | Q18: =IF((G18>0),ROUND((101+1000*(LOG10($G$5)-LOG10(G18)))*$A$2,0),0) -> 3172 | R18: =IF((H18>0),ROUND((101+1000*(LOG10($H$5)-LOG10(H18)))*$A$2,0),0) -> 5211 | S18: =IF((I18>0),ROUND((101+1000*(LOG10($I$5)-LOG10(I18)))*$A$2,0),0) -> 4367 | T18: =IF((J18>0),ROUND((101+1000*(LOG10($J$5)-LOG10(J18)))*$A$2,0),0) -> 4047 | U18: =IF((K18>0),ROUND((101+1000*(LOG10($K$5)-LOG10(K18)))*$A$2,0),0) -> 0 | V18: =IF((L18>0),ROUND((101+1000*(LOG10($L$5)-LOG10(L18)))*$A$2,0),0) -> 0 | W18: =IF((M18>0),ROUND((101+1000*(LOG10($M$5)-LOG10(M18)))*$A$2,0),0) -> 0 | X18: =IF((N18>0),ROUND((101+1000*(LOG10($N$5)-LOG10(N18)))*$A$2,0),0) -> 0 | Y18: =SUM(LARGE(O18:X18,1),LARGE(O18:X18,2),LARGE(O18:X18,3),LARGE(O18:X18,4)) -> 16908
A19: 13 | B19: 1.U13M | C19: 1705-090 | D19: Drda David | E19: 14 | F19: 8 | G19: 9 | H19: 17 | I19: 16 | J19: 8 | O19: =IF((E19>0),ROUND((101+1000*(LOG10($E$5)-LOG10(E19)))*$A$2,0),0) -> 2814 | P19: =IF((F19>0),ROUND((101+1000*(LOG10($F$5)-LOG10(F19)))*$A$2,0),0) -> 3641 | Q19: =IF((G19>0),ROUND((101+1000*(LOG10($G$5)-LOG10(G19)))*$A$2,0),0) -> 4047 | R19: =IF((H19>0),ROUND((101+1000*(LOG10($H$5)-LOG10(H19)))*$A$2,0),0) -> 3598 | S19: =IF((I19>0),ROUND((101+1000*(LOG10($I$5)-LOG10(I19)))*$A$2,0),0) -> 2618 | T19: =IF((J19>0),ROUND((101+1000*(LOG10($J$5)-LOG10(J19)))*$A$2,0),0) -> 2618 | U19: =IF((K19>0),ROUND((101+1000*(LOG10($K$5)-LOG10(K19)))*$A$2,0),0) -> 0 | V19: =IF((L19>0),ROUND((101+1000*(LOG10($L$5)-LOG10(L19)))*$A$2,0),0) -> 0 | W19: =IF((M19>0),ROUND((101+1000*(LOG10($M$5)-LOG10(M19)))*$A$2,0),0) -> 0 | X19: =IF((N19>0),ROUND((101+1000*(LOG10($N$5)-LOG10(N19)))*$A$2,0),0) -> 0 | Y19: =SUM(LARGE(O19:X19,1),LARGE(O19:X19,2),LARGE(O19:X19,3),LARGE(O19:X19,4)) -> 14100
A20: 14 | B20: 3.U15M | C20: 1607-165 | D20: Himmel Jiří | E20: 16 | G20: 11 | H20: 14 | I20: 14 | J20: 12 | O20: =IF((E20>0),ROUND((101+1000*(LOG10($E$5)-LOG10(E20)))*$A$2,0),0) -> 2408 | P20: =IF((F20>0),ROUND((101+1000*(LOG10($F$5)-LOG10(F20)))*$A$2,0),0) -> 0 | Q20: =IF((G20>0),ROUND((101+1000*(LOG10($G$5)-LOG10(G20)))*$A$2,0),0) -> 3437 | R20: =IF((H20>0),ROUND((101+1000*(LOG10($H$5)-LOG10(H20)))*$A$2,0),0) -> 4188 | S20: =IF((I20>0),ROUND((101+1000*(LOG10($I$5)-LOG10(I20)))*$A$2,0),0) -> 3024 | T20: =IF((J20>0),ROUND((101+1000*(LOG10($J$5)-LOG10(J20)))*$A$2,0),0) -> 1385 | U20: =IF((K20>0),ROUND((101+1000*(LOG10($K$5)-LOG10(K20)))*$A$2,0),0) -> 0 | V20: =IF((L20>0),ROUND((101+1000*(LOG10($L$5)-LOG10(L20)))*$A$2,0),0) -> 0 | W20: =IF((M20>0),ROUND((101+1000*(LOG10($M$5)-LOG10(M20)))*$A$2,0),0) -> 0 | X20: =IF((N20>0),ROUND((101+1000*(LOG10($N$5)-LOG10(N20)))*$A$2,0),0) -> 0 | Y20: =SUM(LARGE(O20:X20,1),LARGE(O20:X20,2),LARGE(O20:X20,3),LARGE(O20:X20,4)) -> 13057
A21: 15 | B21: 5.U17M | C21: 1402-384 | D21: Šplíchal Filip | E21: 7 | F21: 10 | H21: 12 | O21: =IF((E21>0),ROUND((101+1000*(LOG10($E$5)-LOG10(E21)))*$A$2,0),0) -> 4921 | P21: =IF((F21>0),ROUND((101+1000*(LOG10($F$5)-LOG10(F21)))*$A$2,0),0) -> 2963 | Q21: =IF((G21>0),ROUND((101+1000*(LOG10($G$5)-LOG10(G21)))*$A$2,0),0) -> 0 | R21: =IF((H21>0),ROUND((101+1000*(LOG10($H$5)-LOG10(H21)))*$A$2,0),0) -> 4657 | S21: =IF((I21>0),ROUND((101+1000*(LOG10($I$5)-LOG10(I21)))*$A$2,0),0) -> 0 | T21: =IF((J21>0),ROUND((101+1000*(LOG10($J$5)-LOG10(J21)))*$A$2,0),0) -> 0 | U21: =IF((K21>0),ROUND((101+1000*(LOG10($K$5)-LOG10(K21)))*$A$2,0),0) -> 0 | V21: =IF((L21>0),ROUND((101+1000*(LOG10($L$5)-LOG10(L21)))*$A$2,0),0) -> 0 | W21: =IF((M21>0),ROUND((101+1000*(LOG10($M$5)-LOG10(M21)))*$A$2,0),0) -> 0 | X21: =IF((N21>0),ROUND((101+1000*(LOG10($N$5)-LOG10(N21)))*$A$2,0),0) -> 0 | Y21: =SUM(LARGE(O21:X21,1),LARGE(O21:X21,2),LARGE(O21:X21,3),LARGE(O21:X21,4)) -> 12541
A22: 16 | B22: 1.O17M | C22: 2101-375 | D22: Pospíšil Martin | H22: 1 | O22: =IF((E22>0),ROUND((101+1000*(LOG10($E$5)-LOG10(E22)))*$A$2,0),0) -> 0 | P22: =IF((F22>0),ROUND((101+1000*(LOG10($F$5)-LOG10(F22)))*$A$2,0),0) -> 0 | Q22: =IF((G22>0),ROUND((101+1000*(LOG10($G$5)-LOG10(G22)))*$A$2,0),0) -> 0 | R22: =IF((H22>0),ROUND((101+1000*(LOG10($H$5)-LOG10(H22)))*$A$2,0),0) -> 12211 | S22: =IF((I22>0),ROUND((101+1000*(LOG10($I$5)-LOG10(I22)))*$A$2,0),0) -> 0 | T22: =IF((J22>0),ROUND((101+1000*(LOG10($J$5)-LOG10(J22)))*$A$2,0),0) -> 0 | U22: =IF((K22>0),ROUND((101+1000*(LOG10($K$5)-LOG10(K22)))*$A$2,0),0) -> 0 | V22: =IF((L22>0),ROUND((101+1000*(LOG10($L$5)-LOG10(L22)))*$A$2,0),0) -> 0 | W22: =IF((M22>0),ROUND((101+1000*(LOG10($M$5)-LOG10(M22)))*$A$2,0),0) -> 0 | X22: =IF((N22>0),ROUND((101+1000*(LOG10($N$5)-LOG10(N22)))*$A$2,0),0) -> 0 | Y22: =SUM(LARGE(O22:X22,1),LARGE(O22:X22,2),LARGE(O22:X22,3),LARGE(O22:X22,4)) -> 12211
A23: 17 | B23: 1.U15F | C23: 1130-352 | D23: Švíková Bára | E23: 19 | G23: 16 | H23: 20 | I23: 13 | J23: 6 | O23: =IF((E23>0),ROUND((101+1000*(LOG10($E$5)-LOG10(E23)))*$A$2,0),0) -> 1886 | P23: =IF((F23>0),ROUND((101+1000*(LOG10($F$5)-LOG10(F23)))*$A$2,0),0) -> 0 | Q23: =IF((G23>0),ROUND((101+1000*(LOG10($G$5)-LOG10(G23)))*$A$2,0),0) -> 2298 | R23: =IF((H23>0),ROUND((101+1000*(LOG10($H$5)-LOG10(H23)))*$A$2,0),0) -> 3104 | S23: =IF((I23>0),ROUND((101+1000*(LOG10($I$5)-LOG10(I23)))*$A$2,0),0) -> 3249 | T23: =IF((J23>0),ROUND((101+1000*(LOG10($J$5)-LOG10(J23)))*$A$2,0),0) -> 3493 | U23: =IF((K23>0),ROUND((101+1000*(LOG10($K$5)-LOG10(K23)))*$A$2,0),0) -> 0 | V23: =IF((L23>0),ROUND((101+1000*(LOG10($L$5)-LOG10(L23)))*$A$2,0),0) -> 0 | W23: =IF((M23>0),ROUND((101+1000*(LOG10($M$5)-LOG10(M23)))*$A$2,0),0) -> 0 | X23: =IF((N23>0),ROUND((101+1000*(LOG10($N$5)-LOG10(N23)))*$A$2,0),0) -> 0 | Y23: =SUM(LARGE(O23:X23,1),LARGE(O23:X23,2),LARGE(O23:X23,3),LARGE(O23:X23,4)) -> 12144
A24: 18 | B24: 2.U13M | C24: 1609-256 | D24: Nevelöš Tibor | E24: 10 | G24: 8 | I24: 11 | O24: =IF((E24>0),ROUND((101+1000*(LOG10($E$5)-LOG10(E24)))*$A$2,0),0) -> 3837 | P24: =IF((F24>0),ROUND((101+1000*(LOG10($F$5)-LOG10(F24)))*$A$2,0),0) -> 0 | Q24: =IF((G24>0),ROUND((101+1000*(LOG10($G$5)-LOG10(G24)))*$A$2,0),0) -> 4405 | R24: =IF((H24>0),ROUND((101+1000*(LOG10($H$5)-LOG10(H24)))*$A$2,0),0) -> 0 | S24: =IF((I24>0),ROUND((101+1000*(LOG10($I$5)-LOG10(I24)))*$A$2,0),0) -> 3757 | T24: =IF((J24>0),ROUND((101+1000*(LOG10($J$5)-LOG10(J24)))*$A$2,0),0) -> 0 | U24: =IF((K24>0),ROUND((101+1000*(LOG10($K$5)-LOG10(K24)))*$A$2,0),0) -> 0 | V24: =IF((L24>0),ROUND((101+1000*(LOG10($L$5)-LOG10(L24)))*$A$2,0),0) -> 0 | W24: =IF((M24>0),ROUND((101+1000*(LOG10($M$5)-LOG10(M24)))*$A$2,0),0) -> 0 | X24: =IF((N24>0),ROUND((101+1000*(LOG10($N$5)-LOG10(N24)))*$A$2,0),0) -> 0 | Y24: =SUM(LARGE(O24:X24,1),LARGE(O24:X24,2),LARGE(O24:X24,3),LARGE(O24:X24,4)) -> 11999
A25: 19 | B25: 2.U15F | C25: 1401-459 | D25: Altmannová Kateřina | E25: 18 | G25: 15 | H25: 15 | I25: 17 | J25: 13 | O25: =IF((E25>0),ROUND((101+1000*(LOG10($E$5)-LOG10(E25)))*$A$2,0),0) -> 2050 | P25: =IF((F25>0),ROUND((101+1000*(LOG10($F$5)-LOG10(F25)))*$A$2,0),0) -> 0 | Q25: =IF((G25>0),ROUND((101+1000*(LOG10($G$5)-LOG10(G25)))*$A$2,0),0) -> 2494 | R25: =IF((H25>0),ROUND((101+1000*(LOG10($H$5)-LOG10(H25)))*$A$2,0),0) -> 3979 | S25: =IF((I25>0),ROUND((101+1000*(LOG10($I$5)-LOG10(I25)))*$A$2,0),0) -> 2434 | T25: =IF((J25>0),ROUND((101+1000*(LOG10($J$5)-LOG10(J25)))*$A$2,0),0) -> 1142 | U25: =IF((K25>0),ROUND((101+1000*(LOG10($K$5)-LOG10(K25)))*$A$2,0),0) -> 0 | V25: =IF((L25>0),ROUND((101+1000*(LOG10($L$5)-LOG10(L25)))*$A$2,0),0) -> 0 | W25: =IF((M25>0),ROUND((101+1000*(LOG10($M$5)-LOG10(M25)))*$A$2,0),0) -> 0 | X25: =IF((N25>0),ROUND((101+1000*(LOG10($N$5)-LOG10(N25)))*$A$2,0),0) -> 0 | Y25: =SUM(LARGE(O25:X25,1),LARGE(O25:X25,2),LARGE(O25:X25,3),LARGE(O25:X25,4)) -> 10957
A26: 20 | B26: 2.O17M | C26: 1705-003 | D26: Štěpánek Jan | F26: 21 | H26: 2 | O26: =IF((E26>0),ROUND((101+1000*(LOG10($E$5)-LOG10(E26)))*$A$2,0),0) -> 0 | P26: =IF((F26>0),ROUND((101+1000*(LOG10($F$5)-LOG10(F26)))*$A$2,0),0) -> 707 | Q26: =IF((G26>0),ROUND((101+1000*(LOG10($G$5)-LOG10(G26)))*$A$2,0),0) -> 0 | R26: =IF((H26>0),ROUND((101+1000*(LOG10($H$5)-LOG10(H26)))*$A$2,0),0) -> 10104 | S26: =IF((I26>0),ROUND((101+1000*(LOG10($I$5)-LOG10(I26)))*$A$2,0),0) -> 0 | T26: =IF((J26>0),ROUND((101+1000*(LOG10($J$5)-LOG10(J26)))*$A$2,0),0) -> 0 | U26: =IF((K26>0),ROUND((101+1000*(LOG10($K$5)-LOG10(K26)))*$A$2,0),0) -> 0 | V26: =IF((L26>0),ROUND((101+1000*(LOG10($L$5)-LOG10(L26)))*$A$2,0),0) -> 0 | W26: =IF((M26>0),ROUND((101+1000*(LOG10($M$5)-LOG10(M26)))*$A$2,0),0) -> 0 | X26: =IF((N26>0),ROUND((101+1000*(LOG10($N$5)-LOG10(N26)))*$A$2,0),0) -> 0 | Y26: =SUM(LARGE(O26:X26,1),LARGE(O26:X26,2),LARGE(O26:X26,3),LARGE(O26:X26,4)) -> 10811
A27: 21 | B27: 3.O17M | C27: 1609-279 | D27: Říčan Jaroslav | E27: 2 | F27: 14 | O27: =IF((E27>0),ROUND((101+1000*(LOG10($E$5)-LOG10(E27)))*$A$2,0),0) -> 8730 | P27: =IF((F27>0),ROUND((101+1000*(LOG10($F$5)-LOG10(F27)))*$A$2,0),0) -> 1940 | Q27: =IF((G27>0),ROUND((101+1000*(LOG10($G$5)-LOG10(G27)))*$A$2,0),0) -> 0 | R27: =IF((H27>0),ROUND((101+1000*(LOG10($H$5)-LOG10(H27)))*$A$2,0),0) -> 0 | S27: =IF((I27>0),ROUND((101+1000*(LOG10($I$5)-LOG10(I27)))*$A$2,0),0) -> 0 | T27: =IF((J27>0),ROUND((101+1000*(LOG10($J$5)-LOG10(J27)))*$A$2,0),0) -> 0 | U27: =IF((K27>0),ROUND((101+1000*(LOG10($K$5)-LOG10(K27)))*$A$2,0),0) -> 0 | V27: =IF((L27>0),ROUND((101+1000*(LOG10($L$5)-LOG10(L27)))*$A$2,0),0) -> 0 | W27: =IF((M27>0),ROUND((101+1000*(LOG10($M$5)-LOG10(M27)))*$A$2,0),0) -> 0 | X27: =IF((N27>0),ROUND((101+1000*(LOG10($N$5)-LOG10(N27)))*$A$2,0),0) -> 0 | Y27: =SUM(LARGE(O27:X27,1),LARGE(O27:X27,2),LARGE(O27:X27,3),LARGE(O27:X27,4)) -> 10670
A28: 22 | B28: 4.O17M | C28: 2001-225 | D28: Netík Pavel | E28: 21 | F28: 11 | G28: 14 | H28: 18 | O28: =IF((E28>0),ROUND((101+1000*(LOG10($E$5)-LOG10(E28)))*$A$2,0),0) -> 1582 | P28: =IF((F28>0),ROUND((101+1000*(LOG10($F$5)-LOG10(F28)))*$A$2,0),0) -> 2673 | Q28: =IF((G28>0),ROUND((101+1000*(LOG10($G$5)-LOG10(G28)))*$A$2,0),0) -> 2704 | R28: =IF((H28>0),ROUND((101+1000*(LOG10($H$5)-LOG10(H28)))*$A$2,0),0) -> 3424 | S28: =IF((I28>0),ROUND((101+1000*(LOG10($I$5)-LOG10(I28)))*$A$2,0),0) -> 0 | T28: =IF((J28>0),ROUND((101+1000*(LOG10($J$5)-LOG10(J28)))*$A$2,0),0) -> 0 | U28: =IF((K28>0),ROUND((101+1000*(LOG10($K$5)-LOG10(K28)))*$A$2,0),0) -> 0 | V28: =IF((L28>0),ROUND((101+1000*(LOG10($L$5)-LOG10(L28)))*$A$2,0),0) -> 0 | W28: =IF((M28>0),ROUND((101+1000*(LOG10($M$5)-LOG10(M28)))*$A$2,0),0) -> 0 | X28: =IF((N28>0),ROUND((101+1000*(LOG10($N$5)-LOG10(N28)))*$A$2,0),0) -> 0 | Y28: =SUM(LARGE(O28:X28,1),LARGE(O28:X28,2),LARGE(O28:X28,3),LARGE(O28:X28,4)) -> 10383
A29: 23 | B29: 4.U13F | C29: 1705-074 | D29: Štěpánková Markéta | E29: 24 | F29: 18 | G29: 17 | H29: 30 | I29: 18 | J29: 7 | O29: =IF((E29>0),ROUND((101+1000*(LOG10($E$5)-LOG10(E29)))*$A$2,0),0) -> 1176 | P29: =IF((F29>0),ROUND((101+1000*(LOG10($F$5)-LOG10(F29)))*$A$2,0),0) -> 1176 | Q29: =IF((G29>0),ROUND((101+1000*(LOG10($G$5)-LOG10(G29)))*$A$2,0),0) -> 2113 | R29: =IF((H29>0),ROUND((101+1000*(LOG10($H$5)-LOG10(H29)))*$A$2,0),0) -> 1871 | S29: =IF((I29>0),ROUND((101+1000*(LOG10($I$5)-LOG10(I29)))*$A$2,0),0) -> 2260 | T29: =IF((J29>0),ROUND((101+1000*(LOG10($J$5)-LOG10(J29)))*$A$2,0),0) -> 3024 | U29: =IF((K29>0),ROUND((101+1000*(LOG10($K$5)-LOG10(K29)))*$A$2,0),0) -> 0 | V29: =IF((L29>0),ROUND((101+1000*(LOG10($L$5)-LOG10(L29)))*$A$2,0),0) -> 0 | W29: =IF((M29>0),ROUND((101+1000*(LOG10($M$5)-LOG10(M29)))*$A$2,0),0) -> 0 | X29: =IF((N29>0),ROUND((101+1000*(LOG10($N$5)-LOG10(N29)))*$A$2,0),0) -> 0 | Y29: =SUM(LARGE(O29:X29,1),LARGE(O29:X29,2),LARGE(O29:X29,3),LARGE(O29:X29,4)) -> 9268
A30: 24 | B30: 4.U15M | C30: 1607-169 | D30: Parchomenko Ondřej | F30: 17 | H30: 29 | I30: 15 | J30: 10 | O30: =IF((E30>0),ROUND((101+1000*(LOG10($E$5)-LOG10(E30)))*$A$2,0),0) -> 0 | P30: =IF((F30>0),ROUND((101+1000*(LOG10($F$5)-LOG10(F30)))*$A$2,0),0) -> 1349 | Q30: =IF((G30>0),ROUND((101+1000*(LOG10($G$5)-LOG10(G30)))*$A$2,0),0) -> 0 | R30: =IF((H30>0),ROUND((101+1000*(LOG10($H$5)-LOG10(H30)))*$A$2,0),0) -> 1974 | S30: =IF((I30>0),ROUND((101+1000*(LOG10($I$5)-LOG10(I30)))*$A$2,0),0) -> 2814 | T30: =IF((J30>0),ROUND((101+1000*(LOG10($J$5)-LOG10(J30)))*$A$2,0),0) -> 1940 | U30: =IF((K30>0),ROUND((101+1000*(LOG10($K$5)-LOG10(K30)))*$A$2,0),0) -> 0 | V30: =IF((L30>0),ROUND((101+1000*(LOG10($L$5)-LOG10(L30)))*$A$2,0),0) -> 0 | W30: =IF((M30>0),ROUND((101+1000*(LOG10($M$5)-LOG10(M30)))*$A$2,0),0) -> 0 | X30: =IF((N30>0),ROUND((101+1000*(LOG10($N$5)-LOG10(N30)))*$A$2,0),0) -> 0 | Y30: =SUM(LARGE(O30:X30,1),LARGE(O30:X30,2),LARGE(O30:X30,3),LARGE(O30:X30,4)) -> 8077
A31: 25 | B31: 3.U17F | C31: 2110-182U17 | D31: Chalupníková Kristýna | I31: 4 | O31: =IF((E31>0),ROUND((101+1000*(LOG10($E$5)-LOG10(E31)))*$A$2,0),0) -> 0 | P31: =IF((F31>0),ROUND((101+1000*(LOG10($F$5)-LOG10(F31)))*$A$2,0),0) -> 0 | Q31: =IF((G31>0),ROUND((101+1000*(LOG10($G$5)-LOG10(G31)))*$A$2,0),0) -> 0 | R31: =IF((H31>0),ROUND((101+1000*(LOG10($H$5)-LOG10(H31)))*$A$2,0),0) -> 0 | S31: =IF((I31>0),ROUND((101+1000*(LOG10($I$5)-LOG10(I31)))*$A$2,0),0) -> 6832 | T31: =IF((J31>0),ROUND((101+1000*(LOG10($J$5)-LOG10(J31)))*$A$2,0),0) -> 0 | U31: =IF((K31>0),ROUND((101+1000*(LOG10($K$5)-LOG10(K31)))*$A$2,0),0) -> 0 | V31: =IF((L31>0),ROUND((101+1000*(LOG10($L$5)-LOG10(L31)))*$A$2,0),0) -> 0 | W31: =IF((M31>0),ROUND((101+1000*(LOG10($M$5)-LOG10(M31)))*$A$2,0),0) -> 0 | X31: =IF((N31>0),ROUND((101+1000*(LOG10($N$5)-LOG10(N31)))*$A$2,0),0) -> 0 | Y31: =SUM(LARGE(O31:X31,1),LARGE(O31:X31,2),LARGE(O31:X31,3),LARGE(O31:X31,4)) -> 6832
A32: 26 | B32: 5.U15M | C32: 2110-185 | D32: Diviš Lukáš | E32: 23 | G32: 13 | H32: 24 | O32: =IF((E32>0),ROUND((101+1000*(LOG10($E$5)-LOG10(E32)))*$A$2,0),0) -> 1305 | P32: =IF((F32>0),ROUND((101+1000*(LOG10($F$5)-LOG10(F32)))*$A$2,0),0) -> 0 | Q32: =IF((G32>0),ROUND((101+1000*(LOG10($G$5)-LOG10(G32)))*$A$2,0),0) -> 2929 | R32: =IF((H32>0),ROUND((101+1000*(LOG10($H$5)-LOG10(H32)))*$A$2,0),0) -> 2550 | S32: =IF((I32>0),ROUND((101+1000*(LOG10($I$5)-LOG10(I32)))*$A$2,0),0) -> 0 | T32: =IF((J32>0),ROUND((101+1000*(LOG10($J$5)-LOG10(J32)))*$A$2,0),0) -> 0 | U32: =IF((K32>0),ROUND((101+1000*(LOG10($K$5)-LOG10(K32)))*$A$2,0),0) -> 0 | V32: =IF((L32>0),ROUND((101+1000*(LOG10($L$5)-LOG10(L32)))*$A$2,0),0) -> 0 | W32: =IF((M32>0),ROUND((101+1000*(LOG10($M$5)-LOG10(M32)))*$A$2,0),0) -> 0 | X32: =IF((N32>0),ROUND((101+1000*(LOG10($N$5)-LOG10(N32)))*$A$2,0),0) -> 0 | Y32: =SUM(LARGE(O32:X32,1),LARGE(O32:X32,2),LARGE(O32:X32,3),LARGE(O32:X32,4)) -> 6784
A33: 27 | B33: 5.U13F | C33: 2201-036 | D33: Piňosová Kristýna | G33: 20 | H33: 26 | I33: 19 | O33: =IF((E33>0),ROUND((101+1000*(LOG10($E$5)-LOG10(E33)))*$A$2,0),0) -> 0 | P33: =IF((F33>0),ROUND((101+1000*(LOG10($F$5)-LOG10(F33)))*$A$2,0),0) -> 0 | Q33: =IF((G33>0),ROUND((101+1000*(LOG10($G$5)-LOG10(G33)))*$A$2,0),0) -> 1619 | R33: =IF((H33>0),ROUND((101+1000*(LOG10($H$5)-LOG10(H33)))*$A$2,0),0) -> 2306 | S33: =IF((I33>0),ROUND((101+1000*(LOG10($I$5)-LOG10(I33)))*$A$2,0),0) -> 2096 | T33: =IF((J33>0),ROUND((101+1000*(LOG10($J$5)-LOG10(J33)))*$A$2,0),0) -> 0 | U33: =IF((K33>0),ROUND((101+1000*(LOG10($K$5)-LOG10(K33)))*$A$2,0),0) -> 0 | V33: =IF((L33>0),ROUND((101+1000*(LOG10($L$5)-LOG10(L33)))*$A$2,0),0) -> 0 | W33: =IF((M33>0),ROUND((101+1000*(LOG10($M$5)-LOG10(M33)))*$A$2,0),0) -> 0 | X33: =IF((N33>0),ROUND((101+1000*(LOG10($N$5)-LOG10(N33)))*$A$2,0),0) -> 0 | Y33: =SUM(LARGE(O33:X33,1),LARGE(O33:X33,2),LARGE(O33:X33,3),LARGE(O33:X33,4)) -> 6021
A34: 28 | B34: 3.U13M | C34: 2110-178 | D34: Skřepek Šimon | E34: 22 | F34: 16 | H34: 21 | O34: =IF((E34>0),ROUND((101+1000*(LOG10($E$5)-LOG10(E34)))*$A$2,0),0) -> 1440 | P34: =IF((F34>0),ROUND((101+1000*(LOG10($F$5)-LOG10(F34)))*$A$2,0),0) -> 1534 | Q34: =IF((G34>0),ROUND((101+1000*(LOG10($G$5)-LOG10(G34)))*$A$2,0),0) -> 0 | R34: =IF((H34>0),ROUND((101+1000*(LOG10($H$5)-LOG10(H34)))*$A$2,0),0) -> 2956 | S34: =IF((I34>0),ROUND((101+1000*(LOG10($I$5)-LOG10(I34)))*$A$2,0),0) -> 0 | T34: =IF((J34>0),ROUND((101+1000*(LOG10($J$5)-LOG10(J34)))*$A$2,0),0) -> 0 | U34: =IF((K34>0),ROUND((101+1000*(LOG10($K$5)-LOG10(K34)))*$A$2,0),0) -> 0 | V34: =IF((L34>0),ROUND((101+1000*(LOG10($L$5)-LOG10(L34)))*$A$2,0),0) -> 0 | W34: =IF((M34>0),ROUND((101+1000*(LOG10($M$5)-LOG10(M34)))*$A$2,0),0) -> 0 | X34: =IF((N34>0),ROUND((101+1000*(LOG10($N$5)-LOG10(N34)))*$A$2,0),0) -> 0 | Y34: =SUM(LARGE(O34:X34,1),LARGE(O34:X34,2),LARGE(O34:X34,3),LARGE(O34:X34,4)) -> 5930
A35: 29 | B35: 6.U13F | C35: 1705-169 | D35: Lojínová Alexandra | E35: 25 | F35: 19 | G35: 19 | H35: 36 | I35: 23 | J35: 14 | O35: =IF((E35>0),ROUND((101+1000*(LOG10($E$5)-LOG10(E35)))*$A$2,0),0) -> 1052 | P35: =IF((F35>0),ROUND((101+1000*(LOG10($F$5)-LOG10(F35)))*$A$2,0),0) -> 1011 | Q35: =IF((G35>0),ROUND((101+1000*(LOG10($G$5)-LOG10(G35)))*$A$2,0),0) -> 1775 | R35: =IF((H35>0),ROUND((101+1000*(LOG10($H$5)-LOG10(H35)))*$A$2,0),0) -> 1317 | S35: =IF((I35>0),ROUND((101+1000*(LOG10($I$5)-LOG10(I35)))*$A$2,0),0) -> 1515 | T35: =IF((J35>0),ROUND((101+1000*(LOG10($J$5)-LOG10(J35)))*$A$2,0),0) -> 917 | U35: =IF((K35>0),ROUND((101+1000*(LOG10($K$5)-LOG10(K35)))*$A$2,0),0) -> 0 | V35: =IF((L35>0),ROUND((101+1000*(LOG10($L$5)-LOG10(L35)))*$A$2,0),0) -> 0 | W35: =IF((M35>0),ROUND((101+1000*(LOG10($M$5)-LOG10(M35)))*$A$2,0),0) -> 0 | X35: =IF((N35>0),ROUND((101+1000*(LOG10($N$5)-LOG10(N35)))*$A$2,0),0) -> 0 | Y35: =SUM(LARGE(O35:X35,1),LARGE(O35:X35,2),LARGE(O35:X35,3),LARGE(O35:X35,4)) -> 5659
A36: 30 | B36: 4.U13M | C36: 1609-301 | D36: Tlapák Vojtěch | G36: 21 | H36: 25 | I36: 22 | O36: =IF((E36>0),ROUND((101+1000*(LOG10($E$5)-LOG10(E36)))*$A$2,0),0) -> 0 | P36: =IF((F36>0),ROUND((101+1000*(LOG10($F$5)-LOG10(F36)))*$A$2,0),0) -> 0 | Q36: =IF((G36>0),ROUND((101+1000*(LOG10($G$5)-LOG10(G36)))*$A$2,0),0) -> 1471 | R36: =IF((H36>0),ROUND((101+1000*(LOG10($H$5)-LOG10(H36)))*$A$2,0),0) -> 2426 | S36: =IF((I36>0),ROUND((101+1000*(LOG10($I$5)-LOG10(I36)))*$A$2,0),0) -> 1650 | T36: =IF((J36>0),ROUND((101+1000*(LOG10($J$5)-LOG10(J36)))*$A$2,0),0) -> 0 | U36: =IF((K36>0),ROUND((101+1000*(LOG10($K$5)-LOG10(K36)))*$A$2,0),0) -> 0 | V36: =IF((L36>0),ROUND((101+1000*(LOG10($L$5)-LOG10(L36)))*$A$2,0),0) -> 0 | W36: =IF((M36>0),ROUND((101+1000*(LOG10($M$5)-LOG10(M36)))*$A$2,0),0) -> 0 | X36: =IF((N36>0),ROUND((101+1000*(LOG10($N$5)-LOG10(N36)))*$A$2,0),0) -> 0 | Y36: =SUM(LARGE(O36:X36,1),LARGE(O36:X36,2),LARGE(O36:X36,3),LARGE(O36:X36,4)) -> 5547
A37: 31 | B37: 5.U13M | C37: 2110-173 | D37: Šeliga Teodor | E37: 28 | F37: 20 | G37: 23 | H37: 32 | I37: 21 | O37: =IF((E37>0),ROUND((101+1000*(LOG10($E$5)-LOG10(E37)))*$A$2,0),0) -> 707 | P37: =IF((F37>0),ROUND((101+1000*(LOG10($F$5)-LOG10(F37)))*$A$2,0),0) -> 855 | Q37: =IF((G37>0),ROUND((101+1000*(LOG10($G$5)-LOG10(G37)))*$A$2,0),0) -> 1194 | R37: =IF((H37>0),ROUND((101+1000*(LOG10($H$5)-LOG10(H37)))*$A$2,0),0) -> 1675 | S37: =IF((I37>0),ROUND((101+1000*(LOG10($I$5)-LOG10(I37)))*$A$2,0),0) -> 1791 | T37: =IF((J37>0),ROUND((101+1000*(LOG10($J$5)-LOG10(J37)))*$A$2,0),0) -> 0 | U37: =IF((K37>0),ROUND((101+1000*(LOG10($K$5)-LOG10(K37)))*$A$2,0),0) -> 0 | V37: =IF((L37>0),ROUND((101+1000*(LOG10($L$5)-LOG10(L37)))*$A$2,0),0) -> 0 | W37: =IF((M37>0),ROUND((101+1000*(LOG10($M$5)-LOG10(M37)))*$A$2,0),0) -> 0 | X37: =IF((N37>0),ROUND((101+1000*(LOG10($N$5)-LOG10(N37)))*$A$2,0),0) -> 0 | Y37: =SUM(LARGE(O37:X37,1),LARGE(O37:X37,2),LARGE(O37:X37,3),LARGE(O37:X37,4)) -> 5515
A38: 32 | B38: 5.O17M | C38: 1401-461 | D38: Altmann Tomáš | E38: 6 | O38: =IF((E38>0),ROUND((101+1000*(LOG10($E$5)-LOG10(E38)))*$A$2,0),0) -> 5390 | P38: =IF((F38>0),ROUND((101+1000*(LOG10($F$5)-LOG10(F38)))*$A$2,0),0) -> 0 | Q38: =IF((G38>0),ROUND((101+1000*(LOG10($G$5)-LOG10(G38)))*$A$2,0),0) -> 0 | R38: =IF((H38>0),ROUND((101+1000*(LOG10($H$5)-LOG10(H38)))*$A$2,0),0) -> 0 | S38: =IF((I38>0),ROUND((101+1000*(LOG10($I$5)-LOG10(I38)))*$A$2,0),0) -> 0 | T38: =IF((J38>0),ROUND((101+1000*(LOG10($J$5)-LOG10(J38)))*$A$2,0),0) -> 0 | U38: =IF((K38>0),ROUND((101+1000*(LOG10($K$5)-LOG10(K38)))*$A$2,0),0) -> 0 | V38: =IF((L38>0),ROUND((101+1000*(LOG10($L$5)-LOG10(L38)))*$A$2,0),0) -> 0 | W38: =IF((M38>0),ROUND((101+1000*(LOG10($M$5)-LOG10(M38)))*$A$2,0),0) -> 0 | X38: =IF((N38>0),ROUND((101+1000*(LOG10($N$5)-LOG10(N38)))*$A$2,0),0) -> 0 | Y38: =SUM(LARGE(O38:X38,1),LARGE(O38:X38,2),LARGE(O38:X38,3),LARGE(O38:X38,4)) -> 5390
A39: 33 | B39: 6.O17M | C39: 1705-100 | D39: Sadílek Pavel | F39: 15 | G39: 22 | I39: 20 | O39: =IF((E39>0),ROUND((101+1000*(LOG10($E$5)-LOG10(E39)))*$A$2,0),0) -> 0 | P39: =IF((F39>0),ROUND((101+1000*(LOG10($F$5)-LOG10(F39)))*$A$2,0),0) -> 1730 | Q39: =IF((G39>0),ROUND((101+1000*(LOG10($G$5)-LOG10(G39)))*$A$2,0),0) -> 1330 | R39: =IF((H39>0),ROUND((101+1000*(LOG10($H$5)-LOG10(H39)))*$A$2,0),0) -> 0 | S39: =IF((I39>0),ROUND((101+1000*(LOG10($I$5)-LOG10(I39)))*$A$2,0),0) -> 1940 | T39: =IF((J39>0),ROUND((101+1000*(LOG10($J$5)-LOG10(J39)))*$A$2,0),0) -> 0 | U39: =IF((K39>0),ROUND((101+1000*(LOG10($K$5)-LOG10(K39)))*$A$2,0),0) -> 0 | V39: =IF((L39>0),ROUND((101+1000*(LOG10($L$5)-LOG10(L39)))*$A$2,0),0) -> 0 | W39: =IF((M39>0),ROUND((101+1000*(LOG10($M$5)-LOG10(M39)))*$A$2,0),0) -> 0 | X39: =IF((N39>0),ROUND((101+1000*(LOG10($N$5)-LOG10(N39)))*$A$2,0),0) -> 0 | Y39: =SUM(LARGE(O39:X39,1),LARGE(O39:X39,2),LARGE(O39:X39,3),LARGE(O39:X39,4)) -> 5000
A40: 34 | B40: 6.U15M | C40: 2110-175 | D40: Wagner David | G40: 18 | H40: 22 | O40: =IF((E40>0),ROUND((101+1000*(LOG10($E$5)-LOG10(E40)))*$A$2,0),0) -> 0 | P40: =IF((F40>0),ROUND((101+1000*(LOG10($F$5)-LOG10(F40)))*$A$2,0),0) -> 0 | Q40: =IF((G40>0),ROUND((101+1000*(LOG10($G$5)-LOG10(G40)))*$A$2,0),0) -> 1940 | R40: =IF((H40>0),ROUND((101+1000*(LOG10($H$5)-LOG10(H40)))*$A$2,0),0) -> 2814 | S40: =IF((I40>0),ROUND((101+1000*(LOG10($I$5)-LOG10(I40)))*$A$2,0),0) -> 0 | T40: =IF((J40>0),ROUND((101+1000*(LOG10($J$5)-LOG10(J40)))*$A$2,0),0) -> 0 | U40: =IF((K40>0),ROUND((101+1000*(LOG10($K$5)-LOG10(K40)))*$A$2,0),0) -> 0 | V40: =IF((L40>0),ROUND((101+1000*(LOG10($L$5)-LOG10(L40)))*$A$2,0),0) -> 0 | W40: =IF((M40>0),ROUND((101+1000*(LOG10($M$5)-LOG10(M40)))*$A$2,0),0) -> 0 | X40: =IF((N40>0),ROUND((101+1000*(LOG10($N$5)-LOG10(N40)))*$A$2,0),0) -> 0 | Y40: =SUM(LARGE(O40:X40,1),LARGE(O40:X40,2),LARGE(O40:X40,3),LARGE(O40:X40,4)) -> 4754
A41: 35 | B41: 7.O17M | C41: 1609-145 | D41: Nevelöš Jan | E41: 8 | O41: =IF((E41>0),ROUND((101+1000*(LOG10($E$5)-LOG10(E41)))*$A$2,0),0) -> 4515 | P41: =IF((F41>0),ROUND((101+1000*(LOG10($F$5)-LOG10(F41)))*$A$2,0),0) -> 0 | Q41: =IF((G41>0),ROUND((101+1000*(LOG10($G$5)-LOG10(G41)))*$A$2,0),0) -> 0 | R41: =IF((H41>0),ROUND((101+1000*(LOG10($H$5)-LOG10(H41)))*$A$2,0),0) -> 0 | S41: =IF((I41>0),ROUND((101+1000*(LOG10($I$5)-LOG10(I41)))*$A$2,0),0) -> 0 | T41: =IF((J41>0),ROUND((101+1000*(LOG10($J$5)-LOG10(J41)))*$A$2,0),0) -> 0 | U41: =IF((K41>0),ROUND((101+1000*(LOG10($K$5)-LOG10(K41)))*$A$2,0),0) -> 0 | V41: =IF((L41>0),ROUND((101+1000*(LOG10($L$5)-LOG10(L41)))*$A$2,0),0) -> 0 | W41: =IF((M41>0),ROUND((101+1000*(LOG10($M$5)-LOG10(M41)))*$A$2,0),0) -> 0 | X41: =IF((N41>0),ROUND((101+1000*(LOG10($N$5)-LOG10(N41)))*$A$2,0),0) -> 0 | Y41: =SUM(LARGE(O41:X41,1),LARGE(O41:X41,2),LARGE(O41:X41,3),LARGE(O41:X41,4)) -> 4515
A42: 36 | B42: 6.U17M | C42: 1609-248 | D42: Vaszi Mikuláš | F42: 7 | O42: =IF((E42>0),ROUND((101+1000*(LOG10($E$5)-LOG10(E42)))*$A$2,0),0) -> 0 | P42: =IF((F42>0),ROUND((101+1000*(LOG10($F$5)-LOG10(F42)))*$A$2,0),0) -> 4047 | Q42: =IF((G42>0),ROUND((101+1000*(LOG10($G$5)-LOG10(G42)))*$A$2,0),0) -> 0 | R42: =IF((H42>0),ROUND((101+1000*(LOG10($H$5)-LOG10(H42)))*$A$2,0),0) -> 0 | S42: =IF((I42>0),ROUND((101+1000*(LOG10($I$5)-LOG10(I42)))*$A$2,0),0) -> 0 | T42: =IF((J42>0),ROUND((101+1000*(LOG10($J$5)-LOG10(J42)))*$A$2,0),0) -> 0 | U42: =IF((K42>0),ROUND((101+1000*(LOG10($K$5)-LOG10(K42)))*$A$2,0),0) -> 0 | V42: =IF((L42>0),ROUND((101+1000*(LOG10($L$5)-LOG10(L42)))*$A$2,0),0) -> 0 | W42: =IF((M42>0),ROUND((101+1000*(LOG10($M$5)-LOG10(M42)))*$A$2,0),0) -> 0 | X42: =IF((N42>0),ROUND((101+1000*(LOG10($N$5)-LOG10(N42)))*$A$2,0),0) -> 0 | Y42: =SUM(LARGE(O42:X42,1),LARGE(O42:X42,2),LARGE(O42:X42,3),LARGE(O42:X42,4)) -> 4047
A43: 37 | B43: 8.O17M | C43: 7019-076 | D43: Raška Marek | H43: 16 | O43: =IF((E43>0),ROUND((101+1000*(LOG10($E$5)-LOG10(E43)))*$A$2,0),0) -> 0 | P43: =IF((F43>0),ROUND((101+1000*(LOG10($F$5)-LOG10(F43)))*$A$2,0),0) -> 0 | Q43: =IF((G43>0),ROUND((101+1000*(LOG10($G$5)-LOG10(G43)))*$A$2,0),0) -> 0 | R43: =IF((H43>0),ROUND((101+1000*(LOG10($H$5)-LOG10(H43)))*$A$2,0),0) -> 3782 | S43: =IF((I43>0),ROUND((101+1000*(LOG10($I$5)-LOG10(I43)))*$A$2,0),0) -> 0 | T43: =IF((J43>0),ROUND((101+1000*(LOG10($J$5)-LOG10(J43)))*$A$2,0),0) -> 0 | U43: =IF((K43>0),ROUND((101+1000*(LOG10($K$5)-LOG10(K43)))*$A$2,0),0) -> 0 | V43: =IF((L43>0),ROUND((101+1000*(LOG10($L$5)-LOG10(L43)))*$A$2,0),0) -> 0 | W43: =IF((M43>0),ROUND((101+1000*(LOG10($M$5)-LOG10(M43)))*$A$2,0),0) -> 0 | X43: =IF((N43>0),ROUND((101+1000*(LOG10($N$5)-LOG10(N43)))*$A$2,0),0) -> 0 | Y43: =SUM(LARGE(O43:X43,1),LARGE(O43:X43,2),LARGE(O43:X43,3),LARGE(O43:X43,4)) -> 3782
A44: 38 | B44: 3.U15F | C44: 2110-191 | D44: Neckařová Martina | H44: 27 | I44: 24 | O44: =IF((E44>0),ROUND((101+1000*(LOG10($E$5)-LOG10(E44)))*$A$2,0),0) -> 0 | P44: =IF((F44>0),ROUND((101+1000*(LOG10($F$5)-LOG10(F44)))*$A$2,0),0) -> 0 | Q44: =IF((G44>0),ROUND((101+1000*(LOG10($G$5)-LOG10(G44)))*$A$2,0),0) -> 0 | R44: =IF((H44>0),ROUND((101+1000*(LOG10($H$5)-LOG10(H44)))*$A$2,0),0) -> 2192 | S44: =IF((I44>0),ROUND((101+1000*(LOG10($I$5)-LOG10(I44)))*$A$2,0),0) -> 1385 | T44: =IF((J44>0),ROUND((101+1000*(LOG10($J$5)-LOG10(J44)))*$A$2,0),0) -> 0 | U44: =IF((K44>0),ROUND((101+1000*(LOG10($K$5)-LOG10(K44)))*$A$2,0),0) -> 0 | V44: =IF((L44>0),ROUND((101+1000*(LOG10($L$5)-LOG10(L44)))*$A$2,0),0) -> 0 | W44: =IF((M44>0),ROUND((101+1000*(LOG10($M$5)-LOG10(M44)))*$A$2,0),0) -> 0 | X44: =IF((N44>0),ROUND((101+1000*(LOG10($N$5)-LOG10(N44)))*$A$2,0),0) -> 0 | Y44: =SUM(LARGE(O44:X44,1),LARGE(O44:X44,2),LARGE(O44:X44,3),LARGE(O44:X44,4)) -> 3577
A45: 39 | B45: 7.U13F | C45: 2110-189 | D45: Samcová Klára | G45: 25 | H45: 33 | I45: 27 | O45: =IF((E45>0),ROUND((101+1000*(LOG10($E$5)-LOG10(E45)))*$A$2,0),0) -> 0 | P45: =IF((F45>0),ROUND((101+1000*(LOG10($F$5)-LOG10(F45)))*$A$2,0),0) -> 0 | Q45: =IF((G45>0),ROUND((101+1000*(LOG10($G$5)-LOG10(G45)))*$A$2,0),0) -> 941 | R45: =IF((H45>0),ROUND((101+1000*(LOG10($H$5)-LOG10(H45)))*$A$2,0),0) -> 1582 | S45: =IF((I45>0),ROUND((101+1000*(LOG10($I$5)-LOG10(I45)))*$A$2,0),0) -> 1027 | T45: =IF((J45>0),ROUND((101+1000*(LOG10($J$5)-LOG10(J45)))*$A$2,0),0) -> 0 | U45: =IF((K45>0),ROUND((101+1000*(LOG10($K$5)-LOG10(K45)))*$A$2,0),0) -> 0 | V45: =IF((L45>0),ROUND((101+1000*(LOG10($L$5)-LOG10(L45)))*$A$2,0),0) -> 0 | W45: =IF((M45>0),ROUND((101+1000*(LOG10($M$5)-LOG10(M45)))*$A$2,0),0) -> 0 | X45: =IF((N45>0),ROUND((101+1000*(LOG10($N$5)-LOG10(N45)))*$A$2,0),0) -> 0 | Y45: =SUM(LARGE(O45:X45,1),LARGE(O45:X45,2),LARGE(O45:X45,3),LARGE(O45:X45,4)) -> 3550
A46: 40 | B46: 7.U15M | C46: 2001-220 | D46: Provazník Samuel | E46: 26 | G46: 24 | H46: 34 | O46: =IF((E46>0),ROUND((101+1000*(LOG10($E$5)-LOG10(E46)))*$A$2,0),0) -> 932 | P46: =IF((F46>0),ROUND((101+1000*(LOG10($F$5)-LOG10(F46)))*$A$2,0),0) -> 0 | Q46: =IF((G46>0),ROUND((101+1000*(LOG10($G$5)-LOG10(G46)))*$A$2,0),0) -> 1065 | R46: =IF((H46>0),ROUND((101+1000*(LOG10($H$5)-LOG10(H46)))*$A$2,0),0) -> 1491 | S46: =IF((I46>0),ROUND((101+1000*(LOG10($I$5)-LOG10(I46)))*$A$2,0),0) -> 0 | T46: =IF((J46>0),ROUND((101+1000*(LOG10($J$5)-LOG10(J46)))*$A$2,0),0) -> 0 | U46: =IF((K46>0),ROUND((101+1000*(LOG10($K$5)-LOG10(K46)))*$A$2,0),0) -> 0 | V46: =IF((L46>0),ROUND((101+1000*(LOG10($L$5)-LOG10(L46)))*$A$2,0),0) -> 0 | W46: =IF((M46>0),ROUND((101+1000*(LOG10($M$5)-LOG10(M46)))*$A$2,0),0) -> 0 | X46: =IF((N46>0),ROUND((101+1000*(LOG10($N$5)-LOG10(N46)))*$A$2,0),0) -> 0 | Y46: =SUM(LARGE(O46:X46,1),LARGE(O46:X46,2),LARGE(O46:X46,3),LARGE(O46:X46,4)) -> 3488
A47: 41 | B47: 6.U13M | C47: 1609-298 | D47: Rais Michal | H47: 31 | I47: 26 | O47: =IF((E47>0),ROUND((101+1000*(LOG10($E$5)-LOG10(E47)))*$A$2,0),0) -> 0 | P47: =IF((F47>0),ROUND((101+1000*(LOG10($F$5)-LOG10(F47)))*$A$2,0),0) -> 0 | Q47: =IF((G47>0),ROUND((101+1000*(LOG10($G$5)-LOG10(G47)))*$A$2,0),0) -> 0 | R47: =IF((H47>0),ROUND((101+1000*(LOG10($H$5)-LOG10(H47)))*$A$2,0),0) -> 1772 | S47: =IF((I47>0),ROUND((101+1000*(LOG10($I$5)-LOG10(I47)))*$A$2,0),0) -> 1142 | T47: =IF((J47>0),ROUND((101+1000*(LOG10($J$5)-LOG10(J47)))*$A$2,0),0) -> 0 | U47: =IF((K47>0),ROUND((101+1000*(LOG10($K$5)-LOG10(K47)))*$A$2,0),0) -> 0 | V47: =IF((L47>0),ROUND((101+1000*(LOG10($L$5)-LOG10(L47)))*$A$2,0),0) -> 0 | W47: =IF((M47>0),ROUND((101+1000*(LOG10($M$5)-LOG10(M47)))*$A$2,0),0) -> 0 | X47: =IF((N47>0),ROUND((101+1000*(LOG10($N$5)-LOG10(N47)))*$A$2,0),0) -> 0 | Y47: =SUM(LARGE(O47:X47,1),LARGE(O47:X47,2),LARGE(O47:X47,3),LARGE(O47:X47,4)) -> 2914
A48: 42 | B48: 8.U13F | C48: 1609-308 | D48: Tlapáková Zuzana | G48: 26 | H48: 38 | I48: 28 | O48: =IF((E48>0),ROUND((101+1000*(LOG10($E$5)-LOG10(E48)))*$A$2,0),0) -> 0 | P48: =IF((F48>0),ROUND((101+1000*(LOG10($F$5)-LOG10(F48)))*$A$2,0),0) -> 0 | Q48: =IF((G48>0),ROUND((101+1000*(LOG10($G$5)-LOG10(G48)))*$A$2,0),0) -> 822 | R48: =IF((H48>0),ROUND((101+1000*(LOG10($H$5)-LOG10(H48)))*$A$2,0),0) -> 1153 | S48: =IF((I48>0),ROUND((101+1000*(LOG10($I$5)-LOG10(I48)))*$A$2,0),0) -> 917 | T48: =IF((J48>0),ROUND((101+1000*(LOG10($J$5)-LOG10(J48)))*$A$2,0),0) -> 0 | U48: =IF((K48>0),ROUND((101+1000*(LOG10($K$5)-LOG10(K48)))*$A$2,0),0) -> 0 | V48: =IF((L48>0),ROUND((101+1000*(LOG10($L$5)-LOG10(L48)))*$A$2,0),0) -> 0 | W48: =IF((M48>0),ROUND((101+1000*(LOG10($M$5)-LOG10(M48)))*$A$2,0),0) -> 0 | X48: =IF((N48>0),ROUND((101+1000*(LOG10($N$5)-LOG10(N48)))*$A$2,0),0) -> 0 | Y48: =SUM(LARGE(O48:X48,1),LARGE(O48:X48,2),LARGE(O48:X48,3),LARGE(O48:X48,4)) -> 2892
A49: 43 | B49: 9.U13F | C49: 2110-183 | D49: Komendová Kateřina | H49: 23 | O49: =IF((E49>0),ROUND((101+1000*(LOG10($E$5)-LOG10(E49)))*$A$2,0),0) -> 0 | P49: =IF((F49>0),ROUND((101+1000*(LOG10($F$5)-LOG10(F49)))*$A$2,0),0) -> 0 | Q49: =IF((G49>0),ROUND((101+1000*(LOG10($G$5)-LOG10(G49)))*$A$2,0),0) -> 0 | R49: =IF((H49>0),ROUND((101+1000*(LOG10($H$5)-LOG10(H49)))*$A$2,0),0) -> 2679 | S49: =IF((I49>0),ROUND((101+1000*(LOG10($I$5)-LOG10(I49)))*$A$2,0),0) -> 0 | T49: =IF((J49>0),ROUND((101+1000*(LOG10($J$5)-LOG10(J49)))*$A$2,0),0) -> 0 | U49: =IF((K49>0),ROUND((101+1000*(LOG10($K$5)-LOG10(K49)))*$A$2,0),0) -> 0 | V49: =IF((L49>0),ROUND((101+1000*(LOG10($L$5)-LOG10(L49)))*$A$2,0),0) -> 0 | W49: =IF((M49>0),ROUND((101+1000*(LOG10($M$5)-LOG10(M49)))*$A$2,0),0) -> 0 | X49: =IF((N49>0),ROUND((101+1000*(LOG10($N$5)-LOG10(N49)))*$A$2,0),0) -> 0 | Y49: =SUM(LARGE(O49:X49,1),LARGE(O49:X49,2),LARGE(O49:X49,3),LARGE(O49:X49,4)) -> 2679
A50: 44 | B50: 7.U13M | C50: 1213-199 | D50: Hasman Radim | H50: 37 | I50: 25 | O50: =IF((E50>0),ROUND((101+1000*(LOG10($E$5)-LOG10(E50)))*$A$2,0),0) -> 0 | P50: =IF((F50>0),ROUND((101+1000*(LOG10($F$5)-LOG10(F50)))*$A$2,0),0) -> 0 | Q50: =IF((G50>0),ROUND((101+1000*(LOG10($G$5)-LOG10(G50)))*$A$2,0),0) -> 0 | R50: =IF((H50>0),ROUND((101+1000*(LOG10($H$5)-LOG10(H50)))*$A$2,0),0) -> 1234 | S50: =IF((I50>0),ROUND((101+1000*(LOG10($I$5)-LOG10(I50)))*$A$2,0),0) -> 1261 | T50: =IF((J50>0),ROUND((101+1000*(LOG10($J$5)-LOG10(J50)))*$A$2,0),0) -> 0 | U50: =IF((K50>0),ROUND((101+1000*(LOG10($K$5)-LOG10(K50)))*$A$2,0),0) -> 0 | V50: =IF((L50>0),ROUND((101+1000*(LOG10($L$5)-LOG10(L50)))*$A$2,0),0) -> 0 | W50: =IF((M50>0),ROUND((101+1000*(LOG10($M$5)-LOG10(M50)))*$A$2,0),0) -> 0 | X50: =IF((N50>0),ROUND((101+1000*(LOG10($N$5)-LOG10(N50)))*$A$2,0),0) -> 0 | Y50: =SUM(LARGE(O50:X50,1),LARGE(O50:X50,2),LARGE(O50:X50,3),LARGE(O50:X50,4)) -> 2495
A51: 45 | B51: 7.U17M | C51: 1130-235 | D51: Dvořák Rudolf | H51: 28 | O51: =IF((E51>0),ROUND((101+1000*(LOG10($E$5)-LOG10(E51)))*$A$2,0),0) -> 0 | P51: =IF((F51>0),ROUND((101+1000*(LOG10($F$5)-LOG10(F51)))*$A$2,0),0) -> 0 | Q51: =IF((G51>0),ROUND((101+1000*(LOG10($G$5)-LOG10(G51)))*$A$2,0),0) -> 0 | R51: =IF((H51>0),ROUND((101+1000*(LOG10($H$5)-LOG10(H51)))*$A$2,0),0) -> 2081 | S51: =IF((I51>0),ROUND((101+1000*(LOG10($I$5)-LOG10(I51)))*$A$2,0),0) -> 0 | T51: =IF((J51>0),ROUND((101+1000*(LOG10($J$5)-LOG10(J51)))*$A$2,0),0) -> 0 | U51: =IF((K51>0),ROUND((101+1000*(LOG10($K$5)-LOG10(K51)))*$A$2,0),0) -> 0 | V51: =IF((L51>0),ROUND((101+1000*(LOG10($L$5)-LOG10(L51)))*$A$2,0),0) -> 0 | W51: =IF((M51>0),ROUND((101+1000*(LOG10($M$5)-LOG10(M51)))*$A$2,0),0) -> 0 | X51: =IF((N51>0),ROUND((101+1000*(LOG10($N$5)-LOG10(N51)))*$A$2,0),0) -> 0 | Y51: =SUM(LARGE(O51:X51,1),LARGE(O51:X51,2),LARGE(O51:X51,3),LARGE(O51:X51,4)) -> 2081
A52: 46 | B52: 8.U13M | C52: 7019-390 | D52: Slíva Matěj | H52: 41 | J52: 15 | O52: =IF((E52>0),ROUND((101+1000*(LOG10($E$5)-LOG10(E52)))*$A$2,0),0) -> 0 | P52: =IF((F52>0),ROUND((101+1000*(LOG10($F$5)-LOG10(F52)))*$A$2,0),0) -> 0 | Q52: =IF((G52>0),ROUND((101+1000*(LOG10($G$5)-LOG10(G52)))*$A$2,0),0) -> 0 | R52: =IF((H52>0),ROUND((101+1000*(LOG10($H$5)-LOG10(H52)))*$A$2,0),0) -> 922 | S52: =IF((I52>0),ROUND((101+1000*(LOG10($I$5)-LOG10(I52)))*$A$2,0),0) -> 0 | T52: =IF((J52>0),ROUND((101+1000*(LOG10($J$5)-LOG10(J52)))*$A$2,0),0) -> 707 | U52: =IF((K52>0),ROUND((101+1000*(LOG10($K$5)-LOG10(K52)))*$A$2,0),0) -> 0 | V52: =IF((L52>0),ROUND((101+1000*(LOG10($L$5)-LOG10(L52)))*$A$2,0),0) -> 0 | W52: =IF((M52>0),ROUND((101+1000*(LOG10($M$5)-LOG10(M52)))*$A$2,0),0) -> 0 | X52: =IF((N52>0),ROUND((101+1000*(LOG10($N$5)-LOG10(N52)))*$A$2,0),0) -> 0 | Y52: =SUM(LARGE(O52:X52,1),LARGE(O52:X52,2),LARGE(O52:X52,3),LARGE(O52:X52,4)) -> 1629
A53: 47 | B53: 9.U13M | C53: 1609-303 | D53: Kříž Jan | H53: 44 | I53: 29 | O53: =IF((E53>0),ROUND((101+1000*(LOG10($E$5)-LOG10(E53)))*$A$2,0),0) -> 0 | P53: =IF((F53>0),ROUND((101+1000*(LOG10($F$5)-LOG10(F53)))*$A$2,0),0) -> 0 | Q53: =IF((G53>0),ROUND((101+1000*(LOG10($G$5)-LOG10(G53)))*$A$2,0),0) -> 0 | R53: =IF((H53>0),ROUND((101+1000*(LOG10($H$5)-LOG10(H53)))*$A$2,0),0) -> 707 | S53: =IF((I53>0),ROUND((101+1000*(LOG10($I$5)-LOG10(I53)))*$A$2,0),0) -> 810 | T53: =IF((J53>0),ROUND((101+1000*(LOG10($J$5)-LOG10(J53)))*$A$2,0),0) -> 0 | U53: =IF((K53>0),ROUND((101+1000*(LOG10($K$5)-LOG10(K53)))*$A$2,0),0) -> 0 | V53: =IF((L53>0),ROUND((101+1000*(LOG10($L$5)-LOG10(L53)))*$A$2,0),0) -> 0 | W53: =IF((M53>0),ROUND((101+1000*(LOG10($M$5)-LOG10(M53)))*$A$2,0),0) -> 0 | X53: =IF((N53>0),ROUND((101+1000*(LOG10($N$5)-LOG10(N53)))*$A$2,0),0) -> 0 | Y53: =SUM(LARGE(O53:X53,1),LARGE(O53:X53,2),LARGE(O53:X53,3),LARGE(O53:X53,4)) -> 1517
A54: 48 | B54: 4.U15F | C54: 2110-184 | D54: Richterová Ludmila | H54: 35 | O54: =IF((E54>0),ROUND((101+1000*(LOG10($E$5)-LOG10(E54)))*$A$2,0),0) -> 0 | P54: =IF((F54>0),ROUND((101+1000*(LOG10($F$5)-LOG10(F54)))*$A$2,0),0) -> 0 | Q54: =IF((G54>0),ROUND((101+1000*(LOG10($G$5)-LOG10(G54)))*$A$2,0),0) -> 0 | R54: =IF((H54>0),ROUND((101+1000*(LOG10($H$5)-LOG10(H54)))*$A$2,0),0) -> 1403 | S54: =IF((I54>0),ROUND((101+1000*(LOG10($I$5)-LOG10(I54)))*$A$2,0),0) -> 0 | T54: =IF((J54>0),ROUND((101+1000*(LOG10($J$5)-LOG10(J54)))*$A$2,0),0) -> 0 | U54: =IF((K54>0),ROUND((101+1000*(LOG10($K$5)-LOG10(K54)))*$A$2,0),0) -> 0 | V54: =IF((L54>0),ROUND((101+1000*(LOG10($L$5)-LOG10(L54)))*$A$2,0),0) -> 0 | W54: =IF((M54>0),ROUND((101+1000*(LOG10($M$5)-LOG10(M54)))*$A$2,0),0) -> 0 | X54: =IF((N54>0),ROUND((101+1000*(LOG10($N$5)-LOG10(N54)))*$A$2,0),0) -> 0 | Y54: =SUM(LARGE(O54:X54,1),LARGE(O54:X54,2),LARGE(O54:X54,3),LARGE(O54:X54,4)) -> 1403
A55: 49 | B55: 10.U13M | C55: 2110-186 | D55: Marek Filip | H55: 39 | O55: =IF((E55>0),ROUND((101+1000*(LOG10($E$5)-LOG10(E55)))*$A$2,0),0) -> 0 | P55: =IF((F55>0),ROUND((101+1000*(LOG10($F$5)-LOG10(F55)))*$A$2,0),0) -> 0 | Q55: =IF((G55>0),ROUND((101+1000*(LOG10($G$5)-LOG10(G55)))*$A$2,0),0) -> 0 | R55: =IF((H55>0),ROUND((101+1000*(LOG10($H$5)-LOG10(H55)))*$A$2,0),0) -> 1074 | S55: =IF((I55>0),ROUND((101+1000*(LOG10($I$5)-LOG10(I55)))*$A$2,0),0) -> 0 | T55: =IF((J55>0),ROUND((101+1000*(LOG10($J$5)-LOG10(J55)))*$A$2,0),0) -> 0 | U55: =IF((K55>0),ROUND((101+1000*(LOG10($K$5)-LOG10(K55)))*$A$2,0),0) -> 0 | V55: =IF((L55>0),ROUND((101+1000*(LOG10($L$5)-LOG10(L55)))*$A$2,0),0) -> 0 | W55: =IF((M55>0),ROUND((101+1000*(LOG10($M$5)-LOG10(M55)))*$A$2,0),0) -> 0 | X55: =IF((N55>0),ROUND((101+1000*(LOG10($N$5)-LOG10(N55)))*$A$2,0),0) -> 0 | Y55: =SUM(LARGE(O55:X55,1),LARGE(O55:X55,2),LARGE(O55:X55,3),LARGE(O55:X55,4)) -> 1074
A56: 50 | B56: 5.U15F | C56: 2110-190 | D56: Hykrdová Markéta | H56: 40 | O56: =IF((E56>0),ROUND((101+1000*(LOG10($E$5)-LOG10(E56)))*$A$2,0),0) -> 0 | P56: =IF((F56>0),ROUND((101+1000*(LOG10($F$5)-LOG10(F56)))*$A$2,0),0) -> 0 | Q56: =IF((G56>0),ROUND((101+1000*(LOG10($G$5)-LOG10(G56)))*$A$2,0),0) -> 0 | R56: =IF((H56>0),ROUND((101+1000*(LOG10($H$5)-LOG10(H56)))*$A$2,0),0) -> 997 | S56: =IF((I56>0),ROUND((101+1000*(LOG10($I$5)-LOG10(I56)))*$A$2,0),0) -> 0 | T56: =IF((J56>0),ROUND((101+1000*(LOG10($J$5)-LOG10(J56)))*$A$2,0),0) -> 0 | U56: =IF((K56>0),ROUND((101+1000*(LOG10($K$5)-LOG10(K56)))*$A$2,0),0) -> 0 | V56: =IF((L56>0),ROUND((101+1000*(LOG10($L$5)-LOG10(L56)))*$A$2,0),0) -> 0 | W56: =IF((M56>0),ROUND((101+1000*(LOG10($M$5)-LOG10(M56)))*$A$2,0),0) -> 0 | X56: =IF((N56>0),ROUND((101+1000*(LOG10($N$5)-LOG10(N56)))*$A$2,0),0) -> 0 | Y56: =SUM(LARGE(O56:X56,1),LARGE(O56:X56,2),LARGE(O56:X56,3),LARGE(O56:X56,4)) -> 997
A57: 51 | B57: 8.U17M | C57: 1705-174 | D57: Voříšek Filip | H57: 44 | O57: =IF((E57>0),ROUND((101+1000*(LOG10($E$5)-LOG10(E57)))*$A$2,0),0) -> 0 | P57: =IF((F57>0),ROUND((101+1000*(LOG10($F$5)-LOG10(F57)))*$A$2,0),0) -> 0 | Q57: =IF((G57>0),ROUND((101+1000*(LOG10($G$5)-LOG10(G57)))*$A$2,0),0) -> 0 | R57: =IF((H57>0),ROUND((101+1000*(LOG10($H$5)-LOG10(H57)))*$A$2,0),0) -> 707 | S57: =IF((I57>0),ROUND((101+1000*(LOG10($I$5)-LOG10(I57)))*$A$2,0),0) -> 0 | T57: =IF((J57>0),ROUND((101+1000*(LOG10($J$5)-LOG10(J57)))*$A$2,0),0) -> 0 | U57: =IF((K57>0),ROUND((101+1000*(LOG10($K$5)-LOG10(K57)))*$A$2,0),0) -> 0 | V57: =IF((L57>0),ROUND((101+1000*(LOG10($L$5)-LOG10(L57)))*$A$2,0),0) -> 0 | W57: =IF((M57>0),ROUND((101+1000*(LOG10($M$5)-LOG10(M57)))*$A$2,0),0) -> 0 | X57: =IF((N57>0),ROUND((101+1000*(LOG10($N$5)-LOG10(N57)))*$A$2,0),0) -> 0 | Y57: =SUM(LARGE(O57:X57,1),LARGE(O57:X57,2),LARGE(O57:X57,3),LARGE(O57:X57,4)) -> 707
A58: 51 | B58: 11.U13M | C58: 1402-460 | D58: Loužek Štěpán | H58: 44 | O58: =IF((E58>0),ROUND((101+1000*(LOG10($E$5)-LOG10(E58)))*$A$2,0),0) -> 0 | P58: =IF((F58>0),ROUND((101+1000*(LOG10($F$5)-LOG10(F58)))*$A$2,0),0) -> 0 | Q58: =IF((G58>0),ROUND((101+1000*(LOG10($G$5)-LOG10(G58)))*$A$2,0),0) -> 0 | R58: =IF((H58>0),ROUND((101+1000*(LOG10($H$5)-LOG10(H58)))*$A$2,0),0) -> 707 | S58: =IF((I58>0),ROUND((101+1000*(LOG10($I$5)-LOG10(I58)))*$A$2,0),0) -> 0 | T58: =IF((J58>0),ROUND((101+1000*(LOG10($J$5)-LOG10(J58)))*$A$2,0),0) -> 0 | U58: =IF((K58>0),ROUND((101+1000*(LOG10($K$5)-LOG10(K58)))*$A$2,0),0) -> 0 | V58: =IF((L58>0),ROUND((101+1000*(LOG10($L$5)-LOG10(L58)))*$A$2,0),0) -> 0 | W58: =IF((M58>0),ROUND((101+1000*(LOG10($M$5)-LOG10(M58)))*$A$2,0),0) -> 0 | X58: =IF((N58>0),ROUND((101+1000*(LOG10($N$5)-LOG10(N58)))*$A$2,0),0) -> 0 | Y58: =SUM(LARGE(O58:X58,1),LARGE(O58:X58,2),LARGE(O58:X58,3),LARGE(O58:X58,4)) -> 707
A59: 51 | B59: 4.U17F | C59: 9999-001 | D59: Rašková Kateřina | I59: 30 | O59: =IF((E59>0),ROUND((101+1000*(LOG10($E$5)-LOG10(E59)))*$A$2,0),0) -> 0 | P59: =IF((F59>0),ROUND((101+1000*(LOG10($F$5)-LOG10(F59)))*$A$2,0),0) -> 0 | Q59: =IF((G59>0),ROUND((101+1000*(LOG10($G$5)-LOG10(G59)))*$A$2,0),0) -> 0 | R59: =IF((H59>0),ROUND((101+1000*(LOG10($H$5)-LOG10(H59)))*$A$2,0),0) -> 0 | S59: =IF((I59>0),ROUND((101+1000*(LOG10($I$5)-LOG10(I59)))*$A$2,0),0) -> 707 | T59: =IF((J59>0),ROUND((101+1000*(LOG10($J$5)-LOG10(J59)))*$A$2,0),0) -> 0 | U59: =IF((K59>0),ROUND((101+1000*(LOG10($K$5)-LOG10(K59)))*$A$2,0),0) -> 0 | V59: =IF((L59>0),ROUND((101+1000*(LOG10($L$5)-LOG10(L59)))*$A$2,0),0) -> 0 | W59: =IF((M59>0),ROUND((101+1000*(LOG10($M$5)-LOG10(M59)))*$A$2,0),0) -> 0 | X59: =IF((N59>0),ROUND((101+1000*(LOG10($N$5)-LOG10(N59)))*$A$2,0),0) -> 0 | Y59: =SUM(LARGE(O59:X59,1),LARGE(O59:X59,2),LARGE(O59:X59,3),LARGE(O59:X59,4)) -> 707

Sheet Pohár ČWA
A1: 3 | C1: 2017 | D1: Pouze členi | E1: A | J1: Věk min: | N1: Rok: | X1: created by: Zdeněk Vykydal
A2: 3 | C2: koeficient pro logaritmické body | J2: Věk max:
A4: Bic Techno 293 - Pohár ČWA 2017 Všichni CZE | F4: 171304 | G4: 172124 | H4: 172136 | I4: 172005 | J4: 171507 | K4: 171720 | P4: Pohár D.I.M. | Q4: Starobrno Cup | R4: Veterán Cup | S4: Závod mladých nadějí | T4: Senior Cup | U4: Skiregata
E5: Poč. záv./CTL | F5: 0 | G5: 8 | H5: 11 | I5: 44 | J5: 3 | K5: 18 | P5: 171304 | Q5: 172124 | R5: 172136 | S5: 172005 | T5: 171507 | U5: 171720 | Y5: =IF(O4,O4,"") -> 
A6: Poř. celk. | C6: Kat. | D6: Reg. číslo | E6: Jméno | F6: Poř. | G6: Poř. | H6: Poř. | I6: Poř. | J6: Poř. | K6: Poř. | L6: Poř. | M6: Poř. | N6: Poř. | O6: Poř. | P6: Body | Q6: Body | R6: Body | S6: Body | T6: Body | U6: Body | V6: Body | W6: Body | X6: Body | Y6: Body | Z6: Celkem
A7: 1 | B7: U17M | C7: 1.U17M | D7: 2110-172 | E7: Mikulec Martin | G7: 1 | H7: 1 | I7: 11 | K7: 9 | P7: =IF((F7>0),ROUND((101+1000*(LOG10($F$5)-LOG10(F7)))*$A$2,0),0) -> 0 | Q7: =IF((G7>0),ROUND((101+1000*(LOG10($G$5)-LOG10(G7)))*$A$2,0),0) -> 3012 | R7: =IF((H7>0),ROUND((101+1000*(LOG10($H$5)-LOG10(H7)))*$A$2,0),0) -> 3427 | S7: =IF((I7>0),ROUND((101+1000*(LOG10($I$5)-LOG10(I7)))*$A$2,0),0) -> 2109 | T7: =IF((J7>0),ROUND((101+1000*(LOG10($J$5)-LOG10(J7)))*$A$2,0),0) -> 0 | U7: =IF((K7>0),ROUND((101+1000*(LOG10($K$5)-LOG10(K7)))*$A$2,0),0) -> 1206 | V7: =IF((L7>0),ROUND((101+1000*(LOG10($L$5)-LOG10(L7)))*$A$2,0),0) -> 0 | W7: =IF((M7>0),ROUND((101+1000*(LOG10($M$5)-LOG10(M7)))*$A$2,0),0) -> 0 | X7: =IF((N7>0),ROUND((101+1000*(LOG10($N$5)-LOG10(N7)))*$A$2,0),0) -> 0 | Y7: =IF((O7>0),ROUND((101+1000*(LOG10($O$5)-LOG10(O7)))*$A$2,0),0) -> 0 | Z7: =SUM(LARGE(P7:Y7,1),LARGE(P7:Y7,2),LARGE(P7:Y7,3),LARGE(P7:Y7,4)) -> 9754
A8: 16 | B8: U17M | C8: 2.U17M | D8: 1705-145 | E8: Horáček Jonáš | I8: 6 | P8: 0 | Q8: 0 | R8: 0 | S8: 2899 | T8: 0 | U8: 0 | V8: 0 | W8: 0 | X8: 0 | Y8: 0 | Z8: 2899
A9: 17 | B9: U17M | C9: 3.U17M | D9: 1705-085 | E9: Sadílek Adam | I9: 13 | K9: 11 | P9: 0 | Q9: 0 | R9: 0 | S9: 1892 | T9: 0 | U9: 945 | V9: 0 | W9: 0 | X9: 0 | Y9: 0 | Z9: 2837
A10: 24 | B10: U17M | C10: 4.U17M | D10: 1402-384 | E10: Šplíchal Filip | I10: 12 | P10: 0 | Q10: 0 | R10: 0 | S10: 1996 | T10: 0 | U10: 0 | V10: 0 | W10: 0 | X10: 0 | Y10: 0 | Z10: 1996
A11: 30 | B11: U17M | C11: 5.U17M | D11: 1609-212 | E11: Müller Ondřej | I11: 19 | P11: 0 | Q11: 0 | R11: 0 | S11: 1397 | T11: 0 | U11: 0 | V11: 0 | W11: 0 | X11: 0 | Y11: 0 | Z11: 1397
A12: 38 | B12: U17M | C12: 6.U17M | D12: 1130-235 | E12: Dvořák Rudolf | I12: 28 | P12: 0 | Q12: 0 | R12: 0 | S12: 892 | T12: 0 | U12: 0 | V12: 0 | W12: 0 | X12: 0 | Y12: 0 | Z12: 892
A13: 44 | B13: U17M | C13: 7.U17M | D13: 1705-174 | E13: Voříšek Filip | I13: 42 | P13: 0 | Q13: 0 | R13: 0 | S13: 364 | T13: 0 | U13: 0 | V13: 0 | W13: 0 | X13: 0 | Y13: 0 | Z13: 364
A14: 5 | B14: U17F | C14: 1.U17F | D14: 1607-166 | E14: Himmelová Klára | I14: 4 | J14: 1 | P14: 0 | Q14: 0 | R14: 0 | S14: 3427 | T14: 1734 | U14: 0 | V14: 0 | W14: 0 | X14: 0 | Y14: 0 | Z14: 5161
A15: 19 | B15: U17F | C15: 2.U17F | D15: 1130-276 | E15: Švíková Kateřina | I15: 7 | P15: 0 | Q15: 0 | R15: 0 | S15: 2698 | T15: 0 | U15: 0 | V15: 0 | W15: 0 | X15: 0 | Y15: 0 | Z15: 2698
A16: 6 | B16: U15M | C16: 1.U15M | D16: 2110-175 | E16: Wagner David | G16: 2 | H16: 4 | I16: 22 | P16: 0 | Q16: 2109 | R16: 1621 | S16: 1206 | T16: 0 | U16: 0 | V16: 0 | W16: 0 | X16: 0 | Y16: 0 | Z16: 4936
A17: 12 | B17: U15M | C17: 2.U15M | D17: 1801-167 | E17: Štěpánský Adam | I17: 3 | P17: 0 | Q17: 0 | R17: 0 | S17: 3802 | T17: 0 | U17: 0 | V17: 0 | W17: 0 | X17: 0 | Y17: 0 | Z17: 3802
A18: 14 | B18: U15M | C18: 3.U15M | D18: 2110-185 | E18: Diviš Lukáš | H18: 3 | I18: 24 | P18: 0 | Q18: 0 | R18: 1996 | S18: 1093 | T18: 0 | U18: 0 | V18: 0 | W18: 0 | X18: 0 | Y18: 0 | Z18: 3089
A19: 20 | B19: U15M | C19: 4.U15M | D19: 1607-165 | E19: Himmel Jiří | I19: 14 | J19: 2 | P19: 0 | Q19: 0 | R19: 0 | S19: 1795 | T19: 831 | U19: 0 | V19: 0 | W19: 0 | X19: 0 | Y19: 0 | Z19: 2626
A20: 34 | B20: U15M | C20: 5.U15M | D20: 1607-169 | E20: Parchomenko Ondřej | I20: 29 | J20: 3 | P20: 0 | Q20: 0 | R20: 0 | S20: 846 | T20: 303 | U20: 0 | V20: 0 | W20: 0 | X20: 0 | Y20: 0 | Z20: 1149
A21: 40 | B21: U15M | C21: 6.U15M | D21: 2001-220 | E21: Provazník Samuel | I21: 34 | P21: 0 | Q21: 0 | R21: 0 | S21: 639 | T21: 0 | U21: 0 | V21: 0 | W21: 0 | X21: 0 | Y21: 0 | Z21: 639
A22: 7 | B22: U15F | C22: 1.U15F | D22: 1401-459 | E22: Altmannová Kateřina | I22: 15 | K22: 2 | P22: 0 | Q22: 0 | R22: 0 | S22: 1705 | T22: 0 | U22: 3166 | V22: 0 | W22: 0 | X22: 0 | Y22: 0 | Z22: 4871
A23: 22 | B23: U15F | C23: 2.U15F | D23: 2110-191 | E23: Neckařová Martina | G23: 7 | H23: 7 | I23: 27 | P23: 0 | Q23: 477 | R23: 892 | S23: 939 | T23: 0 | U23: 0 | V23: 0 | W23: 0 | X23: 0 | Y23: 0 | Z23: 2308
A24: 32 | B24: U15F | C24: 3.U15F | D24: 1130-352 | E24: Švíková Bára | I24: 20 | P24: 0 | Q24: 0 | R24: 0 | S24: 1330 | T24: 0 | U24: 0 | V24: 0 | W24: 0 | X24: 0 | Y24: 0 | Z24: 1330
A25: 36 | B25: U15F | C25: 4.U15F | D25: 2110-190 | E25: Hykrdová Markéta | G25: 8 | H25: 11 | I25: 40 | P25: 0 | Q25: 303 | R25: 303 | S25: 427 | T25: 0 | U25: 0 | V25: 0 | W25: 0 | X25: 0 | Y25: 0 | Z25: 1033
A26: 37 | B26: U15F | C26: 5.U15F | D26: 2110-184 | E26: Richterová Ludmila | H26: 10 | I26: 35 | P26: 0 | Q26: 0 | R26: 427 | S26: 601 | T26: 0 | U26: 0 | V26: 0 | W26: 0 | X26: 0 | Y26: 0 | Z26: 1028
A27: 3 | B27: U13M | C27: 1.U13M | D27: 2110-178 | E27: Skřepek Šimon | G27: 3 | H27: 5 | I27: 21 | K27: 10 | P27: 0 | Q27: 1581 | R27: 1330 | S27: 1267 | T27: 0 | U27: 1069 | V27: 0 | W27: 0 | X27: 0 | Y27: 0 | Z27: 5247
A28: 43 | B28: U13M | C28: 10.U13M | D28: 7019-390 | E28: Slíva Matěj | I28: 41 | P28: 0 | Q28: 0 | R28: 0 | S28: 395 | T28: 0 | U28: 0 | V28: 0 | W28: 0 | X28: 0 | Y28: 0 | Z28: 395
A29: 45 | B29: U13M | C29: 11.U13M | D29: 1402-460 | E29: Loužek Štěpán | I29: 44 | P29: 0 | Q29: 0 | R29: 0 | S29: 303 | T29: 0 | U29: 0 | V29: 0 | W29: 0 | X29: 0 | Y29: 0 | Z29: 303
A30: 46 | B30: U13M | C30: 12.U13M | D30: 9999-003 | E30: Koukal Sebastian | K30: 18 | P30: 0 | Q30: 0 | R30: 0 | S30: 0 | T30: 0 | U30: 303 | V30: 0 | W30: 0 | X30: 0 | Y30: 0 | Z30: 303
A31: 11 | B31: U13M | C31: 2.U13M | D31: 1705-090 | E31: Drda David | I31: 17 | K31: 3 | P31: 0 | Q31: 0 | R31: 0 | S31: 1542 | T31: 0 | U31: 2637 | V31: 0 | W31: 0 | X31: 0 | Y31: 0 | Z31: 4179
A32: 23 | B32: U13M | C32: 3.U13M | D32: 1609-298 | E32: Rais Michal | I32: 31 | K32: 8 | P32: 0 | Q32: 0 | R32: 0 | S32: 759 | T32: 0 | U32: 1360 | V32: 0 | W32: 0 | X32: 0 | Y32: 0 | Z32: 2119
A33: 25 | B33: U13M | C33: 4.U13M | D33: 2110-173 | E33: Šeliga Teodor | G33: 4 | I33: 32 | P33: 0 | Q33: 1206 | R33: 0 | S33: 718 | T33: 0 | U33: 0 | V33: 0 | W33: 0 | X33: 0 | Y33: 0 | Z33: 1924
A34: 27 | B34: U13M | C34: 5.U13M | D34: 1609-301 | E34: Tlapák Vojtěch | I34: 25 | K34: 14 | P34: 0 | Q34: 0 | R34: 0 | S34: 1040 | T34: 0 | U34: 630 | V34: 0 | W34: 0 | X34: 0 | Y34: 0 | Z34: 1670
A35: 33 | B35: U13M | C35: 6.U13M | D35: 1213-199 | E35: Hasman Radim | I35: 37 | K35: 13 | P35: 0 | Q35: 0 | R35: 0 | S35: 529 | T35: 0 | U35: 727 | V35: 0 | W35: 0 | X35: 0 | Y35: 0 | Z35: 1256
A36: 39 | B36: U13M | C36: 7.U13M | D36: 1609-303 | E36: Kříž Jan | I36: 44 | K36: 17 | P36: 0 | Q36: 0 | R36: 0 | S36: 303 | T36: 0 | U36: 377 | V36: 0 | W36: 0 | X36: 0 | Y36: 0 | Z36: 680
A37: 41 | B37: U13M | C37: 8.U13M | D37: 2110-186 | E37: Marek Filip | I37: 39 | P37: 0 | Q37: 0 | R37: 0 | S37: 460 | T37: 0 | U37: 0 | V37: 0 | W37: 0 | X37: 0 | Y37: 0 | Z37: 460
A38: 42 | B38: U13M | C38: 9.U13M | D38: 9999-002 | E38: Hrdina Pavel | K38: 16 | P38: 0 | Q38: 0 | R38: 0 | S38: 0 | T38: 0 | U38: 456 | V38: 0 | W38: 0 | X38: 0 | Y38: 0 | Z38: 456
A39: 2 | B39: U13F | C39: 1.U13F | D39: 2110-182 | E39: Chalupníková Kristýna | H39: 2 | I39: 5 | K39: 1 | P39: 0 | Q39: 0 | R39: 2524 | S39: 3136 | T39: 0 | U39: 4069 | V39: 0 | W39: 0 | X39: 0 | Y39: 0 | Z39: 9729
A40: 8 | B40: U13F | C40: 2.U13F | D40: 1705-086 | E40: Sadílková Nela | I40: 8 | K40: 5 | P40: 0 | Q40: 0 | R40: 0 | S40: 2524 | T40: 0 | U40: 1972 | V40: 0 | W40: 0 | X40: 0 | Y40: 0 | Z40: 4496
A41: 9 | B41: U13F | C41: 3.U13F | D41: 1609-278 | E41: Říčanová Nicol | I41: 10 | K41: 4 | P41: 0 | Q41: 0 | R41: 0 | S41: 2233 | T41: 0 | U41: 2263 | V41: 0 | W41: 0 | X41: 0 | Y41: 0 | Z41: 4496
A42: 13 | B42: U13F | C42: 4.U13F | D42: 2110-183 | E42: Komendová Kateřina | G42: 5 | H42: 6 | I42: 23 | P42: 0 | Q42: 915 | R42: 1093 | S42: 1148 | T42: 0 | U42: 0 | V42: 0 | W42: 0 | X42: 0 | Y42: 0 | Z42: 3156
A43: 15 | B43: U13F | C43: 5.U13F | D43: 1705-074 | E43: Štěpánková Markéta | H43: 8 | I43: 30 | K43: 7 | P43: 0 | Q43: 0 | R43: 718 | S43: 802 | T43: 0 | U43: 1534 | V43: 0 | W43: 0 | X43: 0 | Y43: 0 | Z43: 3054
A44: 18 | B44: U13F | C44: 6.U13F | D44: 2201-036 | E44: Piňosová Kristýna | I44: 26 | K44: 6 | P44: 0 | Q44: 0 | R44: 0 | S44: 988 | T44: 0 | U44: 1734 | V44: 0 | W44: 0 | X44: 0 | Y44: 0 | Z44: 2722
A45: 26 | B45: U13F | C45: 7.U13F | D45: 2110-189 | E45: Samcová Klára | G45: 6 | H45: 9 | I45: 33 | P45: 0 | Q45: 678 | R45: 564 | S45: 678 | T45: 0 | U45: 0 | V45: 0 | W45: 0 | X45: 0 | Y45: 0 | Z45: 1920
A46: 31 | B46: U13F | C46: 8.U13F | D46: 1705-169 | E46: Lojínová Alexandra | I46: 36 | K46: 12 | P46: 0 | Q46: 0 | R46: 0 | S46: 564 | T46: 0 | U46: 831 | V46: 0 | W46: 0 | X46: 0 | Y46: 0 | Z46: 1395
A47: 35 | B47: U13F | C47: 9.U13F | D47: 1609-308 | E47: Tlapáková Zuzana | I47: 38 | K47: 15 | P47: 0 | Q47: 0 | R47: 0 | S47: 494 | T47: 0 | U47: 541 | V47: 0 | W47: 0 | X47: 0 | Y47: 0 | Z47: 1035
A48: 4 | B48: O17M | C48: 1.O17M | D48: 2101-375 | E48: Pospíšil Martin | I48: 1 | P48: 0 | Q48: 0 | R48: 0 | S48: 5233 | T48: 0 | U48: 0 | V48: 0 | W48: 0 | X48: 0 | Y48: 0 | Z48: 5233
A49: 10 | B49: O17M | C49: 2.O17M | D49: 1705-003 | E49: Štěpánek Jan | I49: 2 | P49: 0 | Q49: 0 | R49: 0 | S49: 4330 | T49: 0 | U49: 0 | V49: 0 | W49: 0 | X49: 0 | Y49: 0 | Z49: 4330
A50: 28 | B50: O17M | C50: 3.O17M | D50: 7019-076 | E50: Raška Marek | I50: 16 | P50: 0 | Q50: 0 | R50: 0 | S50: 1621 | T50: 0 | U50: 0 | V50: 0 | W50: 0 | X50: 0 | Y50: 0 | Z50: 1621
A51: 29 | B51: O17M | C51: 4.O17M | D51: 2001-225 | E51: Netík Pavel | I51: 18 | P51: 0 | Q51: 0 | R51: 0 | S51: 1468 | T51: 0 | U51: 0 | V51: 0 | W51: 0 | X51: 0 | Y51: 0 | Z51: 1468
A52: 21 | B52: O17F | C52: 1.O17F | D52: 7019-377 | E52: Rašková Adéla | I52: 9 | P52: 0 | Q52: 0 | R52: 0 | S52: 2371 | T52: 0 | U52: 0 | V52: 0 | W52: 0 | X52: 0 | Y52: 0 | Z52: 2371
A53: 47 | P53: =IF((F53>0),ROUND((101+1000*(LOG10($F$5)-LOG10(F53)))*$A$2,0),0) -> 0 | Q53: =IF((G53>0),ROUND((101+1000*(LOG10($G$5)-LOG10(G53)))*$A$2,0),0) -> 0 | R53: =IF((H53>0),ROUND((101+1000*(LOG10($H$5)-LOG10(H53)))*$A$2,0),0) -> 0 | S53: =IF((I53>0),ROUND((101+1000*(LOG10($I$5)-LOG10(I53)))*$A$2,0),0) -> 0 | T53: =IF((J53>0),ROUND((101+1000*(LOG10($J$5)-LOG10(J53)))*$A$2,0),0) -> 0 | U53: =IF((K53>0),ROUND((101+1000*(LOG10($K$5)-LOG10(K53)))*$A$2,0),0) -> 0 | V53: =IF((L53>0),ROUND((101+1000*(LOG10($L$5)-LOG10(L53)))*$A$2,0),0) -> 0 | W53: =IF((M53>0),ROUND((101+1000*(LOG10($M$5)-LOG10(M53)))*$A$2,0),0) -> 0 | X53: =IF((N53>0),ROUND((101+1000*(LOG10($N$5)-LOG10(N53)))*$A$2,0),0) -> 0 | Y53: =IF((O53>0),ROUND((101+1000*(LOG10($O$5)-LOG10(O53)))*$A$2,0),0) -> 0 | Z53: =SUM(LARGE(P53:Y53,1),LARGE(P53:Y53,2),LARGE(P53:Y53,3),LARGE(P53:Y53,4)) -> 0
A54: 48 | P54: 0 | Q54: 0 | R54: 0 | S54: 0 | T54: 0 | U54: 0 | V54: 0 | W54: 0 | X54: 0 | Y54: 0 | Z54: 0
A55: 49 | P55: 0 | Q55: 0 | R55: 0 | S55: 0 | T55: 0 | U55: 0 | V55: 0 | W55: 0 | X55: 0 | Y55: 0 | Z55: 0
A56: 50 | P56: 0 | Q56: 0 | R56: 0 | S56: 0 | T56: 0 | U56: 0 | V56: 0 | W56: 0 | X56: 0 | Y56: 0 | Z56: 0

Sheet Český regionální pohár
A1: 3C | B1: 2017 | C1: Pouze členi | D1: A | I1: Věk min: | M1: Rok: | W1: created by: Zdeněk Vykydal
A2: 3 | B2: koeficient pro logaritmické body | I2: Věk max:
A4: Bic Techno 293 - Český regionální pohár 2017 Všichni CZE | E4: 171304 | F4: 171507 | G4: 171720 | O4: Pohár D.I.M. | P4: Senior Cup | Q4: Skiregata
D5: Poč. záv./CTL | E5: 0 | F5: 3 | G5: 18 | O5: 171304 | P5: 171507 | Q5: 171720 | X5: =IF(N4,N4,"") -> 
A6: Poř. celk. | B6: Kat. | C6: Reg. číslo | D6: Jméno | E6: Poř. | F6: Poř. | G6: Poř. | H6: Poř. | I6: Poř. | J6: Poř. | K6: Poř. | L6: Poř. | M6: Poř. | N6: Poř. | O6: Body | P6: Body | Q6: Body | R6: Body | S6: Body | T6: Body | U6: Body | V6: Body | W6: Body | X6: Body | Y6: Celkem
A7: 1 | B7: 1.U13F | C7: 2110-182 | D7: Chalupníková Kristýna | G7: 1 | O7: =IF((E7>0),ROUND((101+1000*(LOG10($E$5)-LOG10(E7)))*$A$2,0),0) -> 0 | P7: =IF((F7>0),ROUND((101+1000*(LOG10($F$5)-LOG10(F7)))*$A$2,0),0) -> 0 | Q7: =IF((G7>0),ROUND((101+1000*(LOG10($G$5)-LOG10(G7)))*$A$2,0),0) -> 4069 | R7: =IF((H7>0),ROUND((101+1000*(LOG10($H$5)-LOG10(H7)))*$A$2,0),0) -> 0 | S7: =IF((I7>0),ROUND((101+1000*(LOG10($I$5)-LOG10(I7)))*$A$2,0),0) -> 0 | T7: =IF((J7>0),ROUND((101+1000*(LOG10($J$5)-LOG10(J7)))*$A$2,0),0) -> 0 | U7: =IF((K7>0),ROUND((101+1000*(LOG10($K$5)-LOG10(K7)))*$A$2,0),0) -> 0 | V7: =IF((L7>0),ROUND((101+1000*(LOG10($L$5)-LOG10(L7)))*$A$2,0),0) -> 0 | W7: =IF((M7>0),ROUND((101+1000*(LOG10($M$5)-LOG10(M7)))*$A$2,0),0) -> 0 | X7: =IF((N7>0),ROUND((101+1000*(LOG10($N$5)-LOG10(N7)))*$A$2,0),0) -> 0 | Y7: =SUM(LARGE(O7:X7,1),LARGE(O7:X7,2),LARGE(O7:X7,3),LARGE(O7:X7,4)) -> 4069
A8: 2 | B8: 1.U15F | C8: 1401-459 | D8: Altmannová Kateřina | G8: 2 | O8: 0 | P8: 0 | Q8: 3166 | R8: 0 | S8: 0 | T8: 0 | U8: 0 | V8: 0 | W8: 0 | X8: 0 | Y8: 3166
A9: 3 | B9: 1.U13M | C9: 1705-090 | D9: Drda David | G9: 3 | O9: 0 | P9: 0 | Q9: 2637 | R9: 0 | S9: 0 | T9: 0 | U9: 0 | V9: 0 | W9: 0 | X9: 0 | Y9: 2637
A10: 4 | B10: 2.U13F | C10: 1609-278 | D10: Říčanová Nicol | G10: 4 | O10: 0 | P10: 0 | Q10: 2263 | R10: 0 | S10: 0 | T10: 0 | U10: 0 | V10: 0 | W10: 0 | X10: 0 | Y10: 2263
A11: 5 | B11: 3.U13F | C11: 1705-086 | D11: Sadílková Nela | G11: 5 | O11: 0 | P11: 0 | Q11: 1972 | R11: 0 | S11: 0 | T11: 0 | U11: 0 | V11: 0 | W11: 0 | X11: 0 | Y11: 1972
A12: 6 | B12: 1.U17F | C12: 1607-166 | D12: Himmelová Klára | F12: 1 | O12: 0 | P12: 1734 | Q12: 0 | R12: 0 | S12: 0 | T12: 0 | U12: 0 | V12: 0 | W12: 0 | X12: 0 | Y12: 1734
A13: 7 | B13: 4.U13F | C13: 2201-036 | D13: Piňosová Kristýna | G13: 6 | O13: 0 | P13: 0 | Q13: 1734 | R13: 0 | S13: 0 | T13: 0 | U13: 0 | V13: 0 | W13: 0 | X13: 0 | Y13: 1734
A14: 8 | B14: 5.U13F | C14: 1705-074 | D14: Štěpánková Markéta | G14: 7 | O14: 0 | P14: 0 | Q14: 1534 | R14: 0 | S14: 0 | T14: 0 | U14: 0 | V14: 0 | W14: 0 | X14: 0 | Y14: 1534
A15: 9 | B15: 2.U13M | C15: 1609-298 | D15: Rais Michal | G15: 8 | O15: 0 | P15: 0 | Q15: 1360 | R15: 0 | S15: 0 | T15: 0 | U15: 0 | V15: 0 | W15: 0 | X15: 0 | Y15: 1360
A16: 10 | B16: 1.U17M | C16: 2110-172 | D16: Mikulec Martin | G16: 9 | O16: 0 | P16: 0 | Q16: 1206 | R16: 0 | S16: 0 | T16: 0 | U16: 0 | V16: 0 | W16: 0 | X16: 0 | Y16: 1206
A17: 11 | B17: 3.U13M | C17: 2110-178 | D17: Skřepek Šimon | G17: 10 | O17: 0 | P17: 0 | Q17: 1069 | R17: 0 | S17: 0 | T17: 0 | U17: 0 | V17: 0 | W17: 0 | X17: 0 | Y17: 1069
A18: 12 | B18: 2.U17M | C18: 1705-085 | D18: Sadílek Adam | G18: 11 | O18: 0 | P18: 0 | Q18: 945 | R18: 0 | S18: 0 | T18: 0 | U18: 0 | V18: 0 | W18: 0 | X18: 0 | Y18: 945
A19: 13 | B19: 1.U15M | C19: 1607-165 | D19: Himmel Jiří | F19: 2 | O19: 0 | P19: 831 | Q19: 0 | R19: 0 | S19: 0 | T19: 0 | U19: 0 | V19: 0 | W19: 0 | X19: 0 | Y19: 831
A20: 14 | B20: 6.U13F | C20: 1705-169 | D20: Lojínová Alexandra | G20: 12 | O20: 0 | P20: 0 | Q20: 831 | R20: 0 | S20: 0 | T20: 0 | U20: 0 | V20: 0 | W20: 0 | X20: 0 | Y20: 831
A21: 15 | B21: 4.U13M | C21: 1213-199 | D21: Hasman Radim | G21: 13 | O21: 0 | P21: 0 | Q21: 727 | R21: 0 | S21: 0 | T21: 0 | U21: 0 | V21: 0 | W21: 0 | X21: 0 | Y21: 727
A22: 16 | B22: 5.U13M | C22: 1609-301 | D22: Tlapák Vojtěch | G22: 14 | O22: 0 | P22: 0 | Q22: 630 | R22: 0 | S22: 0 | T22: 0 | U22: 0 | V22: 0 | W22: 0 | X22: 0 | Y22: 630
A23: 17 | B23: 7.U13F | C23: 1609-308 | D23: Tlapáková Zuzana | G23: 15 | O23: 0 | P23: 0 | Q23: 541 | R23: 0 | S23: 0 | T23: 0 | U23: 0 | V23: 0 | W23: 0 | X23: 0 | Y23: 541
A24: 18 | B24: 6.U13M | C24: 9999-002 | D24: Hrdina Pavel | G24: 16 | O24: 0 | P24: 0 | Q24: 456 | R24: 0 | S24: 0 | T24: 0 | U24: 0 | V24: 0 | W24: 0 | X24: 0 | Y24: 456
A25: 19 | B25: 7.U13M | C25: 1609-303 | D25: Kříž Jan | G25: 17 | O25: 0 | P25: 0 | Q25: 377 | R25: 0 | S25: 0 | T25: 0 | U25: 0 | V25: 0 | W25: 0 | X25: 0 | Y25: 377
A26: 20 | B26: 2.U15M | C26: 1607-169 | D26: Parchomenko Ondřej | F26: 3 | O26: 0 | P26: 303 | Q26: 0 | R26: 0 | S26: 0 | T26: 0 | U26: 0 | V26: 0 | W26: 0 | X26: 0 | Y26: 303
A27: 21 | B27: 8.U13M | C27: 9999-003 | D27: Koukal Sebastian | G27: 18 | O27: 0 | P27: 0 | Q27: 303 | R27: 0 | S27: 0 | T27: 0 | U27: 0 | V27: 0 | W27: 0 | X27: 0 | Y27: 303
A28: 22 | O28: 0 | P28: 0 | Q28: 0 | R28: 0 | S28: 0 | T28: 0 | U28: 0 | V28: 0 | W28: 0 | X28: 0 | Y28: 0
A29: 23 | O29: 0 | P29: 0 | Q29: 0 | R29: 0 | S29: 0 | T29: 0 | U29: 0 | V29: 0 | W29: 0 | X29: 0 | Y29: 0
A30: 24 | O30: 0 | P30: 0 | Q30: 0 | R30: 0 | S30: 0 | T30: 0 | U30: 0 | V30: 0 | W30: 0 | X30: 0 | Y30: 0
A31: 25 | O31: 0 | P31: 0 | Q31: 0 | R31: 0 | S31: 0 | T31: 0 | U31: 0 | V31: 0 | W31: 0 | X31: 0 | Y31: 0
A32: 26 | O32: 0 | P32: 0 | Q32: 0 | R32: 0 | S32: 0 | T32: 0 | U32: 0 | V32: 0 | W32: 0 | X32: 0 | Y32: 0
A33: 27 | O33: 0 | P33: 0 | Q33: 0 | R33: 0 | S33: 0 | T33: 0 | U33: 0 | V33: 0 | W33: 0 | X33: 0 | Y33: 0
A34: 28 | O34: 0 | P34: 0 | Q34: 0 | R34: 0 | S34: 0 | T34: 0 | U34: 0 | V34: 0 | W34: 0 | X34: 0 | Y34: 0
A35: 29 | O35: 0 | P35: 0 | Q35: 0 | R35: 0 | S35: 0 | T35: 0 | U35: 0 | V35: 0 | W35: 0 | X35: 0 | Y35: 0
A36: 30 | O36: 0 | P36: 0 | Q36: 0 | R36: 0 | S36: 0 | T36: 0 | U36: 0 | V36: 0 | W36: 0 | X36: 0 | Y36: 0
A37: 31 | O37: 0 | P37: 0 | Q37: 0 | R37: 0 | S37: 0 | T37: 0 | U37: 0 | V37: 0 | W37: 0 | X37: 0 | Y37: 0
A38: 32 | O38: 0 | P38: 0 | Q38: 0 | R38: 0 | S38: 0 | T38: 0 | U38: 0 | V38: 0 | W38: 0 | X38: 0 | Y38: 0
A39: 33 | O39: =IF((E39>0),ROUND((101+1000*(LOG10($E$5)-LOG10(E39)))*$A$2,0),0) -> 0 | P39: =IF((F39>0),ROUND((101+1000*(LOG10($F$5)-LOG10(F39)))*$A$2,0),0) -> 0 | Q39: =IF((G39>0),ROUND((101+1000*(LOG10($G$5)-LOG10(G39)))*$A$2,0),0) -> 0 | R39: =IF((H39>0),ROUND((101+1000*(LOG10($H$5)-LOG10(H39)))*$A$2,0),0) -> 0 | S39: =IF((I39>0),ROUND((101+1000*(LOG10($I$5)-LOG10(I39)))*$A$2,0),0) -> 0 | T39: =IF((J39>0),ROUND((101+1000*(LOG10($J$5)-LOG10(J39)))*$A$2,0),0) -> 0 | U39: =IF((K39>0),ROUND((101+1000*(LOG10($K$5)-LOG10(K39)))*$A$2,0),0) -> 0 | V39: =IF((L39>0),ROUND((101+1000*(LOG10($L$5)-LOG10(L39)))*$A$2,0),0) -> 0 | W39: =IF((M39>0),ROUND((101+1000*(LOG10($M$5)-LOG10(M39)))*$A$2,0),0) -> 0 | X39: =IF((N39>0),ROUND((101+1000*(LOG10($N$5)-LOG10(N39)))*$A$2,0),0) -> 0 | Y39: =SUM(LARGE(O39:X39,1),LARGE(O39:X39,2),LARGE(O39:X39,3),LARGE(O39:X39,4)) -> 0
A40: 34 | O40: 0 | P40: 0 | Q40: 0 | R40: 0 | S40: 0 | T40: 0 | U40: 0 | V40: 0 | W40: 0 | X40: 0 | Y40: 0
A41: 35 | O41: 0 | P41: 0 | Q41: 0 | R41: 0 | S41: 0 | T41: 0 | U41: 0 | V41: 0 | W41: 0 | X41: 0 | Y41: 0
A42: 36 | O42: 0 | P42: 0 | Q42: 0 | R42: 0 | S42: 0 | T42: 0 | U42: 0 | V42: 0 | W42: 0 | X42: 0 | Y42: 0
A43: 37 | O43: 0 | P43: 0 | Q43: 0 | R43: 0 | S43: 0 | T43: 0 | U43: 0 | V43: 0 | W43: 0 | X43: 0 | Y43: 0
A44: 38 | O44: 0 | P44: 0 | Q44: 0 | R44: 0 | S44: 0 | T44: 0 | U44: 0 | V44: 0 | W44: 0 | X44: 0 | Y44: 0
A45: 39 | O45: 0 | P45: 0 | Q45: 0 | R45: 0 | S45: 0 | T45: 0 | U45: 0 | V45: 0 | W45: 0 | X45: 0 | Y45: 0
A46: 40 | O46: 0 | P46: 0 | Q46: 0 | R46: 0 | S46: 0 | T46: 0 | U46: 0 | V46: 0 | W46: 0 | X46: 0 | Y46: 0
A47: 41 | O47: 0 | P47: 0 | Q47: 0 | R47: 0 | S47: 0 | T47: 0 | U47: 0 | V47: 0 | W47: 0 | X47: 0 | Y47: 0
A48: 42 | O48: 0 | P48: 0 | Q48: 0 | R48: 0 | S48: 0 | T48: 0 | U48: 0 | V48: 0 | W48: 0 | X48: 0 | Y48: 0
A49: 43 | O49: 0 | P49: 0 | Q49: 0 | R49: 0 | S49: 0 | T49: 0 | U49: 0 | V49: 0 | W49: 0 | X49: 0 | Y49: 0
A50: 44 | O50: 0 | P50: 0 | Q50: 0 | R50: 0 | S50: 0 | T50: 0 | U50: 0 | V50: 0 | W50: 0 | X50: 0 | Y50: 0
A51: 45 | O51: 0 | P51: 0 | Q51: 0 | R51: 0 | S51: 0 | T51: 0 | U51: 0 | V51: 0 | W51: 0 | X51: 0 | Y51: 0
A52: 46 | O52: 0 | P52: 0 | Q52: 0 | R52: 0 | S52: 0 | T52: 0 | U52: 0 | V52: 0 | W52: 0 | X52: 0 | Y52: 0
A53: 47 | O53: 0 | P53: 0 | Q53: 0 | R53: 0 | S53: 0 | T53: 0 | U53: 0 | V53: 0 | W53: 0 | X53: 0 | Y53: 0
A54: 48 | O54: 0 | P54: 0 | Q54: 0 | R54: 0 | S54: 0 | T54: 0 | U54: 0 | V54: 0 | W54: 0 | X54: 0 | Y54: 0
A55: 49 | O55: 0 | P55: 0 | Q55: 0 | R55: 0 | S55: 0 | T55: 0 | U55: 0 | V55: 0 | W55: 0 | X55: 0 | Y55: 0
A56: 50 | O56: 0 | P56: 0 | Q56: 0 | R56: 0 | S56: 0 | T56: 0 | U56: 0 | V56: 0 | W56: 0 | X56: 0 | Y56: 0

Sheet Moravský regionální pohár
A1: 3M | B1: 2017 | C1: Pouze členi | D1: A | I1: Věk min: | M1: Rok: | W1: created by: Zdeněk Vykydal
A2: 3 | B2: koeficient pro logaritmické body | I2: Věk max:
A4: Bic Techno 293 - Moravský regionální pohár 2017 Všichni CZE | E4: 172124 | F4: 172136 | G4: 172005 | O4: Starobrno Cup | P4: Veterán Cup | Q4: Závod mladých nadějí
D5: Poč. záv./CTL | E5: 8 | F5: 11 | G5: 44 | O5: 172124 | P5: 172136 | Q5: 172005 | X5: =IF(N4,N4,"") -> 
A6: Poř. celk. | B6: Kat. | C6: Reg. číslo | D6: Jméno | E6: Poř. | F6: Poř. | G6: Poř. | H6: Poř. | I6: Poř. | J6: Poř. | K6: Poř. | L6: Poř. | M6: Poř. | N6: Poř. | O6: Body | P6: Body | Q6: Body | R6: Body | S6: Body | T6: Body | U6: Body | V6: Body | W6: Body | X6: Body | Y6: Celkem
A7: 1 | B7: 1.U17M | C7: 2110-172 | D7: Mikulec Martin | E7: 1 | F7: 1 | G7: 11 | O7: =IF((E7>0),ROUND((101+1000*(LOG10($E$5)-LOG10(E7)))*$A$2,0),0) -> 3012 | P7: =IF((F7>0),ROUND((101+1000*(LOG10($F$5)-LOG10(F7)))*$A$2,0),0) -> 3427 | Q7: =IF((G7>0),ROUND((101+1000*(LOG10($G$5)-LOG10(G7)))*$A$2,0),0) -> 2109 | R7: =IF((H7>0),ROUND((101+1000*(LOG10($H$5)-LOG10(H7)))*$A$2,0),0) -> 0 | S7: =IF((I7>0),ROUND((101+1000*(LOG10($I$5)-LOG10(I7)))*$A$2,0),0) -> 0 | T7: =IF((J7>0),ROUND((101+1000*(LOG10($J$5)-LOG10(J7)))*$A$2,0),0) -> 0 | U7: =IF((K7>0),ROUND((101+1000*(LOG10($K$5)-LOG10(K7)))*$A$2,0),0) -> 0 | V7: =IF((L7>0),ROUND((101+1000*(LOG10($L$5)-LOG10(L7)))*$A$2,0),0) -> 0 | W7: =IF((M7>0),ROUND((101+1000*(LOG10($M$5)-LOG10(M7)))*$A$2,0),0) -> 0 | X7: =IF((N7>0),ROUND((101+1000*(LOG10($N$5)-LOG10(N7)))*$A$2,0),0) -> 0 | Y7: =SUM(LARGE(O7:X7,1),LARGE(O7:X7,2),LARGE(O7:X7,3),LARGE(O7:X7,4)) -> 8548
A8: 2 | B8: 1.U13F | C8: 2110-182 | D8: Chalupníková Kristýna | F8: 2 | G8: 5 | O8: 0 | P8: 2524 | Q8: 3136 | R8: 0 | S8: 0 | T8: 0 | U8: 0 | V8: 0 | W8: 0 | X8: 0 | Y8: 5660
A9: 3 | B9: 1.O17M | C9: 2101-375 | D9: Pospíšil Martin | G9: 1 | O9: 0 | P9: 0 | Q9: 5233 | R9: 0 | S9: 0 | T9: 0 | U9: 0 | V9: 0 | W9: 0 | X9: 0 | Y9: 5233
A10: 4 | B10: 1.U15M | C10: 2110-175 | D10: Wagner David | E10: 2 | F10: 4 | G10: 22 | O10: 2109 | P10: 1621 | Q10: 1206 | R10: 0 | S10: 0 | T10: 0 | U10: 0 | V10: 0 | W10: 0 | X10: 0 | Y10: 4936
A11: 5 | B11: 2.O17M | C11: 1705-003 | D11: Štěpánek Jan | G11: 2 | O11: 0 | P11: 0 | Q11: 4330 | R11: 0 | S11: 0 | T11: 0 | U11: 0 | V11: 0 | W11: 0 | X11: 0 | Y11: 4330
A12: 6 | B12: 1.U13M | C12: 2110-178 | D12: Skřepek Šimon | E12: 3 | F12: 5 | G12: 21 | O12: 1581 | P12: 1330 | Q12: 1267 | R12: 0 | S12: 0 | T12: 0 | U12: 0 | V12: 0 | W12: 0 | X12: 0 | Y12: 4178
A13: 7 | B13: 2.U15M | C13: 1801-167 | D13: Štěpánský Adam | G13: 3 | O13: 0 | P13: 0 | Q13: 3802 | R13: 0 | S13: 0 | T13: 0 | U13: 0 | V13: 0 | W13: 0 | X13: 0 | Y13: 3802
A14: 8 | B14: 1.U17F | C14: 1607-166 | D14: Himmelová Klára | G14: 4 | O14: 0 | P14: 0 | Q14: 3427 | R14: 0 | S14: 0 | T14: 0 | U14: 0 | V14: 0 | W14: 0 | X14: 0 | Y14: 3427
A15: 9 | B15: 2.U13F | C15: 2110-183 | D15: Komendová Kateřina | E15: 5 | F15: 6 | G15: 23 | O15: 915 | P15: 1093 | Q15: 1148 | R15: 0 | S15: 0 | T15: 0 | U15: 0 | V15: 0 | W15: 0 | X15: 0 | Y15: 3156
A16: 10 | B16: 3.U15M | C16: 2110-185 | D16: Diviš Lukáš | F16: 3 | G16: 24 | O16: 0 | P16: 1996 | Q16: 1093 | R16: 0 | S16: 0 | T16: 0 | U16: 0 | V16: 0 | W16: 0 | X16: 0 | Y16: 3089
A17: 11 | B17: 2.U17M | C17: 1705-145 | D17: Horáček Jonáš | G17: 6 | O17: 0 | P17: 0 | Q17: 2899 | R17: 0 | S17: 0 | T17: 0 | U17: 0 | V17: 0 | W17: 0 | X17: 0 | Y17: 2899
A18: 12 | B18: 2.U17F | C18: 1130-276 | D18: Švíková Kateřina | G18: 7 | O18: 0 | P18: 0 | Q18: 2698 | R18: 0 | S18: 0 | T18: 0 | U18: 0 | V18: 0 | W18: 0 | X18: 0 | Y18: 2698
A19: 13 | B19: 3.U13F | C19: 1705-086 | D19: Sadílková Nela | G19: 8 | O19: 0 | P19: 0 | Q19: 2524 | R19: 0 | S19: 0 | T19: 0 | U19: 0 | V19: 0 | W19: 0 | X19: 0 | Y19: 2524
A20: 14 | B20: 1.O17F | C20: 7019-377 | D20: Rašková Adéla | G20: 9 | O20: 0 | P20: 0 | Q20: 2371 | R20: 0 | S20: 0 | T20: 0 | U20: 0 | V20: 0 | W20: 0 | X20: 0 | Y20: 2371
A21: 15 | B21: 1.U15F | C21: 2110-191 | D21: Neckařová Martina | E21: 7 | F21: 7 | G21: 27 | O21: 477 | P21: 892 | Q21: 939 | R21: 0 | S21: 0 | T21: 0 | U21: 0 | V21: 0 | W21: 0 | X21: 0 | Y21: 2308
A22: 16 | B22: 4.U13F | C22: 1609-278 | D22: Říčanová Nicol | G22: 10 | O22: 0 | P22: 0 | Q22: 2233 | R22: 0 | S22: 0 | T22: 0 | U22: 0 | V22: 0 | W22: 0 | X22: 0 | Y22: 2233
A23: 17 | B23: 3.U17M | C23: 1402-384 | D23: Šplíchal Filip | G23: 12 | O23: 0 | P23: 0 | Q23: 1996 | R23: 0 | S23: 0 | T23: 0 | U23: 0 | V23: 0 | W23: 0 | X23: 0 | Y23: 1996
A24: 18 | B24: 2.U13M | C24: 2110-173 | D24: Šeliga Teodor | E24: 4 | G24: 32 | O24: 1206 | P24: 0 | Q24: 718 | R24: 0 | S24: 0 | T24: 0 | U24: 0 | V24: 0 | W24: 0 | X24: 0 | Y24: 1924
A25: 19 | B25: 5.U13F | C25: 2110-189 | D25: Samcová Klára | E25: 6 | F25: 9 | G25: 33 | O25: 678 | P25: 564 | Q25: 678 | R25: 0 | S25: 0 | T25: 0 | U25: 0 | V25: 0 | W25: 0 | X25: 0 | Y25: 1920
A26: 20 | B26: 4.U17M | C26: 1705-085 | D26: Sadílek Adam | G26: 13 | O26: 0 | P26: 0 | Q26: 1892 | R26: 0 | S26: 0 | T26: 0 | U26: 0 | V26: 0 | W26: 0 | X26: 0 | Y26: 1892
A27: 21 | B27: 4.U15M | C27: 1607-165 | D27: Himmel Jiří | G27: 14 | O27: 0 | P27: 0 | Q27: 1795 | R27: 0 | S27: 0 | T27: 0 | U27: 0 | V27: 0 | W27: 0 | X27: 0 | Y27: 1795
A28: 22 | B28: 2.U15F | C28: 1401-459 | D28: Altmannová Kateřina | G28: 15 | O28: 0 | P28: 0 | Q28: 1705 | R28: 0 | S28: 0 | T28: 0 | U28: 0 | V28: 0 | W28: 0 | X28: 0 | Y28: 1705
A29: 23 | B29: 3.O17M | C29: 7019-076 | D29: Raška Marek | G29: 16 | O29: 0 | P29: 0 | Q29: 1621 | R29: 0 | S29: 0 | T29: 0 | U29: 0 | V29: 0 | W29: 0 | X29: 0 | Y29: 1621
A30: 24 | B30: 3.U13M | C30: 1705-090 | D30: Drda David | G30: 17 | O30: 0 | P30: 0 | Q30: 1542 | R30: 0 | S30: 0 | T30: 0 | U30: 0 | V30: 0 | W30: 0 | X30: 0 | Y30: 1542
A31: 25 | B31: 6.U13F | C31: 1705-074 | D31: Štěpánková Markéta | F31: 8 | G31: 30 | O31: 0 | P31: 718 | Q31: 802 | R31: 0 | S31: 0 | T31: 0 | U31: 0 | V31: 0 | W31: 0 | X31: 0 | Y31: 1520
A32: 26 | B32: 4.O17M | C32: 2001-225 | D32: Netík Pavel | G32: 18 | O32: 0 | P32: 0 | Q32: 1468 | R32: 0 | S32: 0 | T32: 0 | U32: 0 | V32: 0 | W32: 0 | X32: 0 | Y32: 1468
A33: 27 | B33: 5.U17M | C33: 1609-212 | D33: Müller Ondřej | G33: 19 | O33: 0 | P33: 0 | Q33: 1397 | R33: 0 | S33: 0 | T33: 0 | U33: 0 | V33: 0 | W33: 0 | X33: 0 | Y33: 1397
A34: 28 | B34: 3.U15F | C34: 1130-352 | D34: Švíková Bára | G34: 20 | O34: 0 | P34: 0 | Q34: 1330 | R34: 0 | S34: 0 | T34: 0 | U34: 0 | V34: 0 | W34: 0 | X34: 0 | Y34: 1330
A35: 29 | B35: 4.U13M | C35: 1609-301 | D35: Tlapák Vojtěch | G35: 25 | O35: 0 | P35: 0 | Q35: 1040 | R35: 0 | S35: 0 | T35: 0 | U35: 0 | V35: 0 | W35: 0 | X35: 0 | Y35: 1040
A36: 30 | B36: 4.U15F | C36: 2110-190 | D36: Hykrdová Markéta | E36: 8 | F36: 11 | G36: 40 | O36: 303 | P36: 303 | Q36: 427 | R36: 0 | S36: 0 | T36: 0 | U36: 0 | V36: 0 | W36: 0 | X36: 0 | Y36: 1033
A37: 31 | B37: 5.U15F | C37: 2110-184 | D37: Richterová Ludmila | F37: 10 | G37: 35 | O37: 0 | P37: 427 | Q37: 601 | R37: 0 | S37: 0 | T37: 0 | U37: 0 | V37: 0 | W37: 0 | X37: 0 | Y37: 1028
A38: 32 | B38: 7.U13F | C38: 2201-036 | D38: Piňosová Kristýna | G38: 26 | O38: 0 | P38: 0 | Q38: 988 | R38: 0 | S38: 0 | T38: 0 | U38: 0 | V38: 0 | W38: 0 | X38: 0 | Y38: 988
A39: 33 | B39: 6.U17M | C39: 1130-235 | D39: Dvořák Rudolf | G39: 28 | O39: =IF((E39>0),ROUND((101+1000*(LOG10($E$5)-LOG10(E39)))*$A$2,0),0) -> 0 | P39: =IF((F39>0),ROUND((101+1000*(LOG10($F$5)-LOG10(F39)))*$A$2,0),0) -> 0 | Q39: =IF((G39>0),ROUND((101+1000*(LOG10($G$5)-LOG10(G39)))*$A$2,0),0) -> 892 | R39: =IF((H39>0),ROUND((101+1000*(LOG10($H$5)-LOG10(H39)))*$A$2,0),0) -> 0 | S39: =IF((I39>0),ROUND((101+1000*(LOG10($I$5)-LOG10(I39)))*$A$2,0),0) -> 0 | T39: =IF((J39>0),ROUND((101+1000*(LOG10($J$5)-LOG10(J39)))*$A$2,0),0) -> 0 | U39: =IF((K39>0),ROUND((101+1000*(LOG10($K$5)-LOG10(K39)))*$A$2,0),0) -> 0 | V39: =IF((L39>0),ROUND((101+1000*(LOG10($L$5)-LOG10(L39)))*$A$2,0),0) -> 0 | W39: =IF((M39>0),ROUND((101+1000*(LOG10($M$5)-LOG10(M39)))*$A$2,0),0) -> 0 | X39: =IF((N39>0),ROUND((101+1000*(LOG10($N$5)-LOG10(N39)))*$A$2,0),0) -> 0 | Y39: =SUM(LARGE(O39:X39,1),LARGE(O39:X39,2),LARGE(O39:X39,3),LARGE(O39:X39,4)) -> 892
A40: 34 | B40: 5.U15M | C40: 1607-169 | D40: Parchomenko Ondřej | G40: 29 | O40: 0 | P40: 0 | Q40: 846 | R40: 0 | S40: 0 | T40: 0 | U40: 0 | V40: 0 | W40: 0 | X40: 0 | Y40: 846
A41: 35 | B41: 5.U13M | C41: 1609-298 | D41: Rais Michal | G41: 31 | O41: 0 | P41: 0 | Q41: 759 | R41: 0 | S41: 0 | T41: 0 | U41: 0 | V41: 0 | W41: 0 | X41: 0 | Y41: 759
A42: 36 | B42: 6.U15M | C42: 2001-220 | D42: Provazník Samuel | G42: 34 | O42: 0 | P42: 0 | Q42: 639 | R42: 0 | S42: 0 | T42: 0 | U42: 0 | V42: 0 | W42: 0 | X42: 0 | Y42: 639
A43: 37 | B43: 8.U13F | C43: 1705-169 | D43: Lojínová Alexandra | G43: 36 | O43: 0 | P43: 0 | Q43: 564 | R43: 0 | S43: 0 | T43: 0 | U43: 0 | V43: 0 | W43: 0 | X43: 0 | Y43: 564
A44: 38 | B44: 6.U13M | C44: 1213-199 | D44: Hasman Radim | G44: 37 | O44: 0 | P44: 0 | Q44: 529 | R44: 0 | S44: 0 | T44: 0 | U44: 0 | V44: 0 | W44: 0 | X44: 0 | Y44: 529
A45: 39 | B45: 9.U13F | C45: 1609-308 | D45: Tlapáková Zuzana | G45: 38 | O45: 0 | P45: 0 | Q45: 494 | R45: 0 | S45: 0 | T45: 0 | U45: 0 | V45: 0 | W45: 0 | X45: 0 | Y45: 494
A46: 40 | B46: 7.U13M | C46: 2110-186 | D46: Marek Filip | G46: 39 | O46: 0 | P46: 0 | Q46: 460 | R46: 0 | S46: 0 | T46: 0 | U46: 0 | V46: 0 | W46: 0 | X46: 0 | Y46: 460
A47: 41 | B47: 8.U13M | C47: 7019-390 | D47: Slíva Matěj | G47: 41 | O47: 0 | P47: 0 | Q47: 395 | R47: 0 | S47: 0 | T47: 0 | U47: 0 | V47: 0 | W47: 0 | X47: 0 | Y47: 395
A48: 42 | B48: 7.U17M | C48: 1705-174 | D48: Voříšek Filip | G48: 42 | O48: 0 | P48: 0 | Q48: 364 | R48: 0 | S48: 0 | T48: 0 | U48: 0 | V48: 0 | W48: 0 | X48: 0 | Y48: 364
A49: 43 | B49: 9.U13M | C49: 1609-303 | D49: Kříž Jan | G49: 44 | O49: 0 | P49: 0 | Q49: 303 | R49: 0 | S49: 0 | T49: 0 | U49: 0 | V49: 0 | W49: 0 | X49: 0 | Y49: 303
A50: 44 | B50: 10.U13M | C50: 1402-460 | D50: Loužek Štěpán | G50: 44 | O50: 0 | P50: 0 | Q50: 303 | R50: 0 | S50: 0 | T50: 0 | U50: 0 | V50: 0 | W50: 0 | X50: 0 | Y50: 303
A51: 45 | O51: 0 | P51: 0 | Q51: 0 | R51: 0 | S51: 0 | T51: 0 | U51: 0 | V51: 0 | W51: 0 | X51: 0 | Y51: 0
A52: 46 | O52: 0 | P52: 0 | Q52: 0 | R52: 0 | S52: 0 | T52: 0 | U52: 0 | V52: 0 | W52: 0 | X52: 0 | Y52: 0
A53: 47 | O53: 0 | P53: 0 | Q53: 0 | R53: 0 | S53: 0 | T53: 0 | U53: 0 | V53: 0 | W53: 0 | X53: 0 | Y53: 0
A54: 48 | O54: 0 | P54: 0 | Q54: 0 | R54: 0 | S54: 0 | T54: 0 | U54: 0 | V54: 0 | W54: 0 | X54: 0 | Y54: 0
A55: 49 | O55: 0 | P55: 0 | Q55: 0 | R55: 0 | S55: 0 | T55: 0 | U55: 0 | V55: 0 | W55: 0 | X55: 0 | Y55: 0
A56: 50 | O56: 0 | P56: 0 | Q56: 0 | R56: 0 | S56: 0 | T56: 0 | U56: 0 | V56: 0 | W56: 0 | X56: 0 | Y56: 0

Sheet 171304-3C
B1: Pohár D.I.M.

Sheet 172120-7P
B1: Věstonická Venuše
A2: 1 | B2: 1 | C2: CZE 41 | D2: 1705-145 | E2: Horáček Jonáš | F2: 2002 | G2: 1 | H2: 1 | I2: 3 | J2: 1 | K2: 5* | L2: 5 | M2: 3 | N2: 14 | O2: 10 727
A3: 2 | B3: 2 | C3: CZE 747 | D3: 1609-279 | E3: Říčan Jaroslav | F3: 1962 | G3: 4 | H3: DNF* | I3: 1 | J3: 4 | K3: 1 | L3: 4 | M3: 6 | N3: 20 | O3: 8 619
A4: 3 | B4: 3 | C4: CZE 50 | D4: 2110-172 | E4: Mikulec Martin | F4: 2001 | G4: 5 | H4: 3 | I4: 5 | J4: 10* | K4: 6 | L4: 1 | M4: 1 | N4: 21 | O4: 7 387
A5: 4 | B5: 4 | C5: CZE 49 | D5: 1705-085 | E5: Sadílek Adam | F5: 2002 | G5: 6 | H5: 2 | I5: 4 | J5: 3 | K5: 4 | L5: 11* | M5: 7 | N5: 26 | O5: 6 512
A6: 5 | B6: 5 | C6: CZE 784 | D6: 1609-255 | E6: Nevelöš Adam | F6: 2004 | G6: 8* | H6: 4 | I6: 8 | J6: 8 | K6: 2 | L6: 3 | M6: 2 | N6: 27 | O6: 5 834
A7: 6 | B7: 6 | C7: CZE 73 | D7: 1401-461 | E7: Altmann Tomáš | F7: 1969 | G7: 3 | H7: 5 | I7: 2 | J7: 2 | K7: 3 | L7: 12 | M7: 14* | N7: 27 | O7: 5 279
A8: 7 | B8: 7 | C8: CZE 37 | D8: 1402-384 | E8: Šplíchal Filip | F8: 2001 | G8: 2 | H8: 6 | I8: 7 | J8: 6 | K8: 10 | L8: 10 | M8: 13* | N8: 41 | O8: 4 811
A9: 8 | B9: 8 | C9: CZE 789 | D9: 1609-145 | E9: Nevelöš Jan | F9: 1976 | G9: DNC* | H9: 7 | I9: 6 | J9: 7 | K9: 13 | L9: 6 | M9: 4 | N9: 43 | O9: 4 405
A10: 9 | B10: 9 | C10: CZE 77 | D10: 7019-377 | E10: Rašková Adéla | F10: 2000 | G10: 9 | H10: 10* | I10: 9 | J10: 5 | K10: 9 | L10: 7 | M10: 9 | N10: 48 | O10: 4 047
A11: 10 | B11: 10 | C11: CZE 787 | D11: 1609-256 | E11: Nevelöš Tibor | F11: 2006 | G11: 11 | H11: 9 | I11: 12* | J11: 9 | K11: 11 | L11: 8 | M11: 8 | N11: 56 | O11: 3 727
A12: 11 | B12: 11 | C12: CZE 40 | D12: 1801-167 | E12: Štěpánský Adam | F12: 2003 | G12: DNF* | H12: 15 | I12: 13 | J12: 15 | K12: 7 | L12: 2 | M12: 5 | N12: 57 | O12: 3 437
A13: 12 | B13: 12 | C13: CZE 744 | D13: 1609-278 | E13: Říčanová Nicol | F13: 2006 | G13: 12 | H13: 13 | I13: 15* | J13: 11 | K13: 8 | L13: 13 | M13: 10 | N13: 67 | O13: 3 172
A14: 13 | B14: 13 | C14: CZE 911 | D14: 2110-182 | E14: Chalupníková Kristýna | F14: 2005 | G14: 10 | H14: 11 | I14: 11 | J14: 12 | K14: 14 | L14: 9 | M14: 16* | N14: 67 | O14: 2 929
A15: 14 | B15: 14 | C15: CZE 63 | D15: 1705-090 | E15: Drda David | F15: 2005 | G15: 7 | H15: 8 | I15: 10 | J15: 14 | K15: 15* | L15: 14 | M15: 15 | N15: 68 | O15: 2 704
A16: 15 | B16: 15 | C16: CZE 80 | D16: 1705-086 | E16: Sadílková Nela | F16: 2006 | G16: 15* | H16: 12 | I16: 14 | J16: 13 | K16: 12 | L16: 15 | M16: 12 | N16: 78 | O16: 2 494
A17: 16 | B17: 16 | C17: CZE 81 | D17: 1607-165 | E17: Himmel Jiří | F17: 2003 | G17: DNF* | H17: 17 | I17: 16 | J17: 16 | K17: 16 | L17: 16 | M17: 11 | N17: 92 | O17: 2 298
A18: 17 | B18: 17 | C18: CZE 79 | D18: 1607-166 | E18: Himmelová Klára | F18: 2002 | G18: 17 | H18: 14 | I18: 17 | J18: 17 | K18: 19* | L18: 18 | M18: 18 | N18: 101 | O18: 2 113
A19: 18 | B19: 18 | C19: CZE 11 | D19: 1401-459 | E19: Altmannová Kateřina | F19: 2004 | G19: 16 | H19: 16 | I19: 18 | J19: 18 | K19: 21 | L19: 22 | M19: 24* | N19: 111 | O19: 1 940
A20: 19 | B20: 19 | C20: CZE 98 | D20: 1130-352 | E20: Švíková Bára | F20: 2004 | G20: 18 | H20: 18 | I20: DNC* | J20: 19 | K20: 23 | L20: 20 | M20: 20 | N20: 118 | O20: 1 775
A21: 20 | B21: 20 | C21: CZE 89 | D21: 1130-276 | E21: Švíková Kateřina | F21: 2001 | G21: 13 | H21: DNC* | I21: DNC | J21: DNC | K21: 17 | L21: 17 | M21: 19 | N21: 124 | O21: 1 619
A22: 21 | B22: 21 | C22: CZE 1116 | D22: 2001-225 | E22: Netík Pavel | F22: 1999 | G22: 14 | H22: DNF* | I22: DNF | J22: DNC | K22: 18 | L22: 19 | M22: 17 | N22: 126 | O22: 1 471
A23: 22 | B23: 22 | C23: CZE 781 | D23: 2110-178 | E23: Skřepek Šimon | F23: 2007 | G23: 19 | H23: 19 | I23: DNC* | J23: DNC | K23: 22 | L23: 23 | M23: 21 | N23: 133 | O23: 1 330
A24: 23 | B24: 23 | C24: CZE 211 | D24: 2110-185 | E24: Diviš Lukáš | F24: 2004 | G24: 20 | H24: DNC* | I24: DNC | J24: DNC | K24: 20 | L24: 21 | M24: 22 | N24: 141 | O24: 1 194
A25: 24 | B25: 24 | C25: CZE 88 | D25: 1705-074 | E25: Štěpánková Markéta | F25: 2006 | G25: DNF* | H25: 20 | I25: DNF | J25: 20 | K25: 25 | L25: 24 | M25: 23 | N25: 141 | O25: 1 065
A26: 25 | B26: 25 | C26: CZE 87 | D26: 1705-169 | E26: Lojínová Alexandra | F26: 2007 | G26: DNC* | H26: DNC | I26: DNC | J26: DNC | K26: 24 | L26: 25 | M26: 25 | N26: 161 | O26: 941
A27: 26 | B27: 26 | C27: CZE 95 | D27: 2001-220 | E27: Provazník Samuel | F27: 2003 | G27: DNF* | H27: DNC | I27: DNC | J27: DNC | K27: DNC | L27: DNC | M27: DNC | N27: 174 | O27: 765
A28: 27 | D28: 1609-212 | E28: Müller Ondřej | F28: 2001 | G28: DNF* | H28: DNC | I28: DNC | J28: DNC | K28: DNC | L28: DNC | M28: DNC | N28: 174 | O28: 765
A29: 27 | D29: 2110-173 | E29: Šeliga Teodor | F29: 2007 | G29: DNC* | H29: DNC | I29: DNC | J29: DNC | K29: DNC | L29: DNC | M29: DNC | N29: 174 | O29: 0

Sheet 172124-3M
B1: Starobrno Cup
A2: 1 | B2: 1 | C2: CZE 50 | D2: 2110-172 | E2: Mikulec Martin | F2: 2001 | G2: 1 | H2: 3* | I2: 1 | J2: 1 | K2: 3 | L2: 4 016
A3: 2 | B3: 2 | C3: CZE 56 | D3: 2110-175 | E3: Wagner David | F3: 2003 | G3: 2* | H3: 2 | I3: 2 | J3: 2 | K3: 6 | L3: 2 812
A4: 3 | B4: 3 | C4: CZE 781 | D4: 2110-178 | E4: Skřepek Šimon | F4: 2007 | G4: 3* | H4: 1 | I4: 3 | J4: 3 | K4: 7 | L4: 2 108
A5: 4 | B5: 4 | C5: CZE 51 | D5: 2110-173 | E5: Šeliga Teodor | F5: 2007 | G5: 4 | H5: 4 | I5: 5* | J5: 4 | K5: 12 | L5: 1 608
A6: 5 | B6: 5 | C6: CZE 64 | D6: 2110-183 | E6: Komendová Kateřina | F6: 2005 | G6: 7* | H6: 6 | I6: 4 | J6: 5 | K6: 15 | L6: 1 220
A7: 6 | B7: 6 | C7: CZE 714 | D7: 2110-189 | E7: Samcová Klára | F7: 2005 | G7: 5 | H7: 7 | I7: 6 | J7: DNF* | K7: 18 | L7: 904
A8: 7 | B8: 7 | C8: CZE 74 | D8: 2110-191 | E8: Neckařová Martina | F8: 2003 | G8: 6 | H8: DNF* | I8: 7 | J8: 6 | K8: 19 | L8: 636
A9: 8 | B9: 8 | C9: CZE 11 | D9: 2110-190 | E9: Hykrdová Markéta | F9: 2004 | G9: 8 | H9: 5 | I9: DNC* | J9: DNC | K9: 22 | L9: 404

Sheet 171803-7P
B1: Pohár Rozkoše
A2: 1 | B2: 1 | C2: CZE 50 | D2: 2110-172 | E2: Mikulec Martin | F2: 2001 | G2: 1.0 | H2: 2.0 | I2: 1.0 | J2: 4 | K2: 9 963
A3: 2 | B3: 2 | C3: CZE 788 | D3: 1609-212 | E3: Müller Ondřej | F3: 2001 | G3: 3.0 | H3: 1.0 | I3: 7.0 | J3: 11 | K3: 7 855
A4: 3 | B4: 3 | C4: CZE 41 | D4: 1705-145 | E4: Horáček Jonáš | F4: 2002 | G4: 5.0 | H4: 3.0 | I4: 4.0 | J4: 12 | K4: 6 623
A5: 4 | B5: 4 | C5: CZE 77 | D5: 7019-377 | E5: Rašková Adéla | F5: 2000 | G5: 7.0 | H5: 4.0 | I5: 2.0 | J5: 13 | K5: 5 748
A6: 5 | B6: 5 | C6: CZE 40 | D6: 1801-167 | E6: Štěpánský Adam | F6: 2003 | G6: 4.0 | H6: 7.0 | I6: 5.0 | J6: 16 | K6: 5 070
A7: 6 | B7: 6 | C7: CZE 911 | D7: 2110-182 | E7: Chalupníková Kristýna | F7: 2005 | G7: 9.0 | H7: 8.0 | I7: 3.0 | J7: 20 | K7: 4 515
A8: 7 | B8: 7 | C8: CZE 86 | D8: 1609-248 | E8: Vaszi Mikuláš | F8: 2002 | G8: 6.0 | H8: 6.0 | I8: 12.0 | J8: 24 | K8: 4 047
A9: 8 | B9: 8 | C9: CZE 63 | D9: 1705-090 | E9: Drda David | F9: 2005 | G9: 10.0 | H9: 9.0 | I9: 6.0 | J9: 25 | K9: 3 641
A10: 9 | B10: 9 | C10: CZE 49 | D10: 1705-085 | E10: Sadílek Adam | F10: 2002 | G10: 2.0 | H10: 14.0 | I10: 10.0 | J10: 26 | K10: 3 283
A11: 10 | B11: 10 | C11: CZE 37 | D11: 1402-384 | E11: Šplíchal Filip | F11: 2001 | G11: 8.0 | H11: 11.0 | I11: 8.0 | J11: 27 | K11: 2 963
A12: 11 | B12: 11 | C12: CZE 1116 | D12: 2001-225 | E12: Netík Pavel | F12: 1999 | G12: 11.0 | H12: 5.0 | I12: 14.0 | J12: 30 | K12: 2 673
A13: 12 | B13: 12 | C13: CZE 744 | D13: 1609-278 | E13: Říčanová Nicol | F13: 2006 | G13: 12.0 | H13: 12.0 | I13: 11.0 | J13: 35 | K13: 2 408
A14: 13 | B14: 13 | C14: CZE 80 | D14: 1705-086 | E14: Sadílková Nela | F14: 2006 | G14: 13.0 | H14: 13.0 | I14: 13.0 | J14: 39 | K14: 2 165
A15: 14 | B15: 14 | C15: CZE 747 | D15: 1609-279 | E15: Říčan Jaroslav | F15: 1962 | G15: DNF | H15: 10.0 | I15: 9.0 | J15: 41 | K15: 1 940
A16: 15 | B16: 15 | C16: CZE 3 | D16: 1705-100 | E16: Sadílek Pavel | F16: 1974 | G16: 14.0 | H16: 17.0 | I16: 16.0 | J16: 47 | K16: 1 730
A17: 16 | B17: 16 | C17: CZE 781 | D17: 2110-178 | E17: Skřepek Šimon | F17: 2007 | G17: 15.0 | H17: 15.0 | I17: 17.0 | J17: 47 | K17: 1 534
A18: 17 | B18: 17 | C18: CZE 82 | D18: 1607-169 | E18: Parchomenko Ondřej | F18: 2003 | G18: 16.0 | H18: 16.0 | I18: 15.0 | J18: 47 | K18: 1 349
A19: 18 | B19: 18 | C19: CZE 88 | D19: 1705-074 | E19: Štěpánková Markéta | F19: 2006 | G19: 19.0 | H19: 18.0 | I19: 18.0 | J19: 55 | K19: 1 176
A20: 19 | B20: 19 | C20: CZE 87 | D20: 1705-169 | E20: Lojínová Alexandra | F20: 2007 | G20: 18.0 | H20: 20.0 | I20: 19.0 | J20: 57 | K20: 1 011
A21: 20 | B21: 20 | C21: CZE 51 | D21: 2110-173 | E21: Šeliga Teodor | F21: 2007 | G21: 17.0 | H21: 19.0 | I21: DNS | J21: 58 | K21: 855
A22: 21 | B22: 21 | C22: CZE 73 | D22: 1705-003 | E22: Štěpánek Jan | F22: 1973 | G22: DNF | H22: DNS | I22: DNS | J22: 66 | K22: 707

Sheet 172136-3M
B1: Veterán Cup
A2: 1 | B2: 1 | C2: CZE 50 | D2: 2110-172 | E2: Mikulec Martin | F2: 2001 | G2: 1 | H2: 2 | I2: 1 | J2: 3* | K2: 1 | L2: 5 | M2: 3 427
A3: 2 | B3: 2 | C3: CZE 911 | D3: 2110-182 | E3: Chalupníková Kristýna | F3: 2005 | G3: 3* | H3: 1 | I3: 2 | J3: 1 | K3: 2 | L3: 6 | M3: 2 524
A4: 3 | B4: 3 | C4: CZE 211 | D4: 2110-185 | E4: Diviš Lukáš | F4: 2004 | G4: 2 | H4: 4* | I4: 3 | J4: 2 | K4: 3 | L4: 10 | M4: 1 996
A5: 4 | B5: 4 | C5: CZE 56 | D5: 2110-175 | E5: Wagner David | F5: 2003 | G5: 7* | H5: 3 | I5: 4 | J5: 4 | K5: 5 | L5: 16 | M5: 1 621
A6: 5 | B6: 5 | C6: CZE 781 | D6: 2110-178 | E6: Skřepek Šimon | F6: 2007 | G6: 5 | H6: 6* | I6: 6 | J6: 5 | K6: 4 | L6: 20 | M6: 1 330
A7: 6 | B7: 6 | C7: CZE 64 | D7: 2110-183 | E7: Komendová Kateřina | F7: 2005 | G7: 4 | H7: 5 | I7: 5 | J7: DNC* | K7: 6 | L7: 20 | M7: 1 093
A8: 7 | B8: 7 | C8: CZE 74 | D8: 2110-191 | E8: Neckařová Martina | F8: 2003 | G8: 8* | H8: 8 | I8: 8 | J8: 6 | K8: 7 | L8: 29 | M8: 892
A9: 8 | B9: 8 | C9: CZE 88 | D9: 1705-074 | E9: Štěpánková Markéta | F9: 2006 | G9: 6 | H9: 7 | I9: 9 | J9: 8 | K9: DNF* | L9: 30 | M9: 718
A10: 9 | B10: 9 | C10: CZE 714 | D10: 2110-189 | E10: Samcová Klára | F10: 2005 | G10: 9* | H10: 9 | I10: 7 | J10: 7 | K10: 8 | L10: 31 | M10: 564
A11: 10 | B11: 10 | C11: CZE 11 | D11: 2110-184 | E11: Richterová Ludmila | F11: 2004 | G11: DNC* | H11: DNC | I11: DNC | J11: DNC | K11: 9 | L11: 45 | M11: 427
A12: 11 | B12: 11 | C12: CZE 40 | D12: 2110-190 | E12: Hykrdová Markéta | F12: 2004 | G12: DNF* | H12: DNC | I12: DNC | J12: DNC | K12: DNC | L12: 48 | M12: 303

Sheet 172002-7P
B1: Pohár Vysočiny
A2: 1 | B2: 1 | C2: CZE 50 | D2: 2110-172 | E2: Mikulec Martin | F2: 2001 | G2: 4* | H2: 2 | I2: 1 | J2: 1 | K2: 2 | L2: 1 | M2: 7 | N2: 10 727
A3: 2 | B3: 2 | C3: CZE 784 | D3: 1609-255 | E3: Nevelöš Adam | F3: 2004 | G3: 2 | H3: 3 | I3: 3 | J3: 4* | K3: 1 | L3: 2 | M3: 11 | N3: 8 619
A4: 3 | B4: 3 | C4: CZE 40 | D4: 1801-167 | E4: Štěpánský Adam | F4: 2003 | G4: 6 | H4: 1 | I4: 7* | J4: 3 | K4: 3 | L4: 3 | M4: 16 | N4: 7 387
A5: 4 | B5: 4 | C5: CZE 41 | D5: 1705-145 | E5: Horáček Jonáš | F5: 2002 | G5: 3 | H5: 5 | I5: 2 | J5: 2 | K5: 4 | L5: 11* | M5: 16 | N5: 6 512
A6: 5 | B6: 5 | C6: CZE 911 | D6: 2110-182 | E6: Chalupníková Kristýna | F6: 2005 | G6: 5 | H6: 4 | I6: 5 | J6: 7 | K6: 5 | L6: 13* | M6: 26 | N6: 5 834
A7: 6 | B7: 6 | C7: CZE 49 | D7: 1705-085 | E7: Sadílek Adam | F7: 2002 | G7: 1 | H7: 6 | I7: 4 | J7: 21* | K7: 8 | L7: 12 | M7: 31 | N7: 5 279
A8: 7 | B8: 7 | C8: CZE 79 | D8: 1607-166 | E8: Himmelová Klára | F8: 2002 | G8: 8 | H8: 7 | I8: 6 | J8: 9* | K8: 6 | L8: 8 | M8: 35 | N8: 4 811
A9: 8 | B9: 8 | C9: CZE 787 | D9: 1609-256 | E9: Nevelöš Tibor | F9: 2006 | G9: 9 | H9: 12* | I9: 8 | J9: 5 | K9: 11 | L9: 4 | M9: 37 | N9: 4 405
A10: 9 | B10: 9 | C10: CZE 63 | D10: 1705-090 | E10: Drda David | F10: 2005 | G10: 7 | H10: 8 | I10: 13* | J10: 6 | K10: 10 | L10: 10 | M10: 41 | N10: 4 047
A11: 10 | B11: 10 | C11: CZE 80 | D11: 1705-086 | E11: Sadílková Nela | F11: 2006 | G11: 11 | H11: 9 | I11: 10 | J11: 8 | K11: 7 | L11: 14* | M11: 45 | N11: 3 727
A12: 11 | B12: 11 | C12: CZE 81 | D12: 1607-165 | E12: Himmel Jiří | F12: 2003 | G12: 10 | H12: 10 | I12: 9 | J12: 12 | K12: 15* | L12: 7 | M12: 48 | N12: 3 437
A13: 12 | B13: 12 | C13: CZE 744 | D13: 1609-278 | E13: Říčanová Nicol | F13: 2006 | G13: DNF* | H13: 11 | I13: 11 | J13: 10 | K13: 14 | L13: 6 | M13: 52 | N13: 3 172
A14: 13 | B14: 13 | C14: CZE 211 | D14: 2110-185 | E14: Diviš Lukáš | F14: 2004 | G14: 14 | H14: 18* | I14: 12 | J14: 14 | K14: 9 | L14: 9 | M14: 58 | N14: 2 929
A15: 14 | B15: 14 | C15: CZE 1116 | D15: 2001-225 | E15: Netík Pavel | F15: 1999 | G15: DNC* | H15: 14 | I15: 15 | J15: 15 | K15: 12 | L15: 5 | M15: 61 | N15: 2 704
A16: 15 | B16: 15 | C16: CZE 11 | D16: 1401-459 | E16: Altmannová Kateřina | F16: 2004 | G16: DNF* | H16: 13 | I16: 16 | J16: 11 | K16: 13 | L16: 15 | M16: 68 | N16: 2 494
A17: 16 | B17: 16 | C17: CZE 98 | D17: 1130-352 | E17: Švíková Bára | F17: 2004 | G17: 12 | H17: 15 | I17: 17 | J17: 13 | K17: 16 | L17: 19* | M17: 73 | N17: 2 298
A18: 17 | B18: 17 | C18: CZE 88 | D18: 1705-074 | E18: Štěpánková Markéta | F18: 2006 | G18: 13 | H18: 17 | I18: 18 | J18: 20* | K18: 19 | L18: 20 | M18: 87 | N18: 2 113
A19: 18 | B19: 18 | C19: CZE 56 | D19: 2110-175 | E19: Wagner David | F19: 2003 | G19: DNC* | H19: DNC | I19: 14 | J19: 16 | K19: 17 | L19: 17 | M19: 92 | N19: 1 940
A20: 19 | B20: 19 | C20: CZE 87 | D20: 1705-169 | E20: Lojínová Alexandra | F20: 2007 | G20: 15 | H20: 16 | I20: 19 | J20: 19 | K20: 25 | L20: 26* | M20: 94 | N20: 1 775
A21: 20 | B21: 20 | C21: CZE 289 | D21: 2201-036 | E21: Piňosová Kristýna | F21: 2005 | G21: DNC* | H21: DNF | I21: 20 | J21: 18 | K21: 23 | L21: 24 | M21: 113 | N21: 1 619
A22: 21 | B22: 21 | C22: CZE 78 | D22: 1609-301 | E22: Tlapák Vojtěch | F22: 2005 | G22: DNC* | H22: DNF | I22: DNC | J22: 17 | K22: 21 | L22: 22 | M22: 116 | N22: 1 471
A23: 22 | B23: 22 | C23: CZE 73 | D23: 1705-100 | E23: Sadílek Pavel | F23: 1974 | G23: DNF* | H23: DNC | I23: DNC | J23: DNC | K23: 18 | L23: 16 | M23: 118 | N23: 1 330
A24: 23 | B24: 23 | C24: CZE 51 | D24: 2110-173 | E24: Šeliga Teodor | F24: 2007 | G24: DNC* | H24: DNF | I24: DNC | J24: DNC | K24: 20 | L24: 18 | M24: 122 | N24: 1 194
A25: 24 | B25: 24 | C25: CZE 95 | D25: 2001-220 | E25: Provazník Samuel | F25: 2003 | G25: DNF* | H25: DNC | I25: DNC | J25: DNC | K25: 22 | L25: 21 | M25: 127 | N25: 1 065
A26: 25 | B26: 25 | C26: CZE 714 | D26: 2110-189 | E26: Samcová Klára | F26: 2005 | G26: DNF* | H26: DNC | I26: DNS | J26: DNS | K26: 26 | L26: 23 | M26: 133 | N26: 941
A27: 26 | B27: 26 | C27: CZE 8 | D27: 1609-308 | E27: Tlapáková Zuzana | F27: 2007 | G27: DNF* | H27: DNC | I27: DNC | J27: DNC | K27: 24 | L27: 25 | M27: 133 | N27: 822
A28: 27 | B28: 27 | C28: CZE 788 | D28: 1609-212 | E28: Müller Ondřej | F28: 2001 | G28: DNF* | H28: DNC | I28: DNC | J28: DNC | K28: DNC | L28: DNC | M28: 140 | N28: 707

Sheet 172005-7P
B1: Závod mladých nadějí
A2: 1 | B2: 1 | C2: CZE 113 | D2: 2101-375 | E2: Pospíšil Martin | F2: 1964 | G2: 1 | H2: 2* | I2: 2 | J2: 2 | K2: 5 | L2: 12 211
A3: 2 | B3: 2 | C3: CZE 73 | D3: 1705-003 | E3: Štěpánek Jan | F3: 1973 | G3: 13* | H3: 1 | I3: 1 | J3: 5 | K3: 7 | L3: 10 104
A4: 3 | B4: 3 | C4: CZE 40 | D4: 1801-167 | E4: Štěpánský Adam | F4: 2003 | G4: 5 | H4: 9* | I4: 5 | J4: 3 | K4: 13 | L4: 8 871
A5: 4 | B5: 4 | C5: CZE 79 | D5: 1607-166 | E5: Himmelová Klára | F5: 2002 | G5: 2 | H5: 11 | I5: 12* | J5: 1 | K5: 14 | L5: 7 997
A6: 5 | B6: 5 | C6: CZE 911 | D6: 2110-182 | E6: Chalupníková Kristýna | F6: 2005 | G6: 4 | H6: 5 | I6: 11* | J6: 6 | K6: 15 | L6: 7 318
A7: 6 | B7: 6 | C7: CZE 41 | D7: 1705-145 | E7: Horáček Jonáš | F7: 2002 | G7: 8 | H7: 4 | I7: 4 | J7: 13* | K7: 16 | L7: 6 764
A8: 7 | B8: 7 | C8: CZE 89 | D8: 1130-276 | E8: Švíková Kateřina | F8: 2001 | G8: 3 | H8: 6 | I8: 9* | J8: 8 | K8: 17 | L8: 6 295
A9: 8 | B9: 8 | C9: CZE 70 | D9: 1705-086 | E9: Sadílková Nela | F9: 2006 | G9: 14* | H9: 10 | I9: 6 | J9: 7 | K9: 23 | L9: 5 890
A10: 9 | B10: 9 | C10: CZE 77 | D10: 7019-377 | E10: Rašková Adéla | F10: 2000 | G10: 6 | H10: 14 | I10: 3 | J10: 19* | K10: 23 | L10: 5 531
A11: 10 | B11: 10 | C11: CZE 744 | D11: 1609-278 | E11: Říčanová Nicol | F11: 2006 | G11: 17* | H11: 15 | I11: 8 | J11: 4 | K11: 27 | L11: 5 211
A12: 11 | B12: 11 | C12: CZE 50 | D12: 2110-172 | E12: Mikulec Martin | F12: 2001 | G12: 11 | H12: 7 | I12: 16* | J12: 10 | K12: 28 | L12: 4 921
A13: 12 | B13: 12 | C13: CZE 37 | D13: 1402-384 | E13: Šplíchal Filip | F13: 2001 | G13: 15 | H13: 8 | I13: 7 | J13: 16* | K13: 30 | L13: 4 657
A14: 13 | B14: 13 | C14: CZE 49 | D14: 1705-085 | E14: Sadílek Adam | F14: 2002 | G14: 21* | H14: 12 | I14: 13 | J14: 9 | K14: 34 | L14: 4 414
A15: 14 | B15: 14 | C15: CZE 81 | D15: 1607-165 | E15: Himmel Jiří | F15: 2003 | G15: 12 | H15: 13 | I15: 10 | J15: 17* | K15: 35 | L15: 4 188
A16: 15 | B16: 15 | C16: CZE 11 | D16: 1401-459 | E16: Altmannová Kateřina | F16: 2004 | G16: 9 | H16: 17* | I16: 17 | J16: 11 | K16: 37 | L16: 3 979
A17: 16 | B17: 16 | C17: CZE 747 | D17: 7019-076 | E17: Raška Marek | F17: 1971 | G17: DNC* | H17: 3 | I17: 20 | J17: 15 | K17: 38 | L17: 3 782
A18: 17 | B18: 17 | C18: CZE 63 | D18: 1705-090 | E18: Drda David | F18: 2005 | G18: 19* | H18: 16 | I18: 14 | J18: 12 | K18: 42 | L18: 3 598
A19: 18 | B19: 18 | C19: CZE 1116 | D19: 2001-225 | E19: Netík Pavel | F19: 1999 | G19: 10 | H19: 20* | I19: 18 | J19: 14 | K19: 42 | L19: 3 424
A20: 19 | B20: 19 | C20: CZE 788 | D20: 1609-212 | E20: Müller Ondřej | F20: 2001 | G20: 7 | H20: 22 | I20: 21 | J20: DNC* | K20: 50 | L20: 3 260
A21: 20 | B21: 20 | C21: CZE 98 | D21: 1130-352 | E21: Švíková Bára | F21: 2004 | G21: 20* | H21: 18 | I21: 19 | J21: 18 | K21: 55 | L21: 3 104
A22: 21 | B22: 21 | C22: CZE 781 | D22: 2110-178 | E22: Skřepek Šimon | F22: 2007 | G22: 23* | H22: 21 | I22: 15 | J22: 20 | K22: 56 | L22: 2 956
A23: 22 | B23: 22 | C23: CZE 56 | D23: 2110-175 | E23: Wagner David | F23: 2003 | G23: 16 | H23: 24* | I23: 23 | J23: 24 | K23: 63 | L23: 2 814
A24: 23 | B24: 23 | C24: CZE 44 | D24: 2110-183 | E24: Komendová Kateřina | F24: 2005 | G24: 18 | H24: 25* | I24: 22 | J24: 25 | K24: 65 | L24: 2 679
A25: 24 | B25: 24 | C25: CZE 211 | D25: 2110-185 | E25: Diviš Lukáš | F25: 2004 | G25: 22 | H25: 23 | I25: 28* | J25: 26 | K25: 71 | L25: 2 550
A26: 25 | B26: 25 | C26: CZE 783 | D26: 1609-301 | E26: Tlapák Vojtěch | F26: 2005 | G26: 25 | H26: DNC* | I26: 25 | J26: 23 | K26: 73 | L26: 2 426
A27: 26 | B27: 26 | C27: CZE 289 | D27: 2201-036 | E27: Piňosová Kristýna | F27: 2005 | G27: 26 | H27: 28 | I27: 30* | J27: 22 | K27: 76 | L27: 2 306
A28: 27 | B28: 27 | C28: CZE 74 | D28: 2110-191 | E28: Neckařová Martina | F28: 2003 | G28: 30 | H28: 32* | I28: 26 | J28: 21 | K28: 77 | L28: 2 192
A29: 28 | B29: 28 | C29: CZE 99 | D29: 1130-235 | E29: Dvořák Rudolf | F29: 2001 | G29: 24 | H29: 26 | I29: 33* | J29: 27 | K29: 77 | L29: 2 081
A30: 29 | B30: 29 | C30: CZE 82 | D30: 1607-169 | E30: Parchomenko Ondřej | F30: 2003 | G30: 32* | H30: 27 | I30: 24 | J30: 28 | K30: 79 | L30: 1 974
A31: 30 | B31: 30 | C31: CZE 88 | D31: 1705-074 | E31: Štěpánková Markéta | F31: 2006 | G31: 31* | H31: 29 | I31: 27 | J31: 29 | K31: 85 | L31: 1 871
A32: 31 | B32: 31 | C32: CZE 784 | D32: 1609-298 | E32: Rais Michal | F32: 2006 | G32: 36 | H32: 19 | I32: 38* | J32: 30 | K32: 85 | L32: 1 772
A33: 32 | B33: 32 | C33: CZE 51 | D33: 2110-173 | E33: Šeliga Teodor | F33: 2007 | G33: 29 | H33: 31 | I33: 29 | J33: 35* | K33: 89 | L33: 1 675
A34: 33 | B34: 33 | C34: CZE 47 | D34: 2110-189 | E34: Samcová Klára | F34: 2005 | G34: 27 | H34: 30 | I34: 34* | J34: 34 | K34: 91 | L34: 1 582
A35: 34 | B35: 34 | C35: CZE 95 | D35: 2001-220 | E35: Provazník Samuel | F35: 2003 | G35: 33 | H35: DNC* | I35: 31 | J35: 32 | K35: 96 | L35: 1 491
A36: 35 | B36: 35 | C36: CZE 64 | D36: 2110-184 | E36: Richterová Ludmila | F36: 2004 | G36: 34 | H36: 35* | I36: 35 | J36: 31 | K36: 100 | L36: 1 403
A37: 36 | B37: 36 | C37: CZE 87 | D37: 1705-169 | E37: Lojínová Alexandra | F37: 2007 | G37: 35 | H37: 33 | I37: 32 | J37: 38* | K37: 100 | L37: 1 317
A38: 37 | B38: 37 | C38: CZE 93 | D38: 1213-199 | E38: Hasman Radim | F38: 2006 | G38: 28 | H38: DNF* | I38: 39 | J38: 33 | K38: 100 | L38: 1 234
A39: 38 | B39: 38 | C39: CZE 8 | D39: 1609-308 | E39: Tlapáková Zuzana | F39: 2007 | G39: 38 | H39: DNC* | I39: 36 | J39: 37 | K39: 111 | L39: 1 153
A40: 39 | B40: 39 | C40: CZE 14 | D40: 2110-186 | E40: Marek Filip | F40: 2006 | G40: 37 | H40: 34 | I40: DNC* | J40: DNC | K40: 116 | L40: 1 074
A41: 40 | B41: 40 | C41: CZE 1 | D41: 2110-190 | E41: Hykrdová Markéta | F41: 2004 | G41: OCS* | H41: DNF | I41: 37 | J41: 36 | K41: 118 | L41: 997
A42: 41 | B42: 41 | C42: CZE 16 | D42: 7019-390 | E42: Slíva Matěj | F42: 2007 | G42: 39 | H42: DNC* | I42: DNC | J42: DNC | K42: 129 | L42: 922
A43: 42 | B43: 42 | C43: CZE 35 | D43: 1705-174 | E43: Voříšek Filip | F43: 2002 | G43: DNF* | H43: DNC | I43: DNC | J43: DNC | K43: 135 | L43: 777
A44: 42 | B44: 42 | C44: CZE x | D44: 1609-303 | E44: Kříž Jan | F44: 2008 | G44: DNF* | H44: DNC | I44: DNC | J44: DNC | K44: 135 | L44: 777
A45: 42 | B45: 42 | C45: CZE x | D45: 1402-460 | E45: Loužek Štěpán | F45: 2008 | G45: DNC* | H45: DNF | I45: DNC | J45: DNC | K45: 135 | L45: 777

Sheet 172005-3M
B1: Závod mladých nadějí
A2: 1 | B2: 1 | C2: CZE 113 | D2: 2101-375 | E2: Pospíšil Martin | F2: 1964 | G2: 1 | H2: 2* | I2: 2 | J2: 2 | K2: 5 | L2: 12 211
A3: 2 | B3: 2 | C3: CZE 73 | D3: 1705-003 | E3: Štěpánek Jan | F3: 1973 | G3: 13* | H3: 1 | I3: 1 | J3: 5 | K3: 7 | L3: 10 104
A4: 3 | B4: 3 | C4: CZE 40 | D4: 1801-167 | E4: Štěpánský Adam | F4: 2003 | G4: 5 | H4: 9* | I4: 5 | J4: 3 | K4: 13 | L4: 8 871
A5: 4 | B5: 4 | C5: CZE 79 | D5: 1607-166 | E5: Himmelová Klára | F5: 2002 | G5: 2 | H5: 11 | I5: 12* | J5: 1 | K5: 14 | L5: 7 997
A6: 5 | B6: 5 | C6: CZE 911 | D6: 2110-182 | E6: Chalupníková Kristýna | F6: 2005 | G6: 4 | H6: 5 | I6: 11* | J6: 6 | K6: 15 | L6: 7 318
A7: 6 | B7: 6 | C7: CZE 41 | D7: 1705-145 | E7: Horáček Jonáš | F7: 2002 | G7: 8 | H7: 4 | I7: 4 | J7: 13* | K7: 16 | L7: 6 764
A8: 7 | B8: 7 | C8: CZE 89 | D8: 1130-276 | E8: Švíková Kateřina | F8: 2001 | G8: 3 | H8: 6 | I8: 9* | J8: 8 | K8: 17 | L8: 6 295
A9: 8 | B9: 8 | C9: CZE 70 | D9: 1705-086 | E9: Sadílková Nela | F9: 2006 | G9: 14* | H9: 10 | I9: 6 | J9: 7 | K9: 23 | L9: 5 890
A10: 9 | B10: 9 | C10: CZE 77 | D10: 7019-377 | E10: Rašková Adéla | F10: 2000 | G10: 6 | H10: 14 | I10: 3 | J10: 19* | K10: 23 | L10: 5 531
A11: 10 | B11: 10 | C11: CZE 744 | D11: 1609-278 | E11: Říčanová Nicol | F11: 2006 | G11: 17* | H11: 15 | I11: 8 | J11: 4 | K11: 27 | L11: 5 211
A12: 11 | B12: 11 | C12: CZE 50 | D12: 2110-172 | E12: Mikulec Martin | F12: 2001 | G12: 11 | H12: 7 | I12: 16* | J12: 10 | K12: 28 | L12: 4 921
A13: 12 | B13: 12 | C13: CZE 37 | D13: 1402-384 | E13: Šplíchal Filip | F13: 2001 | G13: 15 | H13: 8 | I13: 7 | J13: 16* | K13: 30 | L13: 4 657
A14: 13 | B14: 13 | C14: CZE 49 | D14: 1705-085 | E14: Sadílek Adam | F14: 2002 | G14: 21* | H14: 12 | I14: 13 | J14: 9 | K14: 34 | L14: 4 414
A15: 14 | B15: 14 | C15: CZE 81 | D15: 1607-165 | E15: Himmel Jiří | F15: 2003 | G15: 12 | H15: 13 | I15: 10 | J15: 17* | K15: 35 | L15: 4 188
A16: 15 | B16: 15 | C16: CZE 11 | D16: 1401-459 | E16: Altmannová Kateřina | F16: 2004 | G16: 9 | H16: 17* | I16: 17 | J16: 11 | K16: 37 | L16: 3 979
A17: 16 | B17: 16 | C17: CZE 747 | D17: 7019-076 | E17: Raška Marek | F17: 1971 | G17: DNC* | H17: 3 | I17: 20 | J17: 15 | K17: 38 | L17: 3 782
A18: 17 | B18: 17 | C18: CZE 63 | D18: 1705-090 | E18: Drda David | F18: 2005 | G18: 19* | H18: 16 | I18: 14 | J18: 12 | K18: 42 | L18: 3 598
A19: 18 | B19: 18 | C19: CZE 1116 | D19: 2001-225 | E19: Netík Pavel | F19: 1999 | G19: 10 | H19: 20* | I19: 18 | J19: 14 | K19: 42 | L19: 3 424
A20: 19 | B20: 19 | C20: CZE 788 | D20: 1609-212 | E20: Müller Ondřej | F20: 2001 | G20: 7 | H20: 22 | I20: 21 | J20: DNC* | K20: 50 | L20: 3 260
A21: 20 | B21: 20 | C21: CZE 98 | D21: 1130-352 | E21: Švíková Bára | F21: 2004 | G21: 20* | H21: 18 | I21: 19 | J21: 18 | K21: 55 | L21: 3 104
A22: 21 | B22: 21 | C22: CZE 781 | D22: 2110-178 | E22: Skřepek Šimon | F22: 2007 | G22: 23* | H22: 21 | I22: 15 | J22: 20 | K22: 56 | L22: 2 956
A23: 22 | B23: 22 | C23: CZE 56 | D23: 2110-175 | E23: Wagner David | F23: 2003 | G23: 16 | H23: 24* | I23: 23 | J23: 24 | K23: 63 | L23: 2 814
A24: 23 | B24: 23 | C24: CZE 44 | D24: 2110-183 | E24: Komendová Kateřina | F24: 2005 | G24: 18 | H24: 25* | I24: 22 | J24: 25 | K24: 65 | L24: 2 679
A25: 24 | B25: 24 | C25: CZE 211 | D25: 2110-185 | E25: Diviš Lukáš | F25: 2004 | G25: 22 | H25: 23 | I25: 28* | J25: 26 | K25: 71 | L25: 2 550
A26: 25 | B26: 25 | C26: CZE 783 | D26: 1609-301 | E26: Tlapák Vojtěch | F26: 2005 | G26: 25 | H26: DNC* | I26: 25 | J26: 23 | K26: 73 | L26: 2 426
A27: 26 | B27: 26 | C27: CZE 289 | D27: 2201-036 | E27: Piňosová Kristýna | F27: 2005 | G27: 26 | H27: 28 | I27: 30* | J27: 22 | K27: 76 | L27: 2 306
A28: 27 | B28: 27 | C28: CZE 74 | D28: 2110-191 | E28: Neckařová Martina | F28: 2003 | G28: 30 | H28: 32* | I28: 26 | J28: 21 | K28: 77 | L28: 2 192
A29: 28 | B29: 28 | C29: CZE 99 | D29: 1130-235 | E29: Dvořák Rudolf | F29: 2001 | G29: 24 | H29: 26 | I29: 33* | J29: 27 | K29: 77 | L29: 2 081
A30: 29 | B30: 29 | C30: CZE 82 | D30: 1607-169 | E30: Parchomenko Ondřej | F30: 2003 | G30: 32* | H30: 27 | I30: 24 | J30: 28 | K30: 79 | L30: 1 974
A31: 30 | B31: 30 | C31: CZE 88 | D31: 1705-074 | E31: Štěpánková Markéta | F31: 2006 | G31: 31* | H31: 29 | I31: 27 | J31: 29 | K31: 85 | L31: 1 871
A32: 31 | B32: 31 | C32: CZE 784 | D32: 1609-298 | E32: Rais Michal | F32: 2006 | G32: 36 | H32: 19 | I32: 38* | J32: 30 | K32: 85 | L32: 1 772
A33: 32 | B33: 32 | C33: CZE 51 | D33: 2110-173 | E33: Šeliga Teodor | F33: 2007 | G33: 29 | H33: 31 | I33: 29 | J33: 35* | K33: 89 | L33: 1 675
A34: 33 | B34: 33 | C34: CZE 47 | D34: 2110-189 | E34: Samcová Klára | F34: 2005 | G34: 27 | H34: 30 | I34: 34* | J34: 34 | K34: 91 | L34: 1 582
A35: 34 | B35: 34 | C35: CZE 95 | D35: 2001-220 | E35: Provazník Samuel | F35: 2003 | G35: 33 | H35: DNC* | I35: 31 | J35: 32 | K35: 96 | L35: 1 491
A36: 35 | B36: 35 | C36: CZE 64 | D36: 2110-184 | E36: Richterová Ludmila | F36: 2004 | G36: 34 | H36: 35* | I36: 35 | J36: 31 | K36: 100 | L36: 1 403
A37: 36 | B37: 36 | C37: CZE 87 | D37: 1705-169 | E37: Lojínová Alexandra | F37: 2007 | G37: 35 | H37: 33 | I37: 32 | J37: 38* | K37: 100 | L37: 1 317
A38: 37 | B38: 37 | C38: CZE 93 | D38: 1213-199 | E38: Hasman Radim | F38: 2006 | G38: 28 | H38: DNF* | I38: 39 | J38: 33 | K38: 100 | L38: 1 234
A39: 38 | B39: 38 | C39: CZE 8 | D39: 1609-308 | E39: Tlapáková Zuzana | F39: 2007 | G39: 38 | H39: DNC* | I39: 36 | J39: 37 | K39: 111 | L39: 1 153
A40: 39 | B40: 39 | C40: CZE 14 | D40: 2110-186 | E40: Marek Filip | F40: 2006 | G40: 37 | H40: 34 | I40: DNC* | J40: DNC | K40: 116 | L40: 1 074
A41: 40 | B41: 40 | C41: CZE 1 | D41: 2110-190 | E41: Hykrdová Markéta | F41: 2004 | G41: OCS* | H41: DNF | I41: 37 | J41: 36 | K41: 118 | L41: 997
A42: 41 | B42: 41 | C42: CZE 16 | D42: 7019-390 | E42: Slíva Matěj | F42: 2007 | G42: 39 | H42: DNC* | I42: DNC | J42: DNC | K42: 129 | L42: 922
A43: 42 | B43: 42 | C43: CZE 35 | D43: 1705-174 | E43: Voříšek Filip | F43: 2002 | G43: DNF* | H43: DNC | I43: DNC | J43: DNC | K43: 135 | L43: 777
A44: 43 | C44: CZE x | D44: 1609-303 | E44: Kříž Jan | F44: 2008 | G44: DNF* | H44: DNC | I44: DNC | J44: DNC | K44: 135 | L44: 777
A45: 43 | C45: CZE x | D45: 1402-460 | E45: Loužek Štěpán | F45: 2008 | G45: DNC* | H45: DNF | I45: DNC | J45: DNC | K45: 135 | L45: 777

Sheet 171507-3C
B1: Senior Cup
A2: 1 | B2: 1 | C2: CZE 79 | D2: 1607-166 | E2: Himmelová Klára | F2: 2002 | G2: 1* | H2: 1 | I2: 1 | J2: 1 | K2: 1 | L2: 1 | M2: 5 | N2: 1 156
A3: 2 | B3: 2 | C3: CZE 81 | D3: 1607-165 | E3: Himmel Jiří | F3: 2003 | G3: 2 | H3: 2 | I3: 2 | J3: 2 | K3: 2 | L3: 3* | M3: 10 | N3: 554
A4: 3 | B4: 3 | C4: CZE 82 | D4: 1607-169 | E4: Parchomenko Ondřej | F4: 2003 | G4: DNF* | H4: DNS | I4: 3 | J4: 3 | K4: 3 | L4: 2 | M4: 15 | N4: 202

Sheet 171615-7P
B1: Nechranická buchta
A2: 1 | B2: 1 | C2: CZE 50 | D2: 2110-172 | E2: Mikulec Martin | F2: 2001 | G2: 1 | H2: 1 | I2: 4* | J2: 1 | K2: 3 | L2: 10 944
A3: 2 | B3: 2 | C3: CZE 41 | D3: 1705-145 | E3: Horáček Jonáš | F3: 2002 | G3: 2 | H3: 6 | I3: 1 | J3: 8* | K3: 9 | L3: 8 837
A4: 3 | B4: 3 | C4: CZE 784 | D4: 1609-255 | E4: Nevelöš Adam | F4: 2004 | G4: 3 | H4: 4 | I4: 3 | J4: 5* | K4: 10 | L4: 7 604
A5: 4 | B5: 4 | C5: CZE 911 | D5: 2110-182U17 | E5: Chalupníková Kristýna | F5: 2002 | G5: 5 | H5: 2 | I5: 7* | J5: 3 | K5: 10 | L5: 6 729 | M5: jela větší plachtu
A6: 5 | B6: 5 | C6: CZE 788 | D6: 1609-212 | E6: Müller Ondřej | F6: 2001 | G6: 6 | H6: 3 | I6: OCS* | J6: 7 | K6: 16 | L6: 6 051
A7: 6 | B7: 6 | C7: CZE 79 | D7: 1607-166 | E7: Himmelová Klára | F7: 2002 | G7: 4 | H7: 5 | I7: 8 | J7: 10* | K7: 17 | L7: 5 497
A8: 7 | B8: 7 | C8: CZE 80 | D8: 1705-086 | E8: Sadílková Nela | F8: 2006 | G8: 10 | H8: 15* | I8: 6 | J8: 4 | K8: 20 | L8: 5 028
A9: 8 | B9: 8 | C9: CZE 89 | D9: 1130-276 | E9: Švíková Kateřina | F9: 2001 | G9: 7 | H9: 12* | I9: 5 | J9: 9 | K9: 21 | L9: 4 622
A10: 9 | B10: 9 | C10: CZE 744 | D10: 1609-278 | E10: Říčanová Nicol | F10: 2006 | G10: DNC* | H10: 10 | I10: 12 | J10: 2 | K10: 24 | L10: 4 264
A11: 10 | B11: 10 | C11: CZE 77 | D11: 7019-377 | E11: Rašková Adéla | F11: 2000 | G11: 8 | H11: 8 | I11: 9 | J11: 12* | K11: 25 | L11: 3 944
A12: 11 | B12: 11 | C12: CZE 787 | D12: 1609-256 | E12: Nevelöš Tibor | F12: 2006 | G12: 9 | H12: 13 | I12: 20* | J12: 6 | K12: 28 | L12: 3 654
A13: 12 | B13: 12 | C13: CZE 49 | D13: 1705-085 | E13: Sadílek Adam | F13: 2002 | G13: 19* | H13: 17 | I13: 2 | J13: 11 | K13: 30 | L13: 3 390
A14: 13 | B14: 13 | C14: CZE 98 | D14: 1130-352 | E14: Švíková Bára | F14: 2004 | G14: 11 | H14: 7 | I14: 15 | J14: 16* | K14: 33 | L14: 3 146
A15: 14 | B15: 14 | C15: CZE 81 | D15: 1607-165 | E15: Himmel Jiří | F15: 2003 | G15: 15 | H15: 9 | I15: 10 | J15: 20* | K15: 34 | L15: 2 921
A16: 15 | B16: 15 | C16: CZE 82 | D16: 1607-169 | E16: Parchomenko Ondřej | F16: 2003 | G16: 14 | H16: 11 | I16: 11 | J16: 15* | K16: 36 | L16: 2 711
A17: 16 | B17: 16 | C17: CZE 63 | D17: 1705-090 | E17: Drda David | F17: 2005 | G17: 12 | H17: 14* | I17: 13 | J17: 13 | K17: 38 | L17: 2 515
A18: 17 | B18: 17 | C18: CZE 11 | D18: 1401-459 | E18: Altmannová Kateřina | F18: 2004 | G18: 17* | H18: 16 | I18: 14 | J18: 17 | K18: 47 | L18: 2 331
A19: 18 | B19: 18 | C19: CZE 88 | D19: 1705-074 | E19: Štěpánková Markéta | F19: 2006 | G19: 13 | H19: 19 | I19: 21* | J19: 19 | K19: 51 | L19: 2 157
A20: 19 | B20: 19 | C20: CZE 91 | D20: 2201-036 | E20: Piňosová Kristýna | F20: 2005 | G20: 21 | H20: 27* | I20: 16 | J20: 14 | K20: 51 | L20: 1 993
A21: 20 | B21: 20 | C21: CZE 73 | D21: 1705-100 | E21: Sadílek Pavel | F21: 1974 | G21: 20 | H21: 18 | I21: 19 | J21: 27* | K21: 57 | L21: 1 837
A22: 21 | B22: 21 | C22: CZE 51 | D22: 2110-173 | E22: Šeliga Teodor | F22: 2007 | G22: 23* | H22: 21 | I22: 17 | J22: 21 | K22: 59 | L22: 1 688
A23: 22 | B23: 22 | C23: CZE 783 | D23: 1609-301 | E23: Tlapák Vojtěch | F23: 2005 | G23: 26* | H23: 23 | I23: 18 | J23: 18 | K23: 59 | L23: 1 547
A24: 23 | B24: 23 | C24: CZE 87 | D24: 1705-169 | E24: Lojínová Alexandra | F24: 2007 | G24: 16 | H24: 25* | I24: 22 | J24: 22 | K24: 60 | L24: 1 412
A25: 24 | B25: 24 | C25: CZE 74 | D25: 2110-191 | E25: Neckařová Martina | F25: 2003 | G25: 18 | H25: 20 | I25: 23* | J25: 23 | K25: 61 | L25: 1 282
A26: 25 | B26: 25 | C26: CZE 93 | D26: 1213-199 | E26: Hasman Radim | F26: 2006 | G26: 22 | H26: 22 | I26: DNS* | J26: 24 | K26: 68 | L26: 1 158
A27: 26 | B27: 26 | C27: CZE 78 | D27: 1609-298 | E27: Rais Michal | F27: 2006 | G27: 24 | H27: 24 | I27: DNF* | J27: 25 | K27: 73 | L27: 1 039
A28: 27 | B28: 27 | C28: CZE 47 | D28: 2110-189 | E28: Samcová Klára | F28: 2005 | G28: 25 | H28: 26* | I28: 24 | J28: 26 | K28: 75 | L28: 924
A29: 28 | B29: 28 | C29: CZE 785 | D29: 1609-308 | E29: Tlapáková Zuzana | F29: 2007 | G29: DNC* | H29: DNF | I29: 25 | J29: 28 | K29: 84 | L29: 814
A30: 29 | B30: 29 | C30: CZE 4 | D30: 1609-303 | E30: Kříž Jan | F30: 2008 | G30: DNS* | H30: DNC | I30: 26 | J30: DNC | K30: 88 | L30: 707
A31: 30 | B31: 30 | C31: CZE 771 | D31: 9999-001 | E31: Rašková Kateřina | F31: 2002 | G31: DNC* | H31: DNC | I31: DNC | J31: DNC | K31: 93 | L31: 0

Sheet 172156-MCR
B1: Czech Supercup
A2: X | B2: 1 | C2: SVK 11 | D2: 9901-015 | E2: Beránková Karolína | F2: 2001 | G2: 1.0 | H2: 1.0 | I2: 1.0 | J2: 1.0 | K2: 1.0 | L2: 1.0 | M2: 4.0* | N2: 2.0* | O2: 2.0 | P2: 8 | Q2: 21 051
A3: X | B3: 2 | C3: HUN 9 | D3: 9905-005 | E3: Morvai Bálint | F3: 2003 | G3: 2.0* | H3: 2.0 | I3: 3.0* | J3: 2.0 | K3: 2.0 | L3: 2.0 | M3: 1.0 | N3: 1.0 | O3: 1.0 | P3: 11 | Q3: 17 438
A4: X | B4: 3 | C4: SVK 49 | D4: 9901-018 | E4: Beránková Lenka | F4: 2002 | G4: 5.0 | H4: 3.0 | I4: 4.0 | J4: 3.0 | K4: 6.0* | L4: 4.0 | M4: 8.0* | N4: 3.0 | O4: 6.0 | P4: 28 | Q4: 15 325
A5: X | B5: 4 | C5: HUN 160 | D5: 9905-007 | E5: Pálinkáš Tamás | F5: 2003 | G5: 8.0* | H5: 6.0 | I5: 6.0 | J5: 4.0 | K5: 8.0* | L5: 3.0 | M5: 3.0 | N5: 4.0 | O5: 3.0 | P5: 29 | Q5: 13 826
A6: 1 | B6: 5 | C6: CZE 50 | D6: 2110-172 | E6: Mikulec Martin | F6: 2001 | G6: 10.0* | H6: 4.0 | I6: 9.0 | J6: 6.0 | K6: 3.0 | L6: 5.0 | M6: 14.0* | N6: 8.0 | O6: 7.0 | P6: 42 | Q6: 12 663
A7: 2 | B7: 6 | C7: CZE 86 | D7: 1609-212 | E7: Müller Ondřej | F7: 2001 | G7: 4.0 | H7: 5.0 | I7: 2.0 | J7: 12.0 | K7: 7.0 | L7: 6.0 | M7: 16.0* | N7: 13.0* | O7: 10.0 | P7: 46 | Q7: 11 713
A8: 3 | B8: 7 | C8: CZE 73 | D8: 1705-003 | E8: Štěpánek Jan | F8: 1973 | G8: 32.0* | H8: 24.0* | I8: 10.0 | J8: 13.0 | K8: 12.0 | L8: 10.0 | M8: 2.0 | N8: 11.0 | O8: 4.0 | P8: 62 | Q8: 10 909
A9: 4 | B9: 8 | C9: CZE 787 | D9: 1609-256 | E9: Nevelöš Tibor | F9: 2006 | G9: 6.0 | H9: 10.0 | I9: 5.0 | J9: 16.0 | K9: 4.0 | L9: 8.0 | M9: 22.0* | N9: 20.0* | O9: 14.0 | P9: 63 | Q9: 10 213
A10: X | B10: 9 | C10: SVK 22 | D10: 9901-001 | E10: Kubín Róbert | F10: 2003 | G10: 15.0 | H10: 9.0 | I10: 8.0 | J10: UFD* | K10: 19.0* | L10: 7.0 | M10: 7.0 | N10: 9.0 | O10: 11.0 | P10: 66 | Q10: 9 600
A11: 5 | B11: 10 | C11: CZE 41 | D11: 1705-145 | E11: Horáček Jonáš | F11: 2002 | G11: 27.0* | H11: 11.0 | I11: 27.0* | J11: 14.0 | K11: 15.0 | L11: 11.0 | M11: 5.0 | N11: 5.0 | O11: 5.0 | P11: 66 | Q11: 9 051
A12: X | B12: 11 | C12: HUN 3000 | D12: 9905-004 | E12: Morvai Anna | F12: 2004 | G12: 3.0 | H12: 12.0 | I12: 13.0 | J12: 5.0 | K12: 11.0 | L12: 12.0 | M12: 12.0 | N12: 16.0* | O12: 16.0* | P12: 68 | Q12: 8 554
A13: X | B13: 12 | C13: SVK 88 | D13: 9901-014 | E13: Fábry Ivan | F13: 2000 | G13: 20.0 | H13: 7.0 | I13: 14.0 | J13: UFD* | K13: 26.0* | L13: 16.0 | M13: 6.0 | N13: 6.0 | O13: 8.0 | P13: 77 | Q13: 8 100
A14: 6 | B14: 13 | C14: CZE 89 | D14: 1130-276 | E14: Švíková Kateřina | F14: 2001 | G14: 16.0 | H14: 14.0 | I14: 7.0 | J14: 7.0 | K14: 10.0 | L14: 19.0* | M14: 20.0* | N14: 12.0 | O14: 19.0 | P14: 85 | Q14: 7 683
A15: 7 | B15: 14 | C15: CZE 911 | D15: 2110-182 | E15: Chalupníková Kristýna | F15: 2005 | G15: 13.0 | H15: 13.0 | I15: 23.0* | J15: 9.0 | K15: 22.0* | L15: 13.0 | M15: 13.0 | N15: 15.0 | O15: 17.0 | P15: 93 | Q15: 7 297
A16: 8 | B16: 15 | C16: CZE 79 | D16: 1607-166 | E16: Himmelová Klára | F16: 2002 | G16: 14.0 | H16: 17.0 | I16: 18.0 | J16: 10.0 | K16: 9.0 | L16: 9.0 | M16: 18.0 | N16: 19.0* | O16: 21.0* | P16: 95 | Q16: 6 937
A17: X | B17: 16 | C17: HUN 2004 | D17: 9905-006 | E17: Negyeliczky Brúnó | F17: 2004 | G17: 12.0 | H17: 21.0* | I17: 12.0 | J17: 8.0 | K17: 14.0 | L17: 17.0 | M17: 19.0* | N17: 17.0 | O17: 18.0 | P17: 98 | Q17: 6 601
A18: 9 | B18: 17 | C18: CZE 40 | D18: 1801-167 | E18: Štěpánský Adam | F18: 2003 | G18: 9.0 | H18: 16.0 | I18: 31.0* | J18: 19.0* | K18: 13.0 | L18: 14.0 | M18: 15.0 | N18: 18.0 | O18: 13.0 | P18: 98 | Q18: 6 285
A19: 10 | B19: 18 | C19: CZE 784 | D19: 1609-255 | E19: Nevelöš Adam | F19: 2004 | G19: 7.0 | H19: 8.0 | I19: 11.0 | J19: UFD* | K19: OCS* | L19: OCS | M19: 10.0 | N19: 10.0 | O19: 9.0 | P19: 104 | Q19: 5 987
A20: 11 | B20: 19 | C20: CZE 63 | D20: 1705-090 | E20: Drda David | F20: 2005 | G20: 22.0 | H20: 23.0* | I20: 20.0 | J20: UFD* | K20: 18.0 | L20: 15.0 | M20: 9.0 | N20: 14.0 | O20: 15.0 | P20: 113 | Q20: 5 706
A21: 12 | B21: 20 | C21: CZE 49 | D21: 1705-085 | E21: Sadílek Adam | F21: 2002 | G21: 25.0 | H21: 28.0 | I21: 34.0* | J21: 31.0* | K21: 20.0 | L21: 18.0 | M21: 11.0 | N21: 7.0 | O21: 12.0 | P21: 121 | Q21: 5 438
A22: 13 | B22: 21 | C22: CZE 211 | D22: 2110-185 | E22: Diviš Lukáš | F22: 2004 | G22: 17.0 | H22: 18.0 | I22: 19.0 | J22: 15.0 | K22: 25.0* | L22: 20.0 | M22: 17.0 | N22: 21.0 | O22: 22.0* | P22: 127 | Q22: 5 184
A23: 14 | B23: 22 | C23: CZE 744 | D23: 1609-278 | E23: Říčanová Nicol | F23: 2006 | G23: 19.0 | H23: 19.0 | I23: 16.0 | J23: 11.0 | K23: 17.0 | L23: 26.0* | M23: 23.0 | N23: 27.0* | O23: 25.0 | P23: 130 | Q23: 4 941
A24: 15 | B24: 23 | C24: CZE 11 | D24: 1401-459 | E24: Altmannová Kateřina | F24: 2004 | G24: 24.0 | H24: 20.0 | I24: 15.0 | J24: 26.0* | K24: 16.0 | L24: 22.0 | M24: 25.0 | N24: 22.0 | O24: 26.0* | P24: 144 | Q24: 4 710
A25: 16 | B25: 24 | C25: CZE 81 | D25: 1607-165 | E25: Himmel Jiří | F25: 2003 | G25: 18.0 | H25: 29.0* | I25: 24.0 | J25: 23.0 | K25: 5.0 | L25: 23.0 | M25: 31.0* | N25: 28.0 | O25: 29.0 | P25: 150 | Q25: 4 488
A26: 17 | B26: 25 | C26: CZE 80 | D26: 1705-086 | E26: Sadílková Nela | F26: 2006 | G26: 23.0 | H26: 22.0 | I26: 17.0 | J26: 18.0 | K26: 23.0 | L26: 29.0 | M26: 24.0 | N26: 35.0* | O26: 35.0* | P26: 156 | Q26: 4 275
A27: 18 | B27: 26 | C27: CZE 98 | D27: 1130-352 | E27: Švíková Bára | F27: 2004 | G27: 30.0* | H27: 27.0* | I27: 25.0 | J27: 17.0 | K27: 27.0 | L27: 25.0 | M27: 21.0 | N27: 25.0 | O27: 23.0 | P27: 163 | Q27: 4 071
A28: 19 | B28: 27 | C28: CZE 82 | D28: 1607-169 | E28: Parchomenko Ondřej | F28: 2003 | G28: 21.0 | H28: 15.0 | I28: 29.0* | J28: 29.0 | K28: 24.0 | L28: 27.0 | M28: 35.0* | N28: 23.0 | O28: 24.0 | P28: 163 | Q28: 3 874
A29: 20 | B29: 28 | C29: CZE 1116 | D29: 2001-225 | E29: Netík Pavel | F29: 1999 | G29: 29.0 | H29: 32.0* | I29: 22.0 | J29: 21.0 | K29: 21.0 | L29: 31.0* | M29: 26.0 | N29: 29.0 | O29: 27.0 | P29: 175 | Q29: 3 685
A30: 21 | B30: 29 | C30: CZE 88 | D30: 1705-074 | E30: Štěpánková Markéta | F30: 2006 | G30: 28.0 | H30: 31.0 | I30: 21.0 | J30: 20.0 | K30: 34.0* | L30: 21.0 | M30: 32.0* | N30: 26.0 | O30: 28.0 | P30: 175 | Q30: 3 502
A31: 22 | B31: 30 | C31: CZE 289 | D31: 2201-036 | E31: Piňosová Kristýna | F31: 2005 | G31: 31.0* | H31: 25.0 | I31: 30.0* | J31: 27.0 | K31: 28.0 | L31: 24.0 | M31: 30.0 | N31: 24.0 | O31: 20.0 | P31: 178 | Q31: 3 325
A32: 23 | B32: 31 | C32: CZE 781 | D32: 2110-178 | E32: Skřepek Šimon | F32: 2007 | G32: 34.0* | H32: 34.0 | I32: 28.0 | J32: 24.0 | K32: 29.0 | L32: 30.0 | M32: 33.0 | N32: 36.0* | O32: 30.0 | P32: 208 | Q32: 3 154
A33: 24 | B33: 32 | C33: CZE 914 | D33: 2110-189 | E33: Samcová Klára | F33: 2005 | G33: 26.0 | H33: 43.0* | I33: 36.0 | J33: 34.0 | K33: 40.0* | L33: 33.0 | M33: 28.0 | N33: 31.0 | O33: 33.0 | P33: 221 | Q33: 2 989
A34: 25 | B34: 33 | C34: CZE 74 | D34: 2110-191 | E34: Neckařová Martina | F34: 2003 | G34: 38.0* | H34: 26.0 | I34: 38.0 | J34: 30.0 | K34: 33.0 | L34: OCS* | M34: 36.0 | N34: 30.0 | O34: 31.0 | P34: 224 | Q34: 2 828
A35: 26 | B35: 34 | C35: CZE 44 | D35: 2110-183 | E35: Komendová Kateřina | F35: 2005 | G35: 35.0 | H35: 35.0 | I35: 32.0 | J35: 25.0 | K35: 30.0 | L35: 36.0* | M35: 34.0 | N35: 38.0* | O35: 36.0 | P35: 227 | Q35: 2 673
A36: X | B36: 35 | C36: SVK 35 | D36: 9901-016 | E36: Jaš Peter | F36: 2007 | G36: 37.0 | H36: 30.0 | I36: 26.0 | J36: 36.0 | K36: 31.0 | L36: 28.0 | M36: DNC* | N36: DNC* | O36: DNC | P36: 237 | Q36: 2 522
A37: 27 | B37: 36 | C37: CZE 87 | D37: 1705-169 | E37: Lojínová Alexandra | F37: 2007 | G37: 36.0 | H37: 42.0* | I37: 41.0* | J37: 22.0 | K37: 37.0 | L37: 32.0 | M37: 37.0 | N37: 39.0 | O37: 38.0 | P37: 241 | Q37: 2 375
A38: 28 | B38: 37 | C38: CZE 783 | D38: 1609-301 | E38: Tlapák Vojtěch | F38: 2005 | G38: 40.0* | H38: 37.0 | I38: 33.0 | J38: 28.0 | K38: 32.0 | L38: 38.0 | M38: DNC* | N38: 37.0 | O38: 37.0 | P38: 242 | Q38: 2 232
A39: 29 | B39: 38 | C39: CZE 51 | D39: 2110-173 | E39: Šeliga Teodor | F39: 2007 | G39: 39.0* | H39: 38.0 | I39: 37.0 | J39: 32.0 | K39: 35.0 | L39: 37.0 | M39: 39.0* | N39: 34.0 | O39: 32.0 | P39: 245 | Q39: 2 093
A40: 30 | B40: 39 | C40: CZE 64 | D40: 2110-184 | E40: Richterová Ludmila | F40: 2004 | G40: 43.0* | H40: 39.0 | I40: 40.0* | J40: 39.0 | K40: 38.0 | L40: 35.0 | M40: 29.0 | N40: 32.0 | O40: 34.0 | P40: 246 | Q40: 1 958
A41: 31 | B41: 40 | C41: CZE 785 | D41: 1609-308 | E41: Tlapáková Zuzana | F41: 2007 | G41: 44.0* | H41: 36.0 | I41: 39.0 | J41: 38.0 | K41: 39.0 | L41: 39.0 | M41: 27.0 | N41: 33.0 | O41: DNF* | P41: 251 | Q41: 1 826
A42: 32 | B42: 41 | C42: CZE 741 | D42: 1609-298 | E42: Rais Michal | F42: 2006 | G42: 42.0 | H42: 41.0 | I42: 42.0 | J42: 37.0 | K42: 41.0 | L42: 34.0 | M42: 38.0 | N42: DNF* | O42: DNC* | P42: 275 | Q42: 1 697
A43: 33 | B43: 42 | C43: CZE 56 | D43: 2110-175 | E43: Wagner David | F43: 2003 | G43: 33.0 | H43: 33.0 | I43: 35.0 | J43: 33.0 | K43: DNC* | L43: DNC* | M43: DNF | N43: DNC | O43: DNC | P43: 281 | Q43: 1 572
A44: X | B44: 43 | C44: CZE 28 | D44: 7019-391 | E44: Zemanová Nicole | F44: 2005 | G44: 41.0 | H44: 40.0 | I44: 43.0 | J44: 35.0 | K44: 36.0 | L44: DNC* | M44: DNC* | N44: DNC | O44: DNC | P44: 293 | Q44: 1 449
A45: 34 | B45: 44 | C45: CZE 78 | D45: 1609-303 | E45: Kříž Jan | F45: 2008 | G45: 45.0 | H45: DNC* | I45: DNC* | J45: DNC | K45: DNC | L45: DNC | M45: DNC | N45: DNC | O45: DNC | P45: 339 | Q45: 1 329
A46: X | B46: 45 | C46: CZE 91 | D46: 2109-585 | E46: Chalupník Miloslav | F46: 1976 | G46: DNC* | H46: DNC* | I46: DNC | J46: DNC | K46: DNC | L46: DNC | M46: DNC | N46: DNC | O46: DNC | P46: 343 | Q46: 0
A47: 35 | D47: 7019-390 | E47: Slíva Matěj | F47: 2007 | G47: DNC* | H47: DNC* | I47: DNC | J47: DNC | K47: DNC | L47: DNC | M47: DNC | N47: DNC | O47: DNC | P47: 343 | Q47: 0
A48: 35 | D48: 9999-001 | E48: Hrdina Pavel | F48: 2009 | G48: DNF* | H48: DNC* | I48: DNC | J48: DNC | K48: DNC | L48: DNC | M48: DNC | N48: DNC | O48: DNC | P48: 343 | Q48: 1 212
A49: X | D49: 9999-002 | E49: Ševčík Filip | F49: 2012 | G49: DNC* | H49: DNC* | I49: DNC | J49: DNC | K49: DNC | L49: DNC | M49: DNC | N49: DNC | O49: DNC | P49: 343 | Q49: 0

Sheet 171620-7P
B1: Cena YCN
A2: 1 | B2: 1 | C2: CZE 50 | D2: 2110-172 | E2: Mikulec Martin | F2: 2001 | G2: 2 | H2: 1 | I2: 1 | J2: 4 | K2: 8 940
A3: 2 | B3: 2 | C3: CZE 89 | D3: 1130-276 | E3: Švíková Kateřina | F3: 2001 | G3: 1 | H3: 7 | I3: 2 | J3: 10 | K3: 6 832
A4: 3 | B4: 3 | C4: CZE 788 | D4: 1609-212 | E4: Müller Ondřej | F4: 2001 | G4: 3 | H4: 6 | I4: 4 | J4: 13 | K4: 5 600
A5: 4 | B5: 4 | C5: CZE 79 | D5: 1607-166 | E5: Himmelová Klára | F5: 2002 | G5: 4 | H5: 8 | I5: 3 | J5: 15 | K5: 4 725
A6: 5 | B6: 5 | C6: CZE 744 | D6: 1609-278 | E6: Říčanová Nicol | F6: 2006 | G6: 5 | H6: 3 | I6: 8 | J6: 16 | K6: 4 047
A7: 6 | B7: 6 | C7: CZE 98 | D7: 1130-352 | E7: Švíková Bára | F7: 2004 | G7: 6 | H7: 5 | I7: 11 | J7: 22 | K7: 3 493
A8: 7 | B8: 7 | C8: CZE 88 | D8: 1705-074 | E8: Štěpánková Markéta | F8: 2006 | G8: 8 | H8: 9 | I8: 6 | J8: 23 | K8: 3 024
A9: 8 | B9: 8 | C9: CZE 63 | D9: 1705-090 | E9: Drda David | F9: 2005 | G9: 11 | H9: 4 | I9: 9 | J9: 24 | K9: 2 618
A10: 9 | B10: 9 | C10: CZE 80 | D10: 1705-086 | E10: Sadílková Nela | F10: 2006 | G10: 9 | H10: 10 | I10: 5 | J10: 24 | K10: 2 260
A11: 10 | B11: 10 | C11: CZE 82 | D11: 1607-169 | E11: Parchomenko Ondřej | F11: 2003 | G11: 13 | H11: 2 | I11: 10 | J11: 25 | K11: 1 940
A12: 11 | B12: 11 | C12: CZE 49 | D12: 1705-085 | E12: Sadílek Adam | F12: 2002 | G12: 7 | H12: 14 | I12: 7 | J12: 28 | K12: 1 650
A13: 12 | B13: 12 | C13: CZE 81 | D13: 1607-165 | E13: Himmel Jiří | F13: 2003 | G13: 10 | H13: 11 | I13: 13 | J13: 34 | K13: 1 385
A14: 13 | B14: 13 | C14: CZE 11 | D14: 1401-459 | E14: Altmannová Kateřina | F14: 2004 | G14: 12 | H14: 12 | I14: 14 | J14: 38 | K14: 1 142
A15: 14 | B15: 14 | C15: CZE 87 | D15: 1705-169 | E15: Lojínová Alexandra | F15: 2007 | G15: 14 | H15: 13 | I15: 12 | J15: 39 | K15: 917
A16: 15 | B16: 15 | C16: CZE 16 | D16: 7019-390 | E16: Slíva Matěj | F16: 2007 | G16: DNS | H16: DNC | I16: DNC | J16: 48 | K16: 707

Sheet 171720-3C
B1: Skiregata
A2: 1 | B2: 1 | C2: CZE 911 | D2: 2110-182 | E2: Chalupníková Kristýna | F2: 2005 | G2: 1 | H2: 1 | I2: 1 | J2: 1 | K2: 1 | L2: DNC* | M2: 5 | N2: 5 425
A3: 2 | B3: 2 | C3: CZE 11 | D3: 1401-459 | E3: Altmannová Kateřina | F3: 2004 | G3: 4 | H3: 4 | I3: 7* | J3: 2 | K3: 2 | L3: 2 | M3: 14 | N3: 4 221
A4: 3 | B4: 3 | C4: CZE 63 | D4: 1705-090 | E4: Drda David | F4: 2005 | G4: 6 | H4: 7* | I4: 2 | J4: 5 | K4: 4 | L4: 3 | M4: 20 | N4: 3 517
A5: 4 | B5: 4 | C5: CZE 744 | D5: 1609-278 | E5: Říčanová Nicol | F5: 2006 | G5: 8* | H5: 3 | I5: 6 | J5: 3 | K5: 8 | L5: 1 | M5: 21 | N5: 3 017
A6: 5 | B6: 5 | C6: CZE 41 | D6: 1705-086 | E6: Sadílková Nela | F6: 2006 | G6: 5 | H6: 6 | I6: 4 | J6: 8* | K6: 3 | L6: 5 | M6: 23 | N6: 2 629
A7: 6 | B7: 6 | C7: CZE 289 | D7: 2201-036 | E7: Piňosová Kristýna | F7: 2005 | G7: 2 | H7: 2 | I7: 8* | J7: 6 | K7: 7 | L7: 8 | M7: 25 | N7: 2 312
A8: 7 | B8: 7 | C8: CZE 88 | D8: 1705-074 | E8: Štěpánková Markéta | F8: 2006 | G8: 3 | H8: 5 | I8: 12* | J8: 9 | K8: 5 | L8: 11 | M8: 33 | N8: 2 045
A9: 8 | B9: 8 | C9: CZE 741 | D9: 1609-298 | E9: Rais Michal | F9: 2006 | G9: 13* | H9: 9 | I9: 5 | J9: 7 | K9: 12 | L9: 6 | M9: 39 | N9: 1 813
A10: 9 | B10: 9 | C10: CZE 50 | D10: 2110-172 | E10: Mikulec Martin | F10: 2001 | G10: DNF* | H10: DNC | I10: 3 | J10: 4 | K10: 6 | L10: 10 | M10: 42 | N10: 1 608
A11: 10 | B11: 10 | C11: CZE 781 | D11: 2110-178 | E11: Skřepek Šimon | F11: 2007 | G11: 7 | H11: 8 | I11: 9 | J11: 10 | K11: 9 | L11: 13* | M11: 43 | N11: 1 425
A12: 11 | B12: 11 | C12: CZE 73 | D12: 1705-085 | E12: Sadílek Adam | F12: 2002 | G12: 12 | H12: 13 | I12: 14* | J12: 11 | K12: 10 | L12: 4 | M12: 50 | N12: 1 260
A13: 12 | B13: 12 | C13: CZE 87 | D13: 1705-169 | E13: Lojínová Alexandra | F13: 2007 | G13: 9 | H13: 12 | I13: 10 | J13: 12 | K13: 14* | L13: 12 | M13: 55 | N13: 1 108
A14: 13 | B14: 13 | C14: CZE 93 | D14: 1213-199 | E14: Hasman Radim | F14: 2006 | G14: 11 | H14: 11 | I14: 15 | J14: DNC* | K14: 11 | L14: 7 | M14: 55 | N14: 969
A15: 14 | B15: 14 | C15: CZE 783 | D15: 1609-301 | E15: Tlapák Vojtěch | F15: 2005 | G15: 10 | H15: 10 | I15: 13 | J15: DNC* | K15: 13 | L15: 9 | M15: 55 | N15: 841
A16: 15 | B16: 15 | C16: CZE 785 | D16: 1609-308 | E16: Tlapáková Zuzana | F16: 2007 | G16: 14 | H16: 14 | I16: 11 | J16: 13 | K16: 15 | L16: DNC* | M16: 67 | N16: 721
A17: 16 | B17: 16 | C17: CZE 59 | D17: 9999-002 | E17: Hrdina Pavel | F17: 2008 | G17: 17 | H17: DNC* | I17: DNC | J17: DNC | K17: 16 | L17: DNC | M17: 90 | N17: 609
A18: 17 | B18: 17 | C18: CZE 78 | D18: 1609-303 | E18: Kříž Jan | F18: 2008 | G18: 18 | H18: DNC* | I18: DNC | J18: DNC | K18: 17 | L18: DNC | M18: 92 | N18: 503
A19: 18 | B19: 18 | C19: CZE 8 | D19: 9999-003 | E19: Koukal Sebastian | F19: 2006 | G19: 19* | H19: DNC | I19: DNC | J19: DNC | K19: 18 | L19: DNC | M19: 94 | N19: 404

Sheet Members
A1: 4 | B1: Sladký Martin | D1: M
A2: 5 | B2: Kučera Petr sen. | D2: M
A3: 7 | B3: Toth Martin | D3: M
A4: 8 | B4: Mielec Lubomír | D4: M
A5: 10 | B5: Horký Adam | D5: M
A6: 11 | B6: Altmann Tomáš | D6: M
A7: 15 | B7: Kučera Petr jun. | D7: M
A8: 16 | B8: Slíva Matěj | D8: M
A9: 17 | B9: Hrdina Patrik | D9: M
A10: 19 | B10: Hrubý Pavel | D10: M
A11: 21 | B11: Pospíšil Martin | D11: M
A12: 22 | B12: Slíva Martin | D12: M
A13: 24 | B13: Hnitka Martin | D13: M
A14: 25 | B14: Hrubý Roman | D14: M
A15: 26 | B15: Slívová Jana | D15: F
A16: 31 | B16: Král Jiří | D16: M
A17: 34 | B17: Loužek Karel | D17: M
A18: 35 | B18: Mařík Kristian | D18: M
A19: 37 | B19: Šplíchal Filip | D19: M
A20: 39 | B20: Šplíchal Jiří | D20: M
A21: 40 | B21: Štěpánský Adam | D21: M
A22: 41 | B22: Horáček Jonáš | D22: M
A23: 45 | B23: Vrána Petr | D23: M
A24: 48 | B24: Čech Petr | D24: M
A25: 49 | B25: Sadílek Adam | D25: M
A26: 50 | B26: Mikulec Martin | D26: M
A27: 51 | B27: Šeliga Teodor | D27: M
A28: 53 | B28: Štrambach Ladislav | D28: M
A29: 58 | B29: Žlabová Markéta | D29: F
A30: 61 | B30: Haubold Petr | D30: M
A31: 63 | B31: Drda David | D31: M
A32: 71 | B32: Himmelová Klára | D32: F
A33: 73 | B33: Štěpánek Jan | D33: M
A34: 74 | B34: Neckařová Martina | D34: F
A35: 76 | B35: Raška Marek | D35: M
A36: 77 | B36: Rašková Adéla | D36: F
A37: 79 | B37: Himmel Jiří | D37: M
A38: 80 | B38: Sadílková Nela | D38: F
A39: 81 | B39: Himmel Jiří | D39: M
A40: 82 | B40: Parchomenko Ondřej | D40: M
A41: 85 | B41: Kroupa Štěpán | D41: M
A42: 86 | B42: Mrůzek Pavel | D42: M
A43: 87 | B43: Lojínová Alexandra | D43: F
A44: 88 | B44: Štěpánková Markéta | D44: F
A45: 89 | B45: Švíková Katrina | D45: F
A46: 90 | B46: Hykrdová Markéta | D46: F
A47: 91 | B47: Chalupníková Kristýna | D47: F
A48: 93 | B48: Hasman Radim | D48: M
A49: 95 | B49: Provazník Samuel | D49: M
A50: 98 | B50: Švíková Barbora | D50: F
A51: 99 | B51: Dvořák Rudolf | D51: M
A52: 101 | B52: Koblasa Stanislav | D52: M
A53: 110 | B53: Kamenský Radim | D53: M
A54: 113 | B54: Kamenský Pavel | D54: M
A55: 116 | B55: Netík Pavel | D55: M
A56: 119 | B56: Altmannová Kateřina | D56: F
A57: 125 | B57: Hrubá Dagmar | D57: F
A58: 138 | B58: Hromádka Josef | D58: M
A59: 141 | B59: Sehnal Pavel | D59: M
A60: 147 | B60: Sehnal Pavel | D60: M
A61: 173 | B61: Zidkova Nadine | D61: F
A62: 178 | B62: Kvašnovský Michael | D62: M
A63: 195 | B63: Dolejš Rudolf | D63: M
A64: 211 | B64: Diviš Lukáš | D64: M
A65: 251 | B65: Hrubá Martina | D65: F
A66: 289 | B66: Piňosová Kristýna | D66: F
A67: 333 | B67: Myška Filip | D67: M
A68: 338 | B68: Myšková Veronika | D68: F
A69: 714 | B69: Samcová Klára | D69: F
A70: 741 | B70: Rais Michal | D70: M
A71: 742 | B71: Kříž Jan | D71: M
A72: 744 | B72: Říčanová Nicol | D72: F
A73: 747 | B73: Říčan Jaroslav | D73: M
A74: 777 | B74: Zíma Jakub | D74: M
A75: 781 | B75: Skřepek Šimon | D75: M
A76: 783 | B76: Tlapák Vojta | D76: M
A77: 784 | B77: Nevelöš Adam | D77: M
A78: 785 | B78: Tlapáková Zuzana | D78: F
A79: 786 | B79: Vaszi Mikuláš | D79: M
A80: 787 | B80: Nevelöš Tibor | D80: M
A81: 788 | B81: Müller Ondřej | D81: M
A82: 789 | B82: Nevelöš Jan | D82: M
A83: 814 | B83: Švec Ladislav | D83: M
A84: 1116 | B84: Netík Pavel | D84: M
A85: 2403 | B85: Raška Ondřej | D85: M
B86: Martinová Nicola | D86: F
B87: Sehnalová Tereza | D87: F
B88: Skřepek Jan | D88: M
B89: Wagner David | D89: M | E89: Doplněné
B90: Komendová Kateřina | D90: F
B91: Šeliga Teodor | D91: M
B92: Tlapák Vojtěch | D92: M
B93: Švíková Bára | D93: F
B94: Švíková Kateřina | D94: F
B95: Sadílek Pavel | D95: M
B96: Richterová Ludmila | D96: F
B97: Marek Filip | D97: M
B98: Voříšek Filip | D98: M
B99: Loužek Štěpán | D99: M
B100: Rašková Kateřina | D100: F
B101: Hrdina Pavel | D101: M
B102: Koukal Sebastian | D102: M
B103: Chalupníková Kristýna U17 | D103: F

Sheet Categories
G1: Pořadí
C2: Min | D2: Max | E2: Zkratka
A3: Muži | B3: M | C3: 0 | D3: 12 | E3: U13M | G3: 11 | H3: 51
C4: 13 | D4: 14 | E4: U15M | G4: 7 | H4: 40
C5: 15 | D5: 16 | E5: U17M | G5: 8 | H5: 51
C6: 17 | D6: 1000 | E6: O17M | G6: 8 | H6: 37
A7: Ženy | B7: F | C7: 0 | D7: 12 | E7: U13F | G7: 9 | H7: 43
C8: 13 | D8: 14 | E8: U15F | G8: 5 | H8: 50
C9: 15 | D9: 16 | E9: U17F | G9: 4 | H9: 51
C10: 17 | D10: 1000 | E10: O17F | G10: 1 | H10: 10
G11: 1 | H11: 50

Sheet List1
A1: Cislo | B1: Jméno | C1: Klub | D1: Člen
A2: 1 | B2: k propůjčení | C2: ČWA Lavický Karel
A3: 2 | B3: Vavřík Petr | C3: Santi Ostrava
A4: 3 | B4: Rott Jan | C4: YC Plzeň | D4: ano
A5: 4 | B5: Sladký Martin ml. | C5: ČWA | D5: ano
A6: 5 | B6: Kučera Petr | C6: Rapid Brno | D6: ano
A7: 6 | B7: Jakub Slíva | C7: YC Nechranice | D7: ano
A8: 7 | B8: Toth Martin | C8: ČWA | D8: ano
A9: 8 | B9: Mielec Lubomír sen. | C9: SKP Ostrava | D9: ano
A10: 9 | B10: Mielec lubomír jun. | C10: SKP Ostrava
A11: 10 | B11: Horký Adam | C11: ČWA | D11: ano
A12: 11 | B12: Altman Tomáš | C12: SSTK Plzeň | D12: ano
A13: 12 | B13: Diviš Ivo | C13: YC Brno
A14: 13 | B14: Koblasa David | C14: Loko Cheb | D14: ano
A15: 14 | B15: Koblasa Lukáš | C15: Loko Cheb
A16: 15 | B16: Kučera Petr jun. | C16: Rapid Brno | D16: ano
A17: 16 | B17: Slíva Martin | C17: ČWA | D17: ano
A18: 17 | B18: Hrdina Patrik | C18: ASK | D18: ano
A19: 19 | B19: Hrubý Pavel | C19: ČWA | D19: ano
A20: 20 | B20: Markýzo
A21: 21 | B21: Pospíšil Martin | C21: Rapid Brno | D21: ano
A22: 22 | B22: Slíva Martin | C22: ČWA | D22: ano
A23: 23 | B23: Kovařík Dominik | C23: ČWA
A24: 24 | B24: Hnitka Martin | C24: YC Nechranice | D24: ano
A25: 25 | B25: Hrubý Roman | C25: Loko Cheb | D25: ano
A26: 26 | B26: Slívová Jana | C26: YC Nechranice | D26: ano
A27: 27 | B27: Raška Zdeněk | C27: TJ Baník Karviná
A28: 29 | B28: König Josef | C28: Loko Plzeň | D28: ano
A29: 30 | B29: Vykydal Jaroslav | C29: Rapid Brno | D29: ano
A30: 31 | B30: Král Jiří | C30: HTJ Odra Ostrava | D30: ano
A31: 32 | B31: Stránký Martin | C31: Loko Cheb
A32: 33 | B32: Rott Petr | C32: YC Plzeň | D32: ano
A33: 34 | B33: Loužek Karel | C33: YC Plzeň | D33: ano
A34: 35 | B34: Mařík Kristian | C34: Delfín Jablonec | D34: ano
A35: 36 | B35: Šplíchal Jiří sen. | C35: YC Plzeň
A36: 37 | B36: Šplíchal Filip. | C36: YC Plzeň | D36: ano
A37: 38 | B37: Vaněk Václav | C37: Slovan ML | D37: ano
A38: 39 | B38: Šplíchal Jiří jun | C38: YC Plzeň | D38: ano
A39: 40 | B39: Štěpánský Adam | C39: TJ Slavia | D39: ano
A40: 41 | B40: Horáček Jonáš | C40: Delfín Jablonec | D40: ano
A41: 42 | B41: Hanzi Shafer | C41: ČWA | D41: ano
A42: 43 | B42: Roušal Jar.
A43: 44 | B43: Vránová Markéta | C43: Rapid Brno | D43: ano
A44: 45 | B44: Vrána Petr | C44: rapid Brno | D44: ano
A45: 46 | B45: Straček Oldřich | C45: Ostrava
A46: 47 | B46: TJ Rapid | C46: TJ Rapid
A47: 48 | B47: Čech Petr | C47: Delfín Jablonec | D47: ano
A48: 49 | B48: Sadílek Adam | C48: Delfín Jablonec | D48: ano
A49: 50 | B49: Mikulec Martin | C49: TJ Rapid | D49: ano
A50: 51 | B50: Novotná Eva | C50: ČWA
A51: 52 | B51: Juptner Patrik | C51: Vodní sp. Brno
A52: 53 | B52: Štrambach Ladislav | C52: MEZ Mohelnice | D52: ano
A53: 54 | B53: Fanta Miroslav | C53: TJ L SP Brno
A54: 55 | B54: Kudláček Pavel | C54: ČWA | D54: ano
A55: 57 | B55: Ouřada Jaroslav | C55: Loko Cheb | D55: ano
A56: 58 | B56: Žlabová Markéta | C56: ČWA | D56: ano
A57: 59 | B57: Hrdina Pavelk | C57: ASK | D57: ano
A58: 60 | B58: Hrdinová Patricie | C58: ASK | D58: ano
A59: 61 | B59: Haubold Petr | C59: Delfín Jablonec | D59: ano
A60: 62 | B60: Kocálek Zdeněk | C60: YC Nové Sedlo
A61: 63 | B61: Drda David | C61: Delfín Jablonec | D61: ano
A62: 65 | B62: Rašovský Jar. | C62: Rapid Brno | D62: ano
A63: 66 | B63: Ovsík Martin | C63: ČWA | D63: ano
A64: 67 | B64: Marek Michal | C64: TJ Rapid | D64: ano
A65: 68 | B65: Hartman Pavel | C65: ČWA | D65: ano
A66: 69 | B66: Šlechta Jiří | C66: ČWA
A67: 70 | B67: ŠebestaLibor | C67: ČWA | D67: ano
A68: 71 | B68: Himmel Klára | C68: YC Nechranice | D68: ano
A69: 72 | B69: Dvořák Dalibor | C69: ČWA | D69: ano
A70: 73 | B70: Štěpánek Jan | C70: Delfín Jablonec | D70: ano
A71: 74 | B71: Neckář | C71: ČWA
A72: 75 | B72: JK Plzeň | C72: JK Plzeň
A73: 76 | B73: Raška Marek | C73: ČWA | D73: ano
A74: 77 | B74: Rašková Adéla | C74: ČWA | D74: ano
A75: 78 | B75: Skřepek Jan | C75: Rapid Brno | D75: ano
A76: 79 | B76: Himmel Jiří | C76: YC Nechranice | D76: ano
A77: 80 | B77: Sadílková Nela | C77: Delfín Jablonec | D77: ano
A78: 81 | B78: Himmel Jiří jun | C78: YC Nechranice | D78: ano
A79: 83 | B79: Nejtek Petr | C79: Loko Cheb
A80: 85 | B80: Kroupa Štěpán | C80: Delfín Jablonec | D80: ano
A81: 86 | B81: Mrůzek Pavel | C81: JC Regent | D81: ano
A82: 88 | B82: Štěpánková Markéta | C82: Delfín Jablonec | D82: ano
A83: 89 | B83: Švíková Katrina | C83: Cere | D83: ano
A84: 92 | B84: Podzimek Petr | C84: Loko Cheb
A85: 94 | B85: Novotný Antonín | C85: Rapid Brno
A86: 96 | B86: Čech Milan | C86: ČWA
A87: 99 | B87: Dvořák Rudolf | C87: Cere | D87: ano
A88: 101 | B88: Koblasa Stanislav | C88: Loko Cheb | D88: ano
A89: 104 | B89: Čech Petr | C89: ČWA | D89: ano
A90: 105 | B90: Škola Jaroslav | C90: Loko Cheb
A91: 109 | B91: Malina Tomáš | C91: identiti nechr | D91: ano
A92: 110 | B92: Kamenský Radim | C92: YC Velké Dářko | D92: ano
A93: 111 | B93: Kalabis Petr | C93: Rapid Brno | D93: ano
A94: 113 | B94: Kamenský Pavel | C94: YC Velké Dářko | D94: ano
A95: 114 | B95: Nejtek Petr | C95: Loko Cheb
A96: 115 | B96: Škola Jaroslav ml. | C96: Loko Cheb
A97: 116 | B97: Netík Pavel | C97: ŽĎAS Jihlava | D97: ano
A98: 117 | B98: Urbánek Zdeněk | C98: MEZ Mohelnice
A99: 118 | B99: Uldrych Josef
A100: 119 | B100: Altmanová Kat | C100: SSTK Plzeň | D100: ano
A101: 120 | B101: Hrubý Jiří | C101: JC PlzeŇ | D101: ano
A102: 121 | B102: Dvořáková Kateřina | C102: Loko Cheb
A103: 123 | B103: Toupal Jan | C103: ČWA | D103: ano
A104: 124 | B104: Hauer Radim | C104: PLK
A105: 125 | B105: Hrubá Dagmar | C105: Loko Cheb | D105: ano
A106: 126 | B106: Dvořák Michal | C106: ČWA | D106: ano
A107: 128 | B107: Dvořák Marek | D107: ano
A108: 130 | B108: Lavický Karel | C108: DIM Bezdrev | D108: ano
A109: 137 | B109: Motz Daniel | C109: ČWA | D109: ano
A110: 138 | B110: Hromádka Josef | C110: Loko Cheb | D110: ano
A111: 141 | B111: Sehnal Pavel | C111: ČWA | D111: ano
A112: 144 | B112: Haltmarová Dominika | C112: ČWA | D112: ano
A113: 147 | B113: Sehnal Pavel jun. | C113: ČWA | D113: ano
A114: 162 | B114: Kment Libor | C114: ČWA | D114: ano
A115: 165 | B115: Škola Jan | C115: Loko Cheb
A116: 166 | B116: Vejrek Miloš | C116: JC Regent | D116: ano
A117: 171 | B117: Mareš jakub | C117: ČWA | D117: ano
A118: 172 | B118: Kocman Zdeněk
A119: 177 | B119: Neumann Lukáš | C119: YC Rodop | D119: ano
A120: 178 | B120: Kvašnovský Michael | C120: ČWA | D120: ano
A121: 191 | B121: Hrubá Andrea | C121: ČWA
A122: 195 | B122: Dolejš Rudolf | C122: ČWA | D122: ano
A123: 202 | B123: Bodlák Pavel | D123: ano
A124: 205 | B124: Ehl Vladimír | C124: WCVD
A125: 206 | B125: Haken Vladimír | C125: WCVD
A126: 208 | B126: Ševčík Martin | C126: WCVD
A127: 211 | B127: Diviš Lukáš | C127: YC Brno | D127: ano
A128: 212 | B128: Pelikán Martin | C128: Rapid Brno
A129: 222 | B129: Vazač Jan | C129: ČWA | D129: ano
A130: 251 | B130: Hrubá Martina | C130: YC Velké Dářko | D130: ano
A131: 331 | B131: Rott Jakub | C131: Poseidon Plzeň
A132: 332 | B132: Hrubý Kryštof | C132: ČWA | D132: ano
A133: 333 | B133: Myška Filip | C133: identiti nechr | D133: ano
A134: 404 | B134: Hala Václav | C134: ČWA | D134: ano
A135: 480 | B135: Šmíd Zdeněk | C135: Mez Mohelnice | D135: ano
A136: 534 | B136: Valenta Jan | C136: ČWA | D136: ano
A137: 612 | B137: Modráčková Jana | C137: ČWA | D137: ano
A138: 711 | B138: Toth ml. | C138: ČWA
A139: 744 | B139: Říčanová Nicol | C139: YC SK Štětí | D139: ano
A140: 771 | B140: Štantejský Jan | C140: ČWA | D140: ano
A141: 777 | B141: Zíma Jakub | C141: ČWA | D141: ano
A142: 781 | B142: Skřepek Šimon | C142: Rapid Brno | D142: ano
A143: 784 | B143: Nevološ Adam | C143: YC SK Štětí | D143: ano
A144: 786 | B144: Beerová Eliška | C144: YC SK Štětí | D144: ano
A145: 787 | B145: Neveloš Tibor | C145: YC SK Štětí | D145: ano
A146: 788 | B146: Muller Ondřej | C146: YC SK Štětí | D146: ano
A147: 814 | B147: Švec Ladislav | C147: Č. Budějovice | D147: ano
A148: 888 | B148: Hulinský Martin | C148: ČWA | D148: ano
A149: 911 | B149: Chalupníková Kristýna
A150: 1006 | B150: Řehák Pavel | C150: ČWA
A151: 1111 | B151: Kir | C151: identiti nechr | D151: ano
A152: 1116 | B152: Netík Pavel jun | C152: YC Velké Dářko | D152: ano
A153: 1117 | B153: Mika Radek | D153: ano
A154: 1534 | B154: Šmídová Pavla | C154: ČWA | D154: ano
A155: 2403 | B155: Raška Ondřej | C155: ČWA | D155: ano
A156: 2222 | B156: Holý Marek | D156: ano
B157: Ledecká Ester | C157: ČWA
B158: Martinova Nicola | C158: ČWA | D158: ano
B159: Mikulec Martin | C159: TJ Rapid | D159: ano
B160: Kaš Petr | C160: TJ Rapid | D160: ano
B161: Sehnalová Teraza | D161: ano
B162: Marečková lenka | D162: ano
B163: Rašková Kateřina | D163: ano
